{"text_format":"1","workbook":"xlsx","n_sheets":18,"sheets":["Aktiver makroer","Forside","Øvrige_Krav_DATA","Øvrige Krav","Fagkompetencekrav","Forst DATA","Forst","Spor DATA","Spor","Sikring DATA","Sikring","Kørestrøm DATA","Kørestrøm","Stærkstrøm DATA","Stærkstrøm","Bro & Byg DATA","Broer & bygninger","Pivot"],"not_rendered":{"charts":0,"images":13,"macros":1,"external_links":0,"defined_names":72,"comments":0,"pivot_tables":5},"unopened":[],"bounds":{"document_bytes":16777216,"sheet_cells":100000,"rows_first":2000,"rows_last":500,"rows_between":2000,"halvings":0,"cell_chars":16384,"cell_head_chars":4096},"cells_cut":0,"cells_raw":0,"read":"whole","date_system":"1900"}

{"sheet":"Aktiver makroer","index":0,"n_rows":0,"n_cols":0,"rows_kept":0,"cut":false,"hidden":false,"merged":[]}

{"sheet":"Forside","index":1,"n_rows":36,"n_cols":6,"rows_kept":36,"cut":false,"hidden":true,"merged":[[32,5,32,6],[11,1,11,4],[11,6,11,9],[11,11,11,14],[21,1,21,4],[21,6,21,9],[21,11,21,14]]}
[]
["Opslagskatalog over jernbanesikkerhedsmæssige, tekniske og forretningsmæssige krav"]
[]
[]
[]
[]
[]
[]
[]
[]
[]
[]
[]
[]
[]
[]
[]
[]
[]
[]
[]
[]
[]
[]
[]
[]
[]
[]
[]
[]
[]
[null,"Du er registreret som:",null,null,null,"Hasse Kruse; hpet"]
[null,"Dokumentet er åbnet:",null,null,null,"2017-05-01T16:07:10"]
[]
[null,"Indholdet i opslagskataloget ejes af: Fagkompetencekrav Teknik; Øvrige Krav Kvalitet & Sikkerhed"]
[null,"Al henvendelse sker til One Point of Entry Malene Ibsen (suppl. Allan Ditmar Bevensee)"]

{"sheet":"Øvrige_Krav_DATA","index":2,"n_rows":207,"n_cols":8,"rows_kept":207,"cut":false,"hidden":true,"merged":[]}
[null,null,null,null,null,null,null,"Dropdown - Øvrige Krav"]
[null,null,null,null,null,null,null,"(Vælg)"]
[null,null,null,null,null,null,null,"Faglige ydelser"]
[null,null,null,null,null,null,null,"Generelle krav om jernbanesikkerhed"]
[null,null,null,null,null,null,null,"Godkendelser og tilladelser"]
[null,null,null,null,null,null,null,"Jernbanesikkerhedsplaner"]
[null,null,null,null,null,null,null,"Krav om arbejdsmiljø"]
[null,null,null,null,null,null,null,"Krav om kontrakter og arbejdsvilkår"]
[null,null,null,null,null,null,null,"Krav om miljø"]
[null,null,null,null,null,null,null,"Kørsel"]
[null,null,null,null,null,null,null,"Rullende materiel"]
[null,null,null,null,null,null,null,"Sikkerhedsreglement (SR 75)"]
["Ydelseskategori","Ydelsestype","Kravliste","Links",null,null,null,"Togklargøring"]
["Godkendelser og tilladelser1","Gravetilladelse","Ansøgning om gravetilladelse","http://www.bane.dk/visArtikel.asp?artikelID=500 "]
["Godkendelser og tilladelser2",null,"Ansøgning om certificering ifm. opgravningsfri ledningsetablering","http://www.bane.dk/visArtikel.asp?artikelID=14011 "]
["Godkendelser og tilladelser3","Ibrugtagning af sikring og fjernstyring","Krav om en ibrugtagningsansvarlig af nye eller ændrede sikringsanlæg","http://www.bane.dk/visArtikel.asp?artikelID=19431 "]
["Godkendelser og tilladelser4","Godkendelse af bane/vej køretøjer","Banenorm BN2-74-1","http://www.bane.dk/db/filarkiv/5213/BN2-74-1.pdf "]
["Godkendelser og tilladelser5","Godkendelse af arbejdsmiljøkoordinator","Arbejdsmiljøuddannelse for koordinatorer af sikkerheds- og sundhedsarbejdet på bygge- og anlægspladser\nAT-vejledning F.2.3, marts 2006","https://arbejdstilsynet.dk/da/regler/at-vejledninger/a/f-2-3-arbejdsmiljoudd-for-koordinatorer "]
["Godkendelser og tilladelser6","Godkendelse af jernbanesikkerhedsplaner","Ansøgningsblanketter og vejledninger","http://www.bane.dk/visArtikel.asp?artikelID=23964&soegningID=675347&soegeord=jernbanesikkerhedsplaner "]
[]
[]
[]
[]
[]
[]
["Krav om arbejdsmiljø1","Krav om et sikkert og sundt arbejdsmiljø","Bekendtgørelse 1072 af 7/9/2010 af lov om arbejdsmiljø","https://www.retsinformation.dk/Forms/R0710.aspx?id=133159 "]
["Krav om arbejdsmiljø2","Krav om sikre og arbejdsmiljøvenlige maskiner","Europa-Parlamentets og Rådets direktiv 2006/42/EF af 17/5/2006 (Maskindirektivet )","http://www.ds.dk/da/standardisering/ce-maerkning/produktgrupper/maskiner "]
["Krav om arbejdsmiljø3","Krav til bygherrens pligter ved bygge- og anlægsarbejde","Bekendtgørelse 117 af 5/2/2013 om bygherrens pligter","https://www.retsinformation.dk/Forms/R0710.aspx?id=145005"]
["Krav om arbejdsmiljø4",null,"Bekendtgørelse 1516 af 14/12/2006 om bygge- og anlægsarbejde","https://www.retsinformation.dk/Forms/R0710.aspx?id=134806 "]
["Krav om arbejdsmiljø5","Krav til arbejdsgivers pligter ved bygge- og anlægsarbejde","Bekendtgørelse 1181 af 15/10/2010 om samarbejde om sikkerhed og sundhed","https://www.retsinformation.dk/Forms/R0710.aspx?id=133285"]
["Krav om arbejdsmiljø6","Krav om sikkerhedsbeklædning",null,"http://www.bane.dk/visArtikel.asp?artikelID=20504 "]
[]
[]
[]
[]
[]
[]
["Krav om miljø1","Virksomheders ansvar og pligter ifm. miljøbeskyttelse","Bekendtgørelse 1189 af 27/9/2016 af lov om miljøbeskyttelse","https://www.retsinformation.dk/Forms/R0710.aspx?id=184047 "]
["Krav om miljø2","BDK miljøkrav til entreprenører","GAB Miljø for private entreprenører ved anlægsarbejde"]
["Krav om miljø3","Anmeldelse til kommunerne af midlertidige bygge- & anlægsaktiviteter","Bekendtgørelse 467 af 23/5/2016 om miljøregulering af visse aktiviteter","https://www.retsinformation.dk/Forms/R0710.aspx?id=180164 "]
["Krav om miljø4","Retningslinjer om støj fra jernbaner og støj fra virksomheder","Vejledning om støj og vibrationer fra jernbaner 1/1997 ","http://www2.mst.dk/Udgiv/publikationer/1997/87-7810-696-6/pdf/87-7810-696-6.pdf"]
["Krav om miljø5",null,"Tillæg til vejledning 1/1997: Støj og vibrationer fra jernbaner fra juli 2007 (togstøj) ","http://mst.dk/media/mst/66271/tillaeg_til_togstoejvejledning_end.pdf "]
["Krav om miljø6",null,"Vejledning om ekstern støj fra virksomheder 5/1984","http://www2.mst.dk/Udgiv/publikationer/1984/87-503-5287-4/pdf/87-503-5287-4.pdf "]
["Krav om miljø7",null,"Supplement til vejledning om ekstern støj fra virksomheder 3/1996","http://www2.mst.dk/Udgiv/publikationer/1996/87-7810-626-5/pdf/87-7810-626-5.pdf "]
["Krav om miljø8","Jordforureningsloven ","Bekendtgørelse 1190 af 27/9/2016 af lov om forurenet jord","https://www.retsinformation.dk/Forms/R0710.aspx?id=184068 "]
["Krav om miljø9","Krav til virksomheders frasortering, opbevaring og bortskaffelse af affald","Bekendtgørelse 1309 af 18/12/2010 om affald","https://www.retsinformation.dk/Forms/R0710.aspx?id=144826"]
["Krav om miljø10",null,"Bekendtgørelse 132 af 6/2/2014 om overførsel af affald og overførsel af brugt elektrisk og elektronisk udstyr ","https://www.retsinformation.dk/Forms/R0710.aspx?id=161677"]
[]
[]
[]
[]
[]
[]
["Krav om kontrakter og arbejdsvilkår1","Direktivet for varer, tjenesteydelser, bygge- og anlægsopgaver over tærskelværdien for EU-udbud på forsyningsområderne\n(Forsyningsvirksomhedsdirektivet)","Bekendtgørelse 1624 af 15/12/2010 om fremgangsmåderne ved indgåelse af kontrakter inden for vand- og energiforsyning, samt transport samt posttjenester","https://www.retsinformation.dk/Forms/R0710.aspx?id=175817 "]
["Krav om kontrakter og arbejdsvilkår2","Direktivet for varer, tjenesteydelser, bygge- og anlægsopgaver over tærskelværdien for EU-udbud udenfor forsyningsområderne","Lov 1564 af 15/12/2015 Udbudsloven","https://www.retsinformation.dk/forms/r0710.aspx?id=175507"]
["Krav om kontrakter og arbejdsvilkår3","Aftaledokument om bygherrens og entreprenørens rettigheder og pligter","AB 92 – Almindelige betingelser for arbejder og leverancer i bygge- og anlægsvirksomhed. \nBet 4040 af 10/12/1992","https://www.retsinformation.dk/Forms/R0710.aspx?id=54914"]
["Krav om kontrakter og arbejdsvilkår4",null,"ABT 93 - Almindelige betingelser for Totalentreprise.  \nCir 25226 af 22/12/1993","https://www.retsinformation.dk/Forms/R0710.aspx?id=4238"]
["Krav om kontrakter og arbejdsvilkår5","Aftaledokument for teknisk rådgivning og bistand","ABR 89 – Almindelige bestemmelser for teknisk rådgivning og bistand. \nBst 4015 af 31/3/1990","https://www.retsinformation.dk/Forms/R0710.aspx?id=54917"]
["Krav om kontrakter og arbejdsvilkår6","Betalingsbetingelser","Leverandørportal, selfbilling","http://www.bane.dk/visArtikel.asp?artikelID=22259"]
["Krav om kontrakter og arbejdsvilkår7","Arbejdsklausuler i offentlige kontrakter","Banedanmark - Bilag til indgåelse af entreprisekontrakter – Social Ansvarlighed (CSR) og udvalgte fokusområder","http://www.bane.dk/db/filarkiv/16781/KravtilCSR.pdf"]
["Krav om kontrakter og arbejdsvilkår8",null,"ILO Konvention 94","http://bm.dk/da/Beskaeftigelsesomraadet/Arbejdsret/Internationalt%20samarbejde/ILO.aspx"]
["Krav om kontrakter og arbejdsvilkår9","Anmeldelse i RUT (Registret for Udenlandske Tjenesteydere).","Banedanmark - Bilag til indgåelse af entreprisekontrakter – Social Ansvarlighed (CSR) og udvalgte fokusområder","http://www.bane.dk/db/filarkiv/16781/KravtilCSR.pdf"]
["Krav om kontrakter og arbejdsvilkår10",null,"Registret for Udenlandske Tjenesteydere","https://indberet.virk.dk/myndigheder/stat/ERST/Registrering_af_udenlandske_tjenesteydere_RUT__Registration_of_Foreign_Services_RUT"]
["Krav om kontrakter og arbejdsvilkår11","Tilgængeligheden af relevante praktikpladser","Banedanmark - Bilag til indgåelse af entreprisekontrakter – Social Ansvarlighed (CSR) og udvalgte fokusområder","http://www.bane.dk/db/filarkiv/16781/KravtilCSR.pdf"]
["Krav om kontrakter og arbejdsvilkår12",null,"Bekendtgørelse 1077 af 8/7/2016 af lov om erhvervsuddannelser","https://www.retsinformation.dk/Forms/R0710.aspx?id=183489"]
["Krav om kontrakter og arbejdsvilkår13","Europæisk Konvention om International Transport af Farligt Gods ad Vej (ADR)","Banedanmark - Bilag til indgåelse af entreprisekontrakter – Social Ansvarlighed (CSR) og udvalgte fokusområder","http://www.bane.dk/db/filarkiv/16781/KravtilCSR.pdf"]
["Krav om kontrakter og arbejdsvilkår14",null,"Bekendtgørelse 1223 af 30/10/2015 om vejtransport af farligt gods, samt bilag 1: Europæisk Konvention om International Transport af Farligt Gods ad Vej (ADR)","https://www.retsinformation.dk/forms/R0710.aspx?id=173721"]
["Krav om kontrakter og arbejdsvilkår15","Reglement for National og International Befordring af Farligt Gods med Jernbane (RID)","Banedanmark - Bilag til indgåelse af entreprisekontrakter – Social Ansvarlighed (CSR) og udvalgte fokusområder","http://www.bane.dk/db/filarkiv/16781/KravtilCSR.pdf"]
["Krav om kontrakter og arbejdsvilkår16",null,"Bekendtgørelse 541 af 12/6/2012 om anvendelse af RID i national transport og transport af farligt gods i håndbagage m.v. (fastsætter bestemmelser om Reglement for National og International Befordring af Farligt Gods med Jernbane (RID))","https://www.retsinformation.dk/Forms/R0710.aspx?id=142003"]
["Krav om kontrakter og arbejdsvilkår17","Overholdelse af grundlæggende menneskerettigheder","Banedanmark - Bilag til indgåelse af entreprisekontrakter – Social Ansvarlighed (CSR) og udvalgte fokusområder","http://www.bane.dk/db/filarkiv/16781/KravtilCSR.pdf"]
["Krav om kontrakter og arbejdsvilkår18",null,"Bekendtgørelse 750 af 19/10/1998 af lov om Den Europæiske Menneskerettighedskonvention","https://www.retsinformation.dk/Forms/R0710.aspx?id=12"]
["Krav om kontrakter og arbejdsvilkår19","Arbejdstagerrettigheder","Banedanmark - Bilag til indgåelse af entreprisekontrakter – Social Ansvarlighed (CSR) og udvalgte fokusområder","http://www.bane.dk/db/filarkiv/16781/KravtilCSR.pdf"]
["Krav om kontrakter og arbejdsvilkår20",null,"ILO Konvention nr. 1 og 30, ILO Konvention nr. 29 og 105, ILO Konvention nr. 138 og 182\nILO Konvention nr. 87, 98 og 135, ILO Konvention nr. 26 og 131, ILO Konvention nr. 155","http://bm.dk/da/Beskaeftigelsesomraadet/Arbejdsret/Internationalt%20samarbejde/ILO.aspx"]
["Krav om kontrakter og arbejdsvilkår21",null,"FN's Menneskerettighedserklæring artikel 23, stk. 3\nFN's Menneskerettighedserklæring artikel 24                   ","http://www.ohchr.org/EN/UDHR/Documents/UDHR_Translations/dns.pdf"]
["Krav om kontrakter og arbejdsvilkår22","Anti-Korruption","Banedanmark - Bilag til indgåelse af entreprisekontrakter – Social Ansvarlighed (CSR) og udvalgte fokusområder","http://www.bane.dk/db/filarkiv/16781/KravtilCSR.pdf"]
["Krav om kontrakter og arbejdsvilkår23",null,"Artikel 3 i Rådets retsakt af 26. maj 1997 (om bekæmpelse af bestikkelse, der involverer tjenestemænd)","http://eur-lex.europa.eu/legal-content/DA/ALL/?uri=CELEX%3A32003F0568&print=true "]
["Krav om kontrakter og arbejdsvilkår24",null,"Erklæring om udelukkelsesgrunde/Declaration concerning exclusion from giving tender","https://publications.europa.eu/da/publication-detail/-/publication/a96ea44d-fcf2-48dc-9255-88ae4914e8b9/language-da"]
["Krav om kontrakter og arbejdsvilkår25",null,null,"http://www.bane.dk/visArtikel.asp?artikelID=6416&soegningID=675126&soegeord=erklæring "]
[]
[]
[]
[]
[]
[]
["Generelle krav om jernbanesikkerhed1","Sikkerhedsgodkendelse af jernbaneinfrastrukturforvaltere","Indberetning af sikkerhedshændelse","http://www.bane.dk/visArtikel.asp?artikelID=4640"]
["Generelle krav om jernbanesikkerhed2",null,"Indberetningsskema til synergi","http://www.bane.dk/visArtikelBredest.asp?artikelID=4745 "]
["Generelle krav om jernbanesikkerhed3",null,"Oversigt over hændelser der skal registreres i synergi","http://www.bane.dk/hentmedie.asp?filID=17776"]
["Generelle krav om jernbanesikkerhed4",null,"Bekendtgørelse 13 af 4/1/2007 om sikkerhedsgodkendelse af jernbaneinfrastrukturforvaltere","https://www.retsinformation.dk/Forms/R0710.aspx?id=22618"]
["Generelle krav om jernbanesikkerhed5",null,"Retningslinjer for godkendelse af entreprenører, der leverer jernbanesikkerhedsmæssige ydelser til Banedanmark","http://www.bane.dk/visArtikel.asp?artikelID=6048"]
["Generelle krav om jernbanesikkerhed6",null,"Bekendtgørelse  13 § 2, stk. 3","https://www.retsinformation.dk/Forms/R0710.aspx?id=22618 "]
["Generelle krav om jernbanesikkerhed7",null,null,"http://www.bane.dk/visArtikel.asp?artikelID=6048"]
["Generelle krav om jernbanesikkerhed8",null,"Bekendtgørelse  13 § 3, stk. 2","https://www.retsinformation.dk/Forms/R0710.aspx?id=22618 "]
["Generelle krav om jernbanesikkerhed9",null,null,"http://www.bane.dk/visArtikel.asp?artikelID=6048"]
["Generelle krav om jernbanesikkerhed10",null,"Bekendtgørelse 13 § 3, stk. 4","https://www.retsinformation.dk/Forms/R0710.aspx?id=22618 "]
["Generelle krav om jernbanesikkerhed11",null,null,"http://www.bane.dk/visArtikel.asp?artikelID=6048"]
["Generelle krav om jernbanesikkerhed12",null,"Bekendtgørelse 13 § 3, stk. 7","https://www.retsinformation.dk/Forms/R0710.aspx?id=22618 "]
["Generelle krav om jernbanesikkerhed13",null,null,"http://www.bane.dk/visArtikel.asp?artikelID=6048"]
["Generelle krav om jernbanesikkerhed14",null,"Bekendtgørelse 13 § 3, stk. 8","https://www.retsinformation.dk/Forms/R0710.aspx?id=22618 "]
["Generelle krav om jernbanesikkerhed15",null,null,"http://www.bane.dk/visArtikel.asp?artikelID=6048"]
["Generelle krav om jernbanesikkerhed16","Helbredskrav på jernbaneområdet","Bekendtgørelse 986 af 11/10/2011 om helbredskrav på jernbaneområdet, med ændringer i bekendtgørelse 892 af 7/7/2015","https://www.retsinformation.dk/forms/R0710.aspx?id=138696  "]
["Generelle krav om jernbanesikkerhed17",null,null,"https://www.retsinformation.dk/Forms/R0710.aspx?id=173279 "]
["Generelle krav om jernbanesikkerhed18","Sikkerhedscertificering af entreprenørvirksomheder på jernbaneområdet","Bekendtgørelse 626 af 15/6/2012 om sikkerhedscertificering af entreprenørvirksomheder på jernbaneområdet, med ændringer i bekendtgørelse 863 af 7/7/2015","https://www.retsinformation.dk/Forms/R0710.aspx?id=140858 "]
["Generelle krav om jernbanesikkerhed19",null,null,"https://www.retsinformation.dk/Forms/R0710.aspx?id=173264 "]
["Generelle krav om jernbanesikkerhed20","Udåndingsprøver ","Lov 686 af 27/5/2015 om jernbane § 68","https://www.retsinformation.dk/Forms/R0710.aspx?id=170457 "]
["Generelle krav om jernbanesikkerhed21",null,"Bekendtgørelse 276 af 25/3/2010 om udåndingsprøver efter lov om ","https://www.retsinformation.dk/Forms/R0710.aspx?id=130958 "]
["Generelle krav om jernbanesikkerhed22","Jernbaneloven","Lov 686 af 27/5/2015 Jernbaneloven  § 10","www.retsinformation.dk/Forms/R0710.aspx?id=170457 "]
["Generelle krav om jernbanesikkerhed23",null,"Lov 686 af 27/5/2015 Jernbaneloven § 15","www.retsinformation.dk/Forms/R0710.aspx?id=170457"]
["Generelle krav om jernbanesikkerhed24",null,"Lov 686 af 27/5/2015 Jernbaneloven § 24, stk. 1","www.retsinformation.dk/Forms/R0710.aspx?id=170457"]
["Generelle krav om jernbanesikkerhed25",null,"Lov 686 af 27/5/2015 Jernbaneloven  § 24, stk. 2","www.retsinformation.dk/Forms/R0710.aspx?id=170457"]
["Generelle krav om jernbanesikkerhed26",null,"Lov 686 af 27/5/2015 Jernbaneloven § 43","www.retsinformation.dk/Forms/R0710.aspx?id=170457"]
["Generelle krav om jernbanesikkerhed27",null,"Lov 686 af 27/5/2015 Jernbaneloven § 46","www.retsinformation.dk/Forms/R0710.aspx?id=170457"]
["Generelle krav om jernbanesikkerhed28",null,"Lov 686 af 27/5/2015 Jernbaneloven  § 69","www.retsinformation.dk/Forms/R0710.aspx?id=170457"]
[]
[]
[]
[]
[]
[]
["Sikkerhedsreglement (SR 75)1","SR arbejdsleder 1","SR1 kursus, EUSR, logbog, helbredsgodkendelse","http://www.bane.dk/visArtikel.asp?artikelID=3946"]
["Sikkerhedsreglement (SR 75)2",null,"Bekendtgørelse 986 af 11/10/2011 om helbredskrav på jernbaneområdet, med ændringer i bekendtgørelse 892 af 7/7/2015","https://www.retsinformation.dk/forms/R0710.aspx?id=138696"]
["Sikkerhedsreglement (SR 75)3",null,null,"https://www.retsinformation.dk/Forms/R0710.aspx?id=173279"]
["Sikkerhedsreglement (SR 75)4","SR arbejdsleder 2","SR2 kursus, EUSR, logbog, helbredsgodkendelse","http://www.bane.dk/visArtikel.asp?artikelID=3946"]
["Sikkerhedsreglement (SR 75)5"]
["Sikkerhedsreglement (SR 75)6",null,"Bekendtgørelse 986 af 11/10/2011 om helbredskrav på jernbaneområdet, med ændringer i bekendtgørelse 892 af 7/7/2015","https://www.retsinformation.dk/forms/R0710.aspx?id=138696 https://www.retsinformation.dk/Forms/R0710.aspx?id=173279"]
["Sikkerhedsreglement (SR 75)7","SR arbejdsleder 2 sikring","SR2 sikring kursus, sikringsmontør kursus /sikringstekniker kursus, EUSR, logbog, helbredsgodkendelse","http://www.bane.dk/visArtikel.asp?artikelID=3946"]
["Sikkerhedsreglement (SR 75)8"]
["Sikkerhedsreglement (SR 75)9",null,"Bekendtgørelse 986 af 11/10/2011 om helbredskrav på jernbaneområdet, med ændringer i bekendtgørelse 892 af 7/7/2015","https://www.retsinformation.dk/forms/R0710.aspx?id=138696"]
["Sikkerhedsreglement (SR 75)10",null,null,"https://www.retsinformation.dk/Forms/R0710.aspx?id=173279"]
["Sikkerhedsreglement (SR 75)11"]
["Sikkerhedsreglement (SR 75)12","Vagtpost","Vagtpost kursus, logbog, helbredsgodkendelse","http://www.bane.dk/visArtikel.asp?artikelID=3946"]
["Sikkerhedsreglement (SR 75)13"]
["Sikkerhedsreglement (SR 75)14",null,"Bekendtgørelse 986 af 11/10/2011 om helbredskrav på jernbaneområdet, med ændringer i bekendtgørelse 892 af 7/7/2015","https://www.retsinformation.dk/forms/R0710.aspx?id=138696"]
["Sikkerhedsreglement (SR 75)15",null,null,"https://www.retsinformation.dk/Forms/R0710.aspx?id=173279"]
[]
[]
[]
[]
[]
[]
["Kørsel1","Rangerleder","EUSR, logbog, helbredsgodkendelse","http://www.bane.dk/visArtikel.asp?artikelID=3946"]
["Kørsel2",null,"Bekendtgørelse 986 af 11/10/2011 om helbredskrav på jernbaneområdet, med ændringer i bekendtgørelse 892 af 7/7/2015","https://www.retsinformation.dk/forms/R0710.aspx?id=138696 \n"]
["Kørsel3",null,null,"https://www.retsinformation.dk/Forms/R0710.aspx?id=173279"]
["Kørsel4","Maskinfører","Maskinførerkursus, EUSR, logbog, helbredsgodkendelse","http://www.bane.dk/visArtikel.asp?artikelID=3946"]
["Kørsel5",null,"Bekendtgørelse 986 af 11/10/2011 om helbredskrav på jernbaneområdet, med ændringer i bekendtgørelse 892 af 7/7/2015","https://www.retsinformation.dk/forms/R0710.aspx?id=138696  "]
["Kørsel6",null,null,"https://www.retsinformation.dk/Forms/R0710.aspx?id=173279"]
["Kørsel7","Ledsager (lods)"," EUSR, logbog, helbredsgodkendelse","http://www.bane.dk/visArtikel.asp?artikelID=3946  "]
["Kørsel8",null,"Bekendtgørelse 986 af 11/10/2011 om helbredskrav på jernbaneområdet, med ændringer i bekendtgørelse 892 af 7/7/2015","https://www.retsinformation.dk/forms/R0710.aspx?id=138696"]
["Kørsel9",null,null,"https://www.retsinformation.dk/Forms/R0710.aspx?id=173279"]
["Kørsel10","Lokomotivfører A","Certificering af lokomotivfører, der fører trækkraftenheder på det danske jernbanet. (opfylder også krav 5)","http://www.bane.dk/visArtikel.asp?artikelID=15679"]
["Kørsel11",null,"Bekendtgørelse 985 af 11/10/2011 om certificering af lokomotivførere, med senere ændringer","https://www.retsinformation.dk/Forms/R0710.aspx?id=138693"]
["Kørsel12",null,"Sikkerhedsklassificerede funktioner må kun udføres af personer, som har opnået helbredsgodkendelse af Trafikstyrelsen. (opfylder også krav 5)","https://www.retsinformation.dk/forms/R0710.aspx?id=138696"]
["Kørsel13",null,"Bekendtgørelse 986 af 11/10/2011 om helbredskrav på jernbaneområdet, med ændringer i bekendtgørelse 892 af 7/7/2015","https://www.retsinformation.dk/Forms/R0710.aspx?id=173279"]
["Kørsel14","Lokomotivfører B","Certificering af lokomotivfører, der fører trækkraftenheder på det danske jernbanet. (opfylder også krav 5)"]
["Kørsel15",null,"Bekendtgørelse 985 af 11/10/2011 om certificering af lokomotivførere, med senere ændringer","https://www.retsinformation.dk/Forms/R0710.aspx?id=138693"]
["Kørsel16",null,"Sikkerhedsklassificerede funktioner må kun udføres af personer, som har opnået helbredsgodkendelse af Trafikstyrelsen. (opfylder også krav 5)"]
["Kørsel17",null,"Bekendtgørelse 986 af 11/10/2011 om helbredskrav på jernbaneområdet, med ændringer i bekendtgørelse 892 af 7/7/2015","https://www.retsinformation.dk/forms/R0710.aspx?id=138696"]
[]
[]
[]
[]
[]
[]
["Togklargøring1","Togklargøring","Togklargøringskursus","http://www.bane.dk/visArtikel.asp?artikelID=3946"]
[]
[]
[]
[]
[]
[]
["Jernbanesikkerhedsplaner1","Jernbanesikkerhedsplaner","SR1, SR2, SR2 sikring","http://www.bane.dk/visArtikel.asp?artikelID=3946"]
["Jernbanesikkerhedsplaner2","Jernbanesikkerhedsplaner (SR 2 adm)","SR2 administrativ","http://www.bane.dk/visArtikel.asp?artikelID=3946"]
[]
[]
[]
[]
[]
[]
["Rullende materiel1","Sikkerhedsgodkendelse af jernbaneinfrastrukturforvaltere","Bekendtgørelse  13 § 3, stk. 6","https://www.retsinformation.dk/Forms/R0710.aspx?id=22618 "]
["Rullende materiel2",null,"Retningslinjer for godkendelse af entreprenører, der leverer jernbanesikkerhedsmæssige ydelser til Banedanmark","http://www.bane.dk/visArtikel.asp?artikelID=6048"]
["Rullende materiel3","Godkendelse af køretøjer på jernbaneområdet","Bekendtgørelse  653 af 8/5/2015 om godkendelse af køretøjer på jernbaneområdet, med ændringer i bekendtgørelse 859 af 7/7/2015","https://www.retsinformation.dk/Forms/R0710.aspx?id=170061"]
["Rullende materiel4","Registrering af køretøjer på jernbaneområdet","Bekendtgørelse 1071 af 23/11/2011 om registrering af køretøjer på jernbaneområdet, med ændringer i bekendtgørelse 1384 af 9/12/2013","https://www.retsinformation.dk/Forms/R0710.aspx?id=139206"]
["Rullende materiel5","Tekniske krav til arbejdskøretøjer på jernbanenettet","Bekendtgørelse  542 af 12/6/2012 om tekniske krav til arbejdskøretøjer på jernbanenettet","https://www.retsinformation.dk/Forms/R0710.aspx?id=142253 "]
["Rullende materiel6","Kørsel på jernbaneinfrastruktur med togkontrol","Bekendtgørelse 11275 af 30/11/2015 om kørsel på infrastruktur med togkontrol BJ 5-4-2015","https://www.retsinformation.dk/forms/R0710.aspx?id=176000 "]
[]
[]
[]
[]
[]
[]
["Faglige ydelser1","Sporteknisk",null,"http://www.bane.dk/visArtikel.asp?artikelID=22740"]
["Faglige ydelser2",null,null,"http://www.bane.dk/visBanenormer.asp?artikelID=6639"]
["Faglige ydelser3","Sikringsteknisk",null,"http://www.bane.dk/visArtikel.asp?artikelID=22740"]
["Faglige ydelser4",null,null,"http://www.bane.dk/visBanenormer.asp?artikelID=6639"]
["Faglige ydelser5","Svejserteknisk",null,"http://www.bane.dk/visArtikel.asp?artikelID=22740"]
["Faglige ydelser6",null,null,"http://www.bane.dk/visBanenormer.asp?artikelID=6639"]
["Faglige ydelser7","Kørestrømteknisk",null,"http://www.bane.dk/visArtikel.asp?artikelID=22740"]
["Faglige ydelser8",null,null,"http://www.bane.dk/visBanenormer.asp?artikelID=6639"]
["Faglige ydelser9","Forst",null,"http://www.bane.dk/visArtikel.asp?artikelID=22740"]
["Faglige ydelser10",null,null,"http://www.bane.dk/visBanenormer.asp?artikelID=6639"]
["Faglige ydelser11","Måleteknisk",null,"http://www.bane.dk/visArtikel.asp?artikelID=22740"]
["Faglige ydelser12",null,null,"http://www.bane.dk/visBanenormer.asp?artikelID=6639"]
["Faglige ydelser13","Stærkstrøm",null,"http://www.bane.dk/visArtikel.asp?artikelID=22740"]
["Faglige ydelser14",null,null,"http://www.bane.dk/visBanenormer.asp?artikelID=6639"]
["Faglige ydelser15","Værkstedsydelser (rullende materiel)",null,"http://www.bane.dk/visArtikel.asp?artikelID=22740"]
["Faglige ydelser16",null,null,"http://www.bane.dk/visBanenormer.asp?artikelID=6639"]
["Faglige ydelser17","Signal",null,"http://www.bane.dk/visArtikel.asp?artikelID=22740"]
["Faglige ydelser18",null,null,"http://www.bane.dk/visBanenormer.asp?artikelID=6639"]

{"sheet":"Øvrige Krav","index":3,"n_rows":40,"n_cols":5,"rows_kept":40,"cut":false,"hidden":true,"merged":[]}
["Øvrige Krav",{"$f":"CONCATENATE(A1,\" - \",C6)","v":"Øvrige Krav - (Vælg)"}]
["Øvrige Krav"]
[]
[null,"Gemt/udskrevet af:",{"$f":"Fagkompetencekrav!F32","v":"Hasse Kruse; HPET"},{"$f":"NOW()","v":"2017-05-01T16:08:21.930"}]
[]
[null,"Ydelseskategori","(Vælg)"]
[]
[]
[]
[]
[null,2,3,4]
[null,"Ydelsestype","Kravliste","Links"]
[{"$f":"CONCATENATE($C$6,E13)","v":"(Vælg)1"},{"$f":"IFERROR(IF(VLOOKUP($A13,Øvrige_Krav_DATA!$A:$D,B$11,FALSE)=0,\"\",VLOOKUP($A13,Øvrige_Krav_DATA!$A:$D,B$11,FALSE)),\"\")","v":""},{"$f":"IFERROR(IF(VLOOKUP($A13,Øvrige_Krav_DATA!$A:$D,C$11,FALSE)=0,\"\",VLOOKUP($A13,Øvrige_Krav_DATA!$A:$D,C$11,FALSE)),\"\")","v":""},{"$f":"IFERROR(IF(HYPERLINK(VLOOKUP($A13,Øvrige_Krav_DATA!$A:$D,D$11,FALSE),VLOOKUP($A13,Øvrige_Krav_DATA!$A:$D,D$11,FALSE))=0,\"\",HYPERLINK(VLOOKUP($A13,Øvrige_Krav_DATA!$A:$D,D$11,FALSE),VLOOKUP($A13,Øvrige_Krav_DATA!$A:$D,D$11,FALSE))),\"\")","v":""},1]
[{"$f":"CONCATENATE($C$6,E14)","v":"(Vælg)2"},{"$f":"IFERROR(IF(VLOOKUP($A14,Øvrige_Krav_DATA!$A:$D,B$11,FALSE)=0,\"\",VLOOKUP($A14,Øvrige_Krav_DATA!$A:$D,B$11,FALSE)),\"\")","v":""},{"$f":"IFERROR(IF(VLOOKUP($A14,Øvrige_Krav_DATA!$A:$D,C$11,FALSE)=0,\"\",VLOOKUP($A14,Øvrige_Krav_DATA!$A:$D,C$11,FALSE)),\"\")","v":""},{"$f":"IFERROR(IF(HYPERLINK(VLOOKUP($A14,Øvrige_Krav_DATA!$A:$D,D$11,FALSE),VLOOKUP($A14,Øvrige_Krav_DATA!$A:$D,D$11,FALSE))=0,\"\",HYPERLINK(VLOOKUP($A14,Øvrige_Krav_DATA!$A:$D,D$11,FALSE),VLOOKUP($A14,Øvrige_Krav_DATA!$A:$D,D$11,FALSE))),\"\")","v":""},2]
["(Vælg)3",{"$f":"IFERROR(IF(VLOOKUP($A15,Øvrige_Krav_DATA!$A:$D,B$11,FALSE)=0,\"\",VLOOKUP($A15,Øvrige_Krav_DATA!$A:$D,B$11,FALSE)),\"\")","v":""},{"$f":"IFERROR(IF(VLOOKUP($A15,Øvrige_Krav_DATA!$A:$D,C$11,FALSE)=0,\"\",VLOOKUP($A15,Øvrige_Krav_DATA!$A:$D,C$11,FALSE)),\"\")","v":""},{"$f":"IFERROR(IF(HYPERLINK(VLOOKUP($A15,Øvrige_Krav_DATA!$A:$D,D$11,FALSE),VLOOKUP($A15,Øvrige_Krav_DATA!$A:$D,D$11,FALSE))=0,\"\",HYPERLINK(VLOOKUP($A15,Øvrige_Krav_DATA!$A:$D,D$11,FALSE),VLOOKUP($A15,Øvrige_Krav_DATA!$A:$D,D$11,FALSE))),\"\")","v":""},3]
["(Vælg)4",{"$f":"IFERROR(IF(VLOOKUP($A16,Øvrige_Krav_DATA!$A:$D,B$11,FALSE)=0,\"\",VLOOKUP($A16,Øvrige_Krav_DATA!$A:$D,B$11,FALSE)),\"\")","v":""},{"$f":"IFERROR(IF(VLOOKUP($A16,Øvrige_Krav_DATA!$A:$D,C$11,FALSE)=0,\"\",VLOOKUP($A16,Øvrige_Krav_DATA!$A:$D,C$11,FALSE)),\"\")","v":""},{"$f":"IFERROR(IF(HYPERLINK(VLOOKUP($A16,Øvrige_Krav_DATA!$A:$D,D$11,FALSE),VLOOKUP($A16,Øvrige_Krav_DATA!$A:$D,D$11,FALSE))=0,\"\",HYPERLINK(VLOOKUP($A16,Øvrige_Krav_DATA!$A:$D,D$11,FALSE),VLOOKUP($A16,Øvrige_Krav_DATA!$A:$D,D$11,FALSE))),\"\")","v":""},4]
["(Vælg)5",{"$f":"IFERROR(IF(VLOOKUP($A17,Øvrige_Krav_DATA!$A:$D,B$11,FALSE)=0,\"\",VLOOKUP($A17,Øvrige_Krav_DATA!$A:$D,B$11,FALSE)),\"\")","v":""},{"$f":"IFERROR(IF(VLOOKUP($A17,Øvrige_Krav_DATA!$A:$D,C$11,FALSE)=0,\"\",VLOOKUP($A17,Øvrige_Krav_DATA!$A:$D,C$11,FALSE)),\"\")","v":""},{"$f":"IFERROR(IF(HYPERLINK(VLOOKUP($A17,Øvrige_Krav_DATA!$A:$D,D$11,FALSE),VLOOKUP($A17,Øvrige_Krav_DATA!$A:$D,D$11,FALSE))=0,\"\",HYPERLINK(VLOOKUP($A17,Øvrige_Krav_DATA!$A:$D,D$11,FALSE),VLOOKUP($A17,Øvrige_Krav_DATA!$A:$D,D$11,FALSE))),\"\")","v":""},5]
["(Vælg)6",{"$f":"IFERROR(IF(VLOOKUP($A18,Øvrige_Krav_DATA!$A:$D,B$11,FALSE)=0,\"\",VLOOKUP($A18,Øvrige_Krav_DATA!$A:$D,B$11,FALSE)),\"\")","v":""},{"$f":"IFERROR(IF(VLOOKUP($A18,Øvrige_Krav_DATA!$A:$D,C$11,FALSE)=0,\"\",VLOOKUP($A18,Øvrige_Krav_DATA!$A:$D,C$11,FALSE)),\"\")","v":""},{"$f":"IFERROR(IF(HYPERLINK(VLOOKUP($A18,Øvrige_Krav_DATA!$A:$D,D$11,FALSE),VLOOKUP($A18,Øvrige_Krav_DATA!$A:$D,D$11,FALSE))=0,\"\",HYPERLINK(VLOOKUP($A18,Øvrige_Krav_DATA!$A:$D,D$11,FALSE),VLOOKUP($A18,Øvrige_Krav_DATA!$A:$D,D$11,FALSE))),\"\")","v":""},6]
["(Vælg)7",{"$f":"IFERROR(IF(VLOOKUP($A19,Øvrige_Krav_DATA!$A:$D,B$11,FALSE)=0,\"\",VLOOKUP($A19,Øvrige_Krav_DATA!$A:$D,B$11,FALSE)),\"\")","v":""},{"$f":"IFERROR(IF(VLOOKUP($A19,Øvrige_Krav_DATA!$A:$D,C$11,FALSE)=0,\"\",VLOOKUP($A19,Øvrige_Krav_DATA!$A:$D,C$11,FALSE)),\"\")","v":""},{"$f":"IFERROR(IF(HYPERLINK(VLOOKUP($A19,Øvrige_Krav_DATA!$A:$D,D$11,FALSE),VLOOKUP($A19,Øvrige_Krav_DATA!$A:$D,D$11,FALSE))=0,\"\",HYPERLINK(VLOOKUP($A19,Øvrige_Krav_DATA!$A:$D,D$11,FALSE),VLOOKUP($A19,Øvrige_Krav_DATA!$A:$D,D$11,FALSE))),\"\")","v":""},7]
["(Vælg)8",{"$f":"IFERROR(IF(VLOOKUP($A20,Øvrige_Krav_DATA!$A:$D,B$11,FALSE)=0,\"\",VLOOKUP($A20,Øvrige_Krav_DATA!$A:$D,B$11,FALSE)),\"\")","v":""},{"$f":"IFERROR(IF(VLOOKUP($A20,Øvrige_Krav_DATA!$A:$D,C$11,FALSE)=0,\"\",VLOOKUP($A20,Øvrige_Krav_DATA!$A:$D,C$11,FALSE)),\"\")","v":""},{"$f":"IFERROR(IF(HYPERLINK(VLOOKUP($A20,Øvrige_Krav_DATA!$A:$D,D$11,FALSE),VLOOKUP($A20,Øvrige_Krav_DATA!$A:$D,D$11,FALSE))=0,\"\",HYPERLINK(VLOOKUP($A20,Øvrige_Krav_DATA!$A:$D,D$11,FALSE),VLOOKUP($A20,Øvrige_Krav_DATA!$A:$D,D$11,FALSE))),\"\")","v":""},8]
["(Vælg)9",{"$f":"IFERROR(IF(VLOOKUP($A21,Øvrige_Krav_DATA!$A:$D,B$11,FALSE)=0,\"\",VLOOKUP($A21,Øvrige_Krav_DATA!$A:$D,B$11,FALSE)),\"\")","v":""},{"$f":"IFERROR(IF(VLOOKUP($A21,Øvrige_Krav_DATA!$A:$D,C$11,FALSE)=0,\"\",VLOOKUP($A21,Øvrige_Krav_DATA!$A:$D,C$11,FALSE)),\"\")","v":""},{"$f":"IFERROR(IF(HYPERLINK(VLOOKUP($A21,Øvrige_Krav_DATA!$A:$D,D$11,FALSE),VLOOKUP($A21,Øvrige_Krav_DATA!$A:$D,D$11,FALSE))=0,\"\",HYPERLINK(VLOOKUP($A21,Øvrige_Krav_DATA!$A:$D,D$11,FALSE),VLOOKUP($A21,Øvrige_Krav_DATA!$A:$D,D$11,FALSE))),\"\")","v":""},9]
["(Vælg)10",{"$f":"IFERROR(IF(VLOOKUP($A22,Øvrige_Krav_DATA!$A:$D,B$11,FALSE)=0,\"\",VLOOKUP($A22,Øvrige_Krav_DATA!$A:$D,B$11,FALSE)),\"\")","v":""},{"$f":"IFERROR(IF(VLOOKUP($A22,Øvrige_Krav_DATA!$A:$D,C$11,FALSE)=0,\"\",VLOOKUP($A22,Øvrige_Krav_DATA!$A:$D,C$11,FALSE)),\"\")","v":""},{"$f":"IFERROR(IF(HYPERLINK(VLOOKUP($A22,Øvrige_Krav_DATA!$A:$D,D$11,FALSE),VLOOKUP($A22,Øvrige_Krav_DATA!$A:$D,D$11,FALSE))=0,\"\",HYPERLINK(VLOOKUP($A22,Øvrige_Krav_DATA!$A:$D,D$11,FALSE),VLOOKUP($A22,Øvrige_Krav_DATA!$A:$D,D$11,FALSE))),\"\")","v":""},10]
["(Vælg)11",{"$f":"IFERROR(IF(VLOOKUP($A23,Øvrige_Krav_DATA!$A:$D,B$11,FALSE)=0,\"\",VLOOKUP($A23,Øvrige_Krav_DATA!$A:$D,B$11,FALSE)),\"\")","v":""},{"$f":"IFERROR(IF(VLOOKUP($A23,Øvrige_Krav_DATA!$A:$D,C$11,FALSE)=0,\"\",VLOOKUP($A23,Øvrige_Krav_DATA!$A:$D,C$11,FALSE)),\"\")","v":""},{"$f":"IFERROR(IF(HYPERLINK(VLOOKUP($A23,Øvrige_Krav_DATA!$A:$D,D$11,FALSE),VLOOKUP($A23,Øvrige_Krav_DATA!$A:$D,D$11,FALSE))=0,\"\",HYPERLINK(VLOOKUP($A23,Øvrige_Krav_DATA!$A:$D,D$11,FALSE),VLOOKUP($A23,Øvrige_Krav_DATA!$A:$D,D$11,FALSE))),\"\")","v":""},11]
["(Vælg)12",{"$f":"IFERROR(IF(VLOOKUP($A24,Øvrige_Krav_DATA!$A:$D,B$11,FALSE)=0,\"\",VLOOKUP($A24,Øvrige_Krav_DATA!$A:$D,B$11,FALSE)),\"\")","v":""},{"$f":"IFERROR(IF(VLOOKUP($A24,Øvrige_Krav_DATA!$A:$D,C$11,FALSE)=0,\"\",VLOOKUP($A24,Øvrige_Krav_DATA!$A:$D,C$11,FALSE)),\"\")","v":""},{"$f":"IFERROR(IF(HYPERLINK(VLOOKUP($A24,Øvrige_Krav_DATA!$A:$D,D$11,FALSE),VLOOKUP($A24,Øvrige_Krav_DATA!$A:$D,D$11,FALSE))=0,\"\",HYPERLINK(VLOOKUP($A24,Øvrige_Krav_DATA!$A:$D,D$11,FALSE),VLOOKUP($A24,Øvrige_Krav_DATA!$A:$D,D$11,FALSE))),\"\")","v":""},12]
["(Vælg)13",{"$f":"IFERROR(IF(VLOOKUP($A25,Øvrige_Krav_DATA!$A:$D,B$11,FALSE)=0,\"\",VLOOKUP($A25,Øvrige_Krav_DATA!$A:$D,B$11,FALSE)),\"\")","v":""},{"$f":"IFERROR(IF(VLOOKUP($A25,Øvrige_Krav_DATA!$A:$D,C$11,FALSE)=0,\"\",VLOOKUP($A25,Øvrige_Krav_DATA!$A:$D,C$11,FALSE)),\"\")","v":""},{"$f":"IFERROR(IF(HYPERLINK(VLOOKUP($A25,Øvrige_Krav_DATA!$A:$D,D$11,FALSE),VLOOKUP($A25,Øvrige_Krav_DATA!$A:$D,D$11,FALSE))=0,\"\",HYPERLINK(VLOOKUP($A25,Øvrige_Krav_DATA!$A:$D,D$11,FALSE),VLOOKUP($A25,Øvrige_Krav_DATA!$A:$D,D$11,FALSE))),\"\")","v":""},13]
["(Vælg)14",{"$f":"IFERROR(IF(VLOOKUP($A26,Øvrige_Krav_DATA!$A:$D,B$11,FALSE)=0,\"\",VLOOKUP($A26,Øvrige_Krav_DATA!$A:$D,B$11,FALSE)),\"\")","v":""},{"$f":"IFERROR(IF(VLOOKUP($A26,Øvrige_Krav_DATA!$A:$D,C$11,FALSE)=0,\"\",VLOOKUP($A26,Øvrige_Krav_DATA!$A:$D,C$11,FALSE)),\"\")","v":""},{"$f":"IFERROR(IF(HYPERLINK(VLOOKUP($A26,Øvrige_Krav_DATA!$A:$D,D$11,FALSE),VLOOKUP($A26,Øvrige_Krav_DATA!$A:$D,D$11,FALSE))=0,\"\",HYPERLINK(VLOOKUP($A26,Øvrige_Krav_DATA!$A:$D,D$11,FALSE),VLOOKUP($A26,Øvrige_Krav_DATA!$A:$D,D$11,FALSE))),\"\")","v":""},14]
["(Vælg)15",{"$f":"IFERROR(IF(VLOOKUP($A27,Øvrige_Krav_DATA!$A:$D,B$11,FALSE)=0,\"\",VLOOKUP($A27,Øvrige_Krav_DATA!$A:$D,B$11,FALSE)),\"\")","v":""},{"$f":"IFERROR(IF(VLOOKUP($A27,Øvrige_Krav_DATA!$A:$D,C$11,FALSE)=0,\"\",VLOOKUP($A27,Øvrige_Krav_DATA!$A:$D,C$11,FALSE)),\"\")","v":""},{"$f":"IFERROR(IF(HYPERLINK(VLOOKUP($A27,Øvrige_Krav_DATA!$A:$D,D$11,FALSE),VLOOKUP($A27,Øvrige_Krav_DATA!$A:$D,D$11,FALSE))=0,\"\",HYPERLINK(VLOOKUP($A27,Øvrige_Krav_DATA!$A:$D,D$11,FALSE),VLOOKUP($A27,Øvrige_Krav_DATA!$A:$D,D$11,FALSE))),\"\")","v":""},15]
["(Vælg)16",{"$f":"IFERROR(IF(VLOOKUP($A28,Øvrige_Krav_DATA!$A:$D,B$11,FALSE)=0,\"\",VLOOKUP($A28,Øvrige_Krav_DATA!$A:$D,B$11,FALSE)),\"\")","v":""},{"$f":"IFERROR(IF(VLOOKUP($A28,Øvrige_Krav_DATA!$A:$D,C$11,FALSE)=0,\"\",VLOOKUP($A28,Øvrige_Krav_DATA!$A:$D,C$11,FALSE)),\"\")","v":""},{"$f":"IFERROR(IF(HYPERLINK(VLOOKUP($A28,Øvrige_Krav_DATA!$A:$D,D$11,FALSE),VLOOKUP($A28,Øvrige_Krav_DATA!$A:$D,D$11,FALSE))=0,\"\",HYPERLINK(VLOOKUP($A28,Øvrige_Krav_DATA!$A:$D,D$11,FALSE),VLOOKUP($A28,Øvrige_Krav_DATA!$A:$D,D$11,FALSE))),\"\")","v":""},16]
["(Vælg)17",{"$f":"IFERROR(IF(VLOOKUP($A29,Øvrige_Krav_DATA!$A:$D,B$11,FALSE)=0,\"\",VLOOKUP($A29,Øvrige_Krav_DATA!$A:$D,B$11,FALSE)),\"\")","v":""},{"$f":"IFERROR(IF(VLOOKUP($A29,Øvrige_Krav_DATA!$A:$D,C$11,FALSE)=0,\"\",VLOOKUP($A29,Øvrige_Krav_DATA!$A:$D,C$11,FALSE)),\"\")","v":""},{"$f":"IFERROR(IF(HYPERLINK(VLOOKUP($A29,Øvrige_Krav_DATA!$A:$D,D$11,FALSE),VLOOKUP($A29,Øvrige_Krav_DATA!$A:$D,D$11,FALSE))=0,\"\",HYPERLINK(VLOOKUP($A29,Øvrige_Krav_DATA!$A:$D,D$11,FALSE),VLOOKUP($A29,Øvrige_Krav_DATA!$A:$D,D$11,FALSE))),\"\")","v":""},17]
["(Vælg)18",{"$f":"IFERROR(IF(VLOOKUP($A30,Øvrige_Krav_DATA!$A:$D,B$11,FALSE)=0,\"\",VLOOKUP($A30,Øvrige_Krav_DATA!$A:$D,B$11,FALSE)),\"\")","v":""},{"$f":"IFERROR(IF(VLOOKUP($A30,Øvrige_Krav_DATA!$A:$D,C$11,FALSE)=0,\"\",VLOOKUP($A30,Øvrige_Krav_DATA!$A:$D,C$11,FALSE)),\"\")","v":""},{"$f":"IFERROR(IF(HYPERLINK(VLOOKUP($A30,Øvrige_Krav_DATA!$A:$D,D$11,FALSE),VLOOKUP($A30,Øvrige_Krav_DATA!$A:$D,D$11,FALSE))=0,\"\",HYPERLINK(VLOOKUP($A30,Øvrige_Krav_DATA!$A:$D,D$11,FALSE),VLOOKUP($A30,Øvrige_Krav_DATA!$A:$D,D$11,FALSE))),\"\")","v":""},18]
["(Vælg)19",{"$f":"IFERROR(IF(VLOOKUP($A31,Øvrige_Krav_DATA!$A:$D,B$11,FALSE)=0,\"\",VLOOKUP($A31,Øvrige_Krav_DATA!$A:$D,B$11,FALSE)),\"\")","v":""},{"$f":"IFERROR(IF(VLOOKUP($A31,Øvrige_Krav_DATA!$A:$D,C$11,FALSE)=0,\"\",VLOOKUP($A31,Øvrige_Krav_DATA!$A:$D,C$11,FALSE)),\"\")","v":""},{"$f":"IFERROR(IF(HYPERLINK(VLOOKUP($A31,Øvrige_Krav_DATA!$A:$D,D$11,FALSE),VLOOKUP($A31,Øvrige_Krav_DATA!$A:$D,D$11,FALSE))=0,\"\",HYPERLINK(VLOOKUP($A31,Øvrige_Krav_DATA!$A:$D,D$11,FALSE),VLOOKUP($A31,Øvrige_Krav_DATA!$A:$D,D$11,FALSE))),\"\")","v":""},19]
["(Vælg)20",{"$f":"IFERROR(IF(VLOOKUP($A32,Øvrige_Krav_DATA!$A:$D,B$11,FALSE)=0,\"\",VLOOKUP($A32,Øvrige_Krav_DATA!$A:$D,B$11,FALSE)),\"\")","v":""},{"$f":"IFERROR(IF(VLOOKUP($A32,Øvrige_Krav_DATA!$A:$D,C$11,FALSE)=0,\"\",VLOOKUP($A32,Øvrige_Krav_DATA!$A:$D,C$11,FALSE)),\"\")","v":""},{"$f":"IFERROR(IF(HYPERLINK(VLOOKUP($A32,Øvrige_Krav_DATA!$A:$D,D$11,FALSE),VLOOKUP($A32,Øvrige_Krav_DATA!$A:$D,D$11,FALSE))=0,\"\",HYPERLINK(VLOOKUP($A32,Øvrige_Krav_DATA!$A:$D,D$11,FALSE),VLOOKUP($A32,Øvrige_Krav_DATA!$A:$D,D$11,FALSE))),\"\")","v":""},20]
["(Vælg)21",{"$f":"IFERROR(IF(VLOOKUP($A33,Øvrige_Krav_DATA!$A:$D,B$11,FALSE)=0,\"\",VLOOKUP($A33,Øvrige_Krav_DATA!$A:$D,B$11,FALSE)),\"\")","v":""},{"$f":"IFERROR(IF(VLOOKUP($A33,Øvrige_Krav_DATA!$A:$D,C$11,FALSE)=0,\"\",VLOOKUP($A33,Øvrige_Krav_DATA!$A:$D,C$11,FALSE)),\"\")","v":""},{"$f":"IFERROR(IF(HYPERLINK(VLOOKUP($A33,Øvrige_Krav_DATA!$A:$D,D$11,FALSE),VLOOKUP($A33,Øvrige_Krav_DATA!$A:$D,D$11,FALSE))=0,\"\",HYPERLINK(VLOOKUP($A33,Øvrige_Krav_DATA!$A:$D,D$11,FALSE),VLOOKUP($A33,Øvrige_Krav_DATA!$A:$D,D$11,FALSE))),\"\")","v":""},21]
["(Vælg)22",{"$f":"IFERROR(IF(VLOOKUP($A34,Øvrige_Krav_DATA!$A:$D,B$11,FALSE)=0,\"\",VLOOKUP($A34,Øvrige_Krav_DATA!$A:$D,B$11,FALSE)),\"\")","v":""},{"$f":"IFERROR(IF(VLOOKUP($A34,Øvrige_Krav_DATA!$A:$D,C$11,FALSE)=0,\"\",VLOOKUP($A34,Øvrige_Krav_DATA!$A:$D,C$11,FALSE)),\"\")","v":""},{"$f":"IFERROR(IF(HYPERLINK(VLOOKUP($A34,Øvrige_Krav_DATA!$A:$D,D$11,FALSE),VLOOKUP($A34,Øvrige_Krav_DATA!$A:$D,D$11,FALSE))=0,\"\",HYPERLINK(VLOOKUP($A34,Øvrige_Krav_DATA!$A:$D,D$11,FALSE),VLOOKUP($A34,Øvrige_Krav_DATA!$A:$D,D$11,FALSE))),\"\")","v":""},22]
["(Vælg)23",{"$f":"IFERROR(IF(VLOOKUP($A35,Øvrige_Krav_DATA!$A:$D,B$11,FALSE)=0,\"\",VLOOKUP($A35,Øvrige_Krav_DATA!$A:$D,B$11,FALSE)),\"\")","v":""},{"$f":"IFERROR(IF(VLOOKUP($A35,Øvrige_Krav_DATA!$A:$D,C$11,FALSE)=0,\"\",VLOOKUP($A35,Øvrige_Krav_DATA!$A:$D,C$11,FALSE)),\"\")","v":""},{"$f":"IFERROR(IF(HYPERLINK(VLOOKUP($A35,Øvrige_Krav_DATA!$A:$D,D$11,FALSE),VLOOKUP($A35,Øvrige_Krav_DATA!$A:$D,D$11,FALSE))=0,\"\",HYPERLINK(VLOOKUP($A35,Øvrige_Krav_DATA!$A:$D,D$11,FALSE),VLOOKUP($A35,Øvrige_Krav_DATA!$A:$D,D$11,FALSE))),\"\")","v":""},23]
["(Vælg)24",{"$f":"IFERROR(IF(VLOOKUP($A36,Øvrige_Krav_DATA!$A:$D,B$11,FALSE)=0,\"\",VLOOKUP($A36,Øvrige_Krav_DATA!$A:$D,B$11,FALSE)),\"\")","v":""},{"$f":"IFERROR(IF(VLOOKUP($A36,Øvrige_Krav_DATA!$A:$D,C$11,FALSE)=0,\"\",VLOOKUP($A36,Øvrige_Krav_DATA!$A:$D,C$11,FALSE)),\"\")","v":""},{"$f":"IFERROR(IF(HYPERLINK(VLOOKUP($A36,Øvrige_Krav_DATA!$A:$D,D$11,FALSE),VLOOKUP($A36,Øvrige_Krav_DATA!$A:$D,D$11,FALSE))=0,\"\",HYPERLINK(VLOOKUP($A36,Øvrige_Krav_DATA!$A:$D,D$11,FALSE),VLOOKUP($A36,Øvrige_Krav_DATA!$A:$D,D$11,FALSE))),\"\")","v":""},24]
["(Vælg)25",{"$f":"IFERROR(IF(VLOOKUP($A37,Øvrige_Krav_DATA!$A:$D,B$11,FALSE)=0,\"\",VLOOKUP($A37,Øvrige_Krav_DATA!$A:$D,B$11,FALSE)),\"\")","v":""},{"$f":"IFERROR(IF(VLOOKUP($A37,Øvrige_Krav_DATA!$A:$D,C$11,FALSE)=0,\"\",VLOOKUP($A37,Øvrige_Krav_DATA!$A:$D,C$11,FALSE)),\"\")","v":""},{"$f":"IFERROR(IF(HYPERLINK(VLOOKUP($A37,Øvrige_Krav_DATA!$A:$D,D$11,FALSE),VLOOKUP($A37,Øvrige_Krav_DATA!$A:$D,D$11,FALSE))=0,\"\",HYPERLINK(VLOOKUP($A37,Øvrige_Krav_DATA!$A:$D,D$11,FALSE),VLOOKUP($A37,Øvrige_Krav_DATA!$A:$D,D$11,FALSE))),\"\")","v":""},25]
["(Vælg)26",{"$f":"IFERROR(IF(VLOOKUP($A38,Øvrige_Krav_DATA!$A:$D,B$11,FALSE)=0,\"\",VLOOKUP($A38,Øvrige_Krav_DATA!$A:$D,B$11,FALSE)),\"\")","v":""},{"$f":"IFERROR(IF(VLOOKUP($A38,Øvrige_Krav_DATA!$A:$D,C$11,FALSE)=0,\"\",VLOOKUP($A38,Øvrige_Krav_DATA!$A:$D,C$11,FALSE)),\"\")","v":""},{"$f":"IFERROR(IF(HYPERLINK(VLOOKUP($A38,Øvrige_Krav_DATA!$A:$D,D$11,FALSE),VLOOKUP($A38,Øvrige_Krav_DATA!$A:$D,D$11,FALSE))=0,\"\",HYPERLINK(VLOOKUP($A38,Øvrige_Krav_DATA!$A:$D,D$11,FALSE),VLOOKUP($A38,Øvrige_Krav_DATA!$A:$D,D$11,FALSE))),\"\")","v":""},26]
["(Vælg)27",{"$f":"IFERROR(IF(VLOOKUP($A39,Øvrige_Krav_DATA!$A:$D,B$11,FALSE)=0,\"\",VLOOKUP($A39,Øvrige_Krav_DATA!$A:$D,B$11,FALSE)),\"\")","v":""},{"$f":"IFERROR(IF(VLOOKUP($A39,Øvrige_Krav_DATA!$A:$D,C$11,FALSE)=0,\"\",VLOOKUP($A39,Øvrige_Krav_DATA!$A:$D,C$11,FALSE)),\"\")","v":""},{"$f":"IFERROR(IF(HYPERLINK(VLOOKUP($A39,Øvrige_Krav_DATA!$A:$D,D$11,FALSE),VLOOKUP($A39,Øvrige_Krav_DATA!$A:$D,D$11,FALSE))=0,\"\",HYPERLINK(VLOOKUP($A39,Øvrige_Krav_DATA!$A:$D,D$11,FALSE),VLOOKUP($A39,Øvrige_Krav_DATA!$A:$D,D$11,FALSE))),\"\")","v":""},27]
["(Vælg)28",{"$f":"IFERROR(IF(VLOOKUP($A40,Øvrige_Krav_DATA!$A:$D,B$11,FALSE)=0,\"\",VLOOKUP($A40,Øvrige_Krav_DATA!$A:$D,B$11,FALSE)),\"\")","v":""},{"$f":"IFERROR(IF(VLOOKUP($A40,Øvrige_Krav_DATA!$A:$D,C$11,FALSE)=0,\"\",VLOOKUP($A40,Øvrige_Krav_DATA!$A:$D,C$11,FALSE)),\"\")","v":""},{"$f":"IFERROR(IF(HYPERLINK(VLOOKUP($A40,Øvrige_Krav_DATA!$A:$D,D$11,FALSE),VLOOKUP($A40,Øvrige_Krav_DATA!$A:$D,D$11,FALSE))=0,\"\",HYPERLINK(VLOOKUP($A40,Øvrige_Krav_DATA!$A:$D,D$11,FALSE),VLOOKUP($A40,Øvrige_Krav_DATA!$A:$D,D$11,FALSE))),\"\")","v":""},28]

{"sheet":"Fagkompetencekrav","index":4,"n_rows":36,"n_cols":12,"rows_kept":36,"cut":false,"hidden":true,"merged":[[32,5,32,6],[11,1,11,4],[11,6,11,9],[11,11,11,14],[21,1,21,4],[21,6,21,9],[21,11,21,14]]}
[]
["Opslagskatalog for fagkompetencer"]
[]
[]
[]
[]
[]
[]
[]
[]
[]
[null,"Forst",null,null,null,null,"Spor",null,null,null,null,"Sikring"]
[]
[]
[]
[]
[]
[]
[]
[]
[]
[null,"Kørestrøm",null,null,null,null,"Stærkstrøm",null,null,null,null,"Broer & bygninger"]
[]
[]
[]
[]
[]
[]
[]
[]
[]
[null,"Du er registreret som:",null,null,null,"Hasse Kruse; HPET"]
[null,"Dokumentet er åbnet:",null,null,null,"2016-11-24T19:28:21"]
[]
[null,"Indholdet i opslagskataloget ejes af: Områdechefen for hvert af de faglige områder"]
[null,"Al henvendelse sker til Teamleder for Jernbanesikkerhed: Lauge Køcks Philipsen"]

{"sheet":"Forst DATA","index":5,"n_rows":15,"n_cols":15,"rows_kept":15,"cut":false,"hidden":true,"merged":[[0,0,0,11],[1,4,1,7]]}
["Fag: Forst\nOverblik over kompetencekrav marts 2015"]
[null,null,null,null,"Kompetencekrav",null,null,null,null,null,null,null,null,null,"DONE"]
["ID","Anlægselement","Anlægselementtype","Opgavetype","Virksomheds krav","Grunduddannelse","Kurser","Erfaring","Krav vedrører","Ansvar","Dokumentation","Administration","Bemærkninger"]
[1,"Afvanding - Åben og lukket afvandingssystem, dræn, rør, brønde ","n/a","Vedligehold, reprofilering af grøfter, kotemåling, datasset-håndtering, mindre anlægsopgaver","Autoriseret kloakmester \n\n","Kloakmester","kurser i datahåndtering GPS koter, kotemåling.","Erfaring med vedligehold og mindre anlægsopgaver.","Fagarbejdslederen","At arbejdet udføres i henhold til gældende normer og regler\n\nDet tekniske ansvar for arbejdet på arbejdsstedet\n\nSelvstændigt bedømme om jernbaneanlægget opfylder kravene i gældende normer og regler og kan idriftsættes efter indgreb","Virksomhed:\n - Certifikat\n - Autorisation\n\nGrundudannelse:\n - Certifikat\n\nKursus:\n - Kursusbevis\n\nErfaring:\nReference projekter.","For Eksterne: Kontrakt\nUdbudsmateriale\n\nFor BDK Produktion: Arbejdsbeskrivelse i SAP \n\nVedligeholdelsesleder og GFS er ansvarlig.\n\n"," - Vandløbslovgivning\n - Firma kan have tilknyttet ekamineret skov og landskabsingeniør og landmåler",null,"(Vælg)"]
[2,"Befæstede - Interne stier, perroner, veje, pladser","n/a","Renhold, vedligehold og mindre anlægsopgaver",null,"Anlægsgartner med sprøjtecertifikat","Brolægning - foreskrifter og regler","Erfaring med vedligehold og mindre anlægsopgaver.","Fagarbejdslederen","At arbejdet udføres i henhold til gældende normer og regler\n\nDet tekniske ansvar for arbejdet på arbejdsstedet\n\nSelvstændigt bedømme om jernbaneanlægget opfylder kravene i gældende normer og regler og kan idriftsættes efter indgreb","Virksomhed:\n\nGrundudannelse:\n - Uddannelsesbevis\n - Certifikat\n\nKursus:\n - Kursusbevis\n\nErfaring:\nReference projekter.","For Eksterne: Stationskontrakt\nUdbudsmateriale, Særlig arbejdsbeskrivelse (SABN)\n\nFor BDK Produktion: Arbejdsbeskrivelse i SAP \n\nVedligeholdelsesleder og GFS er ansvarlig.\n\n",null,null,"Afvanding - Åben og lukket afvandingssystem, dræn, rør, brønde "]
[3,"Bevoksede intensivt - Grønne urbane anlæg og bede","n/a","Renhold, vedligehold og pleje",null,"Anlægsgartner med sprøjtecertifikat",null,"Erfaring med vedligehold og mindre anlægsopgaver.","Fagarbejdslederen","At arbejdet udføres i henhold til gældende normer og regler\n\nDet tekniske ansvar for arbejdet på arbejdsstedet\n\nSelvstændigt bedømme om jernbaneanlægget opfylder kravene i gældende normer og regler og kan idriftsættes efter indgreb","Virksomhed:\n\nGrundudannelse:\n - Uddannelsesbevis\n - Certifikat\n\nKursus:\n\nErfaring:\nReference projekter.","For Eksterne: Stationskontrakt\nUdbudsmateriale, Særlig arbejdsbeskrivelse (SABN)\n\nFor BDK Produktion: Arbejdsbeskrivelse i SAP \n\nVedligeholdelsesleder og GFS er ansvarlig.\n\n",null,null,"Befæstede - Interne stier, perroner, veje, pladser"]
[4,"Bevoksede ekstensiv - Bevoksninger, skove, overdrev","n/a","Skovning, kulturpleje, bevoksningspleje, nyanlæg",null,"Fagarbejdsleder: Eksamineret skov og landsskabsingeniør\n\nUdførende: EUD skovbruger med tilvalg af topkapning og fældning af vanskelige træer","Grønne fagkurser (for opgaven relevant)","Erfaring med pleje, vedligehold og mindre anlægsopgaver",null,null,"Virksomhed:\n\nGrundudannelse:\n - Uddannelsesbevis\n\nKursus:\n - Kursusbevis\n\nErfaring:\nReference projekter.","For BDK Produktion: Arbejdsbeskrivelse i SAP \n\nVedligeholdelsesleder og GFS er ansvarlig.\n\n","Skovlov, hegnslov og vejlov.",null,"Bevoksede intensivt - Grønne urbane anlæg og bede"]
[5,"Hegn - Tekniske hegn","n/a","Udskiftning, reparation, opmåling, mindre nyanlæg",null,null,"Relevante montørkurser for leverandørens produkter","Erfaring med opsætning og vedligehold af leverandøren produkter","Fagarbejdslederen","At arbejdet udføres i henhold til gældende normer og regler\n\nDet tekniske ansvar for arbejdet på arbejdsstedet\n\nSelvstændigt bedømme om jernbaneanlægget opfylder kravene i gældende normer og regler og kan idriftsættes efter indgreb","Entreprenørens fagkundskaber håndteres ved fagtilsyn og CV","For BDK Produktion: Arbejdsbeskrivelse i SAP \n\nVedligeholdelsesleder og GFS er ansvarlig.\n\n"," - Hegnslov og Vejlov\n - Leverandørens krav\n - BDK Hegnspolitik",null,"Bevoksede ekstensiv - Bevoksninger, skove, overdrev"]
[6,"Skråninger - Bevoksninger på skråninger","n/a","Skovning, kulturpleje, bevoksningspleje, nyanlæg. Mindre jordarbejder",null,"Fagarbejdsleder: Eksamineret skov og landsskabsingeniør\n\nUdførende: EUD skovbruger med tilvalg af topkapning og fældning af vanskelige træer","Grønne fagkurser (for opgaven relevant)\n\nFKI/SKI Spor_sikring (ved Elektrificerede strækninger)","Erfaring med pleje, vedligehold og mindre anlægsopgaver",null,null,"Virksomhed:\n\nGrundudannelse:\n - Uddannelsesbevis\n\nKursus:\n - Kursusbevis\n\nErfaring:\nReference projekter.","For BDK Produktion: Arbejdsbeskrivelse i SAP \n\nVedligeholdelsesleder og GFS er ansvarlig.\n\n",null,null,"Hegn - Tekniske hegn"]
[7,"Fremføringsprofil - Fritrumsprofil. Bevoksningsfri zone omkring jernbanenettet","n/a","Rydning, fældning af bevoksning",null,"Fagarbejdsleder: Eksamineret skov og landsskabsingeniør\n\nUdførende: EUD skovbruger med tilvalg af topkapning og fældning af vanskelige træer\n\nUdførende: Maskinfører","Grønne fagkurser (for opgaven relevant)\n\nFKI/SKI Spor_sikring (ved Elektrificerede strækninger)","Erfaring med pleje, vedligehold og mindre anlægsopgaver",null,null,"Virksomhed:\n\nGrundudannelse:\n - Uddannelsesbevis\n\nKursus:\n - Kursusbevis\n\nErfaring:\nReference projekter.","For BDK Produktion: Arbejdsbeskrivelse i SAP \n\nVedligeholdelsesleder og GFS er ansvarlig.\n\n","Fremføringsprofil er en funktion der registreres som et anlægselement i SAP.",null,"Skråninger - Bevoksninger på skråninger"]
[8,"Teknikprofil - Bevoksningsfri zone omkring banens tekniske anlæg","n/a","Rydning, fældning af bevoksning",null,"Fagarbejdsleder: Eksamineret skov og landsskabsingeniør\n\nUdførende: EUD skovbruger med tilvalg af topkapning og fældning af vanskelige træer","Grønne fagkurser (for opgaven relevant)\n\nFKI/SKI Spor_sikring (ved Elektrificerede strækninger)","Erfaring med pleje, vedligehold og mindre anlægsopgaver",null,null,"Virksomhed:\n\nGrundudannelse:\n - Uddannelsesbevis\n\nKursus:\n - Kursusbevis\n\nErfaring:\nReference projekter.","For BDK Produktion: Arbejdsbeskrivelse i SAP \n\nVedligeholdelsesleder og GFS er ansvarlig.\n\n","Teknikprofil er en funktion der registreres som et anlægelement i SAP.",null,"Fremføringsprofil - Fritrumsprofil. Bevoksningsfri zone omkring jernbanenettet"]
[9,"Usikrede overkørsler - Bevoksningsfri zone omkring usikrede overkørselsanlæg","n/a","Rydning, fældning af bevoksning i oversigtsarealer. Mindre vedligehold af anlæg",null,"Fagarbejdsleder: Eksamineret skov og landsskabsingeniør\n\nUdførende: EUD skovbruger med tilvalg af topkapning og fældning af vanskelige træer","Grønne fagkurser (for opgaven relevant)\n\nFKI/SKI Spor_sikring (ved Elektrificerede strækninger)","Erfaring med pleje, vedligehold og mindre anlægsopgaver",null,null,"Virksomhed:\n\nGrundudannelse:\n - Uddannelsesbevis\n\nKursus:\n - Kursusbevis\n\nErfaring:\nReference projekter.","For BDK Produktion: Arbejdsbeskrivelse i SAP \n\nVedligeholdelsesleder og GFS er ansvarlig.\n\n",null,null,"Teknikprofil - Bevoksningsfri zone omkring banens tekniske anlæg"]
[10,"Bekæmpelse af planten Kæmpe Bjørneklo iht. Lovkrav",null,"Sporsprøjtning af sporets overbygning\n\nKemisk behandling af uønsket plantevækst i sporets overbygning",null,"Anlægsgartner med sprøjtecertifikat \n\nMaskinefører\n\n\n","FKI/SKI Spor_sikring (ved Elektrificerede strækninger)",null,"Fagarbejdslederen","At arbejdet udføres i henhold til gældende normer og regler\n\nDet tekniske ansvar for arbejdet på arbejdsstedet\n\nSelvstændigt bedømme om jernbaneanlægget opfylder kravene i gældende normer og regler og kan idriftsættes efter indgreb","Virksomhed:\n\nGrundudannelse:\n - Uddannelsesbevis\n - Certifikat\n\nKursus:\n\nErfaring:\nReference projekter.","For Eksterne ift. sprøjtning på strækninger: Kontrakt\nUdbudsmateriale\n\nFor BDK Produktion ift. sprøjtning på stationer: Arbejdsbeskrivelse i SAP \n\nØvrige sprøjtningsopgaver håndteres i stationskonkrakterne.\n\nVedligeholdelsesleder og GFS er ansvarlig.\n\n","Entreprenør holder bemandingslister vedlige, BDK skal kunne tilgå til hver en tid.",null,"Usikrede overkørsler - Bevoksningsfri zone omkring usikrede overkørselsanlæg"]
[11,"Sporsprøjtning",null,"Kemisk og manuel bekæmpelse af uønskede plantearter",null,"Anlægsgartner med sprøjtecertifikat",null,"Erfaring med håndtering af sprøjtemidler og kemikalier.","Fagarbejdslederen","At arbejdet udføres i henhold til gældende normer og regler\n\nDet tekniske ansvar for arbejdet på arbejdsstedet\n\nSelvstændigt bedømme om jernbaneanlægget opfylder kravene i gældende normer og regler og kan idriftsættes efter indgreb","Virksomhed:\n\nGrundudannelse:\n - Uddannelsesbevis\n - Certifikat\n\nKursus:\n\nErfaring:\nReference projekter.","For BDK Produktion: Arbejdsbeskrivelse i SAP \n\nVedligeholdelsesleder og GFS er ansvarlig.\n\n","Lovkrav",null,"Bekæmpelse af planten Kæmpe Bjørneklo iht. Lovkrav"]
[null,null,null,null,null,null,null,null,null,null,null,null,null,null,"Sporsprøjtning"]

{"sheet":"Forst","index":6,"n_rows":13,"n_cols":8,"rows_kept":13,"cut":false,"hidden":true,"merged":[[5,2,5,3]]}
["Forst",{"$f":"CONCATENATE(\"Fagkompetencer \",A1,\" - \",C6)","v":"Fagkompetencer Forst - (Vælg)"}]
["Krav til fagkompetencer - Forst"]
[]
[null,"Gemt/udskrevet af:",{"$f":"Fagkompetencekrav!F32","v":"Hasse Kruse; HPET"},{"$f":"NOW()","v":"2017-05-01T16:08:21.930"}]
[]
[null,"Anlægselement","(Vælg)"]
[]
[]
[]
[]
[null,3,4,5,6,7,8,9]
[null,"Nærmere beskrivelse:\nOpgavetype","Kompetencekrav\nVirksomheds krav","Kompetencekrav\nGrunduddannelse","Kompetencekrav\nKurser","Kompetencekrav\nErfaring","Krav vedrører","Ansvar"]
[null,{"$f":"IFERROR(IF(VLOOKUP($C$6,'Forst DATA'!$B$4:$K$71,B11,FALSE)=0,\"\",VLOOKUP($C$6,'Forst DATA'!$B$4:$K$71,B11,FALSE)),\"\")","v":""},{"$f":"IFERROR(IF(VLOOKUP($C$6,'Forst DATA'!$B$4:$K$71,C11,FALSE)=0,\"\",VLOOKUP($C$6,'Forst DATA'!$B$4:$K$71,C11,FALSE)),\"\")","v":""},{"$f":"IFERROR(IF(VLOOKUP($C$6,'Forst DATA'!$B$4:$K$71,D11,FALSE)=0,\"\",VLOOKUP($C$6,'Forst DATA'!$B$4:$K$71,D11,FALSE)),\"\")","v":""},{"$f":"IFERROR(IF(VLOOKUP($C$6,'Forst DATA'!$B$4:$K$71,E11,FALSE)=0,\"\",VLOOKUP($C$6,'Forst DATA'!$B$4:$K$71,E11,FALSE)),\"\")","v":""},{"$f":"IFERROR(IF(VLOOKUP($C$6,'Forst DATA'!$B$4:$K$71,F11,FALSE)=0,\"\",VLOOKUP($C$6,'Forst DATA'!$B$4:$K$71,F11,FALSE)),\"\")","v":""},{"$f":"IFERROR(IF(VLOOKUP($C$6,'Forst DATA'!$B$4:$K$71,G11,FALSE)=0,\"\",VLOOKUP($C$6,'Forst DATA'!$B$4:$K$71,G11,FALSE)),\"\")","v":""},{"$f":"IFERROR(IF(VLOOKUP($C$6,'Forst DATA'!$B$4:$K$71,H11,FALSE)=0,\"\",VLOOKUP($C$6,'Forst DATA'!$B$4:$K$71,H11,FALSE)),\"\")","v":""}]

{"sheet":"Spor DATA","index":7,"n_rows":54,"n_cols":30,"rows_kept":54,"cut":false,"hidden":true,"merged":[[0,0,0,11]]}
["Fag: Spor\nOverblik over kompetencekrav marts 2015\n\nKrav rettes mod:\nKrav 1-16, Fagarbejdsleder: Med fagarbejdleder menes der den person som er ansvarlig for opgavensudførsel i marken,  og som har ansvaret for sikre at den tekniske løsning er lavet tilfredstillende. Personen har samtidig ansvaret for at sikre den tekniske åbning af sporet.\n\nKrav 17-35, udførende svejser:  Kravet sættes mod den eller de personen,  der skal udføre den konkrete opgave. Personen har ansvaret for at sikre, at den tekniske løsning bliver udført tilfredsstillende. Personen er samtidig ansvaret forr at sikre den tekniske åbning af sporet efter indgreb.\n\nOpretholdelse af kompetencer Spor\nSporteknik 1 og Sporteknik 2: Kompetencen opretholdes via praksis. Har en Fagarbejdsleder ikke beskæftiget sig med spor relaterede opgaver indenfor en 5 års periode frafalder kompetencen.\nKursus i eftersyn:\nFKI/SKI Spor_Sikring: Kompetencen gælder i 18 måneder, skal derefter fornyes.\nPraksisgennemgang med fagansvarlig: Kompetencen gælder i 2 år, skal derefter fornyes.\nErfaringsgodkendelse: Kompetencen gælder i 5 år, skal derefter fornyes\nNormkendskab: Kompetencen opretholdes via praksis. Har en Fagarbejdsleder ikke beskæftiget sig med spor relaterede opgaver indenfor en 5 års periode frafalder kompetencen. Kompetence skal dog fornyes, hvis normen opdateres\nAlle certifikater indenfor svejse området skal fornyes hvert 3 år. Undetagelsen er pålægssvejsning, som skal fornyes hver 2 år.",null,null,null,null,null,null,null,null,null,null,null,null,null,null,"DONE"]
[]
["ID","Anlægselement","Anlægselementtype","Opgavetype","Kurser","Certificeringer","Erfaringsgodkendelse fra BDK","Krav vedrører","Ansvar","Dokumentation ","Administration","Bemærkninger","TSI","TSA",null,"(Vælg)","(Vælg)","(Vælg)","(Vælg)","(Vælg)","(Vælg)","(Vælg)","(Vælg)","(Vælg)","(Vælg)","(Vælg)","(Vælg)","(Vælg)","(Vælg)","(Vælg)"]
[1,"Sporskifte","Sporskifte","Eftersyn af Sporskifter","Sporteknik 1\n\nFKI/SKI Spor_sikring (ved Elektrificeret strejkninger)",null,"Praksis gennemgang med fag ansvarlig hvert 2 år\n\nNormkendskab (BN1-14 og BN2-15)","Fagarbejdslederen","At arbejdet udføres i henhold til gældende normer og regler\n\nDet tekniske ansvar for arbejdet på arbejdsstedet\n\nSelvstændigt bedømme om jernbaneanlægget opfylder kravene i gældende normer og regler og kan idriftsættes efter indgreb","Kursus:\n- Certificering\n- Kursusbevis\n\nOpdatering / Erfaring:\n - CV",null,"Normdækning:\n - BN1-14 \n - BN2-15 ",null,"MHSR",null,"Skinne","Aluminotermisk svejsning","Arbejde med uroligt spor","Afslibning efter tungeslidmål","Bygning af Sporskifter","Pålægssvejsning og reprofilering af krydsninger","Eftersyn af isoleret stød","Efterspænding af spor","Pålægssvejsning og reprofilering af tvangsskinner","Eftersyn af overkørsel og overgang","Ballastsupplering og profilering","Belægningsarbejde i overkørsler","Eftersyn af skinneudtræk på broer","Arbejde / eftersyn med sporstopper","Udveksling af Sveller"]
[2,"Sporskifte","Sporskifte","Kontrolmåling af sporskifter","Sporteknik 1\n\nFKI/SKI Spor_sikring (ved Elektrificeret strækninger)",null,"Måling af 20 sporskifter\n\nNormkendskab (BN1-14 og BN2-15)","Fagarbejdslederen","At arbejdet udføres i henhold til gældende normer og regler\n\nDet tekniske ansvar for arbejdet på arbejdsstedet\n\nSelvstændigt bedømme om jernbaneanlægget opfylder kravene i gældende normer og regler og kan idriftsættes efter indgreb","Kursus:\n- Certificering\n\nOpdatering / Erfaring:\n - CV",null,"Normdækning:\n - BN1-14 \n - BN2-15 ",null,"MHSR",null,"Spor","Boring i skinne","Eddy Current måling","Koldretning af tunger","Eftersyn af Sporskifter","Regulering iht. relevante sporskiftemål og sporriller","Justering og slibning af stød","Efterspænding af sporskifter","Regulering iht. relevante sporskiftemål og sporriller, herunder montering af indskudsplade"]
[3,"Isolerklæbestød","Isolerklæbestød","Eftersyn af isoleret stød","Sporteknik 1\n\nFKI/SKI Spor_sikring (ved Elektrificeret strækninger)",null,"Praksis gennemgang med fag ansvarlig hvert 2 år\n\nNormkendskab (Sporregler 1987)","Fagarbejdslederen","At arbejdet udføres i henhold til gældende normer og regler\n\nDet tekniske ansvar for arbejdet på arbejdsstedet\n\nSelvstændigt bedømme om jernbaneanlægget opfylder kravene i gældende normer og regler og kan idriftsættes efter indgreb","Kursus:\n- Certificering\n- Kursusbevis\n\nOpdatering / Erfaring:\n - CV",null,"Normdækning:\n - Sporregler 1987",null,"CARA, MHSR",null,"Tungeparti","Bred aluminotermisk svejsning","Efterbehandling af data i forbindelse med krabbemåling","Pålægssvejsning og reprofilering af sideskinne","Vedligeholdelse af rhombelåse","Stødopretning","Svejsning i forbindelse med isolerklæbestød (bygge og vedligehold)","Udveksling af befæstelse"]
[4,"Skinne","Skinne","Linjesyn","Sporteknik 1\n\nFKI/SKI Spor_sikring (ved Elektrificeret strækninger)",null,"Praksis gennemgang med fag ansvarlig hvert 2 år\n\nNormkendskab (Sporregler 1987)","Fagarbejdslederen","At arbejdet udføres i henhold til gældende normer og regler\n\nDet tekniske ansvar for arbejdet på arbejdsstedet\n\nSelvstændigt bedømme om jernbaneanlægget opfylder kravene i gældende normer og regler og kan idriftsættes efter indgreb",null,null,null,null,null,null,"Sporskifte","Bygning af Sporramme","Landmåling inkl. projektering af spor  geometri","Udveksling af jerndele i sporskifter (Indkluderer ikke svejseopgaver)","Kontrolmåling af sporskifter"]
[5,"Skinne","Skinne","Varmesyn","Sporteknik 1\n\nFKI/SKI Spor_sikring (ved Elektrificeret strækninger)",null,"Praksis gennemgang med fag ansvarlig hvert 2 år\n\nNormkendskab (Sporregler 1987)","Fagarbejdslederen","At arbejdet udføres i henhold til gældende normer og regler\n\nDet tekniske ansvar for arbejdet på arbejdsstedet\n\nSelvstændigt bedømme om jernbaneanlægget opfylder kravene i gældende normer og regler og kan idriftsættes efter indgreb","Kursus:\n- Certificering\n- Kursusbevis\n\nOpdatering / Erfaring:\n - CV",null,"Normdækning:\n - Sporregler 1987: Afsnit 6.09 \n - BN1-177\n - BN1-66\n\nIndkluderer udannelse i følgende anlægselementer:\n - Sporskifter\n - Isolerklæbestød\n - Skinneudtræk på broer\n - Belægning\n - Sporstopper\n - Ballast\n - Befæstelse\n - Sveller\n - 1/2 tungeparti\n - Krydsning\n - Krydsningsparti\n - Mellemparti\n - Mellemskinne\n - Tunge og dobbeltkrydsning\n - Tungeparti\n - Tvangsskinne\n - Tvangsskinneprofil",null,"CARA, MHSR, BNIE","Skilles op","Krydsning","Indgreb i langskinne","Manuel justering af spor","½ tungeparti - Svejsning ved udveksling af større jerndele i sporskifter"]
[6,"Skinne","Skinne","Måling af skinneslid","Sporteknik 1\n\nSporteknik 2\n\nFKI/SKI Spor_sikring (ved Elektrificeret strækninger)",null,"Normkendskab (BN3-200 og BN1-107)","Fagarbejdslederen","At arbejdet udføres i henhold til gældende normer og regler\n\nDet tekniske ansvar for arbejdet på arbejdsstedet\n\nSelvstændigt bedømme om jernbaneanlægget opfylder kravene i gældende normer og regler og kan idriftsættes efter indgreb","Kursus:\n- Certificering",null,"Normdækning:\n - BN3-200\n - BN1-107\n\nInkluderer uddannelse i følgende anlægselementer:\n - Sporskifte\n - Isolerklæbestød",null,"CARA,BNIE",null,"Isolerklæbestød","Linjesyn","Maskinel udbedring af sporbeliggenhedsfejl","½ tungeparti - Slibning af sporskiftekomponenter"]
[7,"Skinneudtræk","Skinneudtræk på broer","Eftersyn af skinneudtræk på broer","Sporteknik 1\n\nFKI/SKI Spor_sikring (ved Elektrificeret strejkninger)",null,"Praksis gennemgang med fag ansvarlig hvert 2 år","Fagarbejdslederen","At arbejdet udføres i henhold til gældende normer og regler\n\nDet tekniske ansvar for arbejdet på arbejdsstedet\n\nSelvstændigt bedømme om jernbaneanlægget opfylder kravene i gældende normer og regler og kan idriftsættes efter indgreb","Kursus:\n- Certificering\n - Kursusbevis\n\nOpdatering / Erfaring:\n - CV",null,"Normdækning:\n - Leverandørs anvisning ",null,"MHSR",null,"Befæstelse","Måling af skinneslid","Overvågning af sporets beliggenhed ved udførsel af arbejder omkring spor i drift, der kan påvirke sporets beliggenhed"]
[8,"Belægning","Belægning","Eftersyn af overkørsel og overgang","Sporteknik 1\n\nFKI/SKI Spor_sikring (ved Elektrificeret strejkninger)",null,"Praksis gennemgang med fag ansvarlig hvert 2 år","Fagarbejdslederen","At arbejdet udføres i henhold til gældende normer og regler\n\nDet tekniske ansvar for arbejdet på arbejdsstedet\n\nSelvstændigt bedømme om jernbaneanlægget opfylder kravene i gældende normer og regler og kan idriftsættes efter indgreb","Kursus:\n- Certificering\n - Kursusbevis\n\nOpdatering / Erfaring:\n - CV",null,"\nNormdækning:\n - Ikke normdækket  ",null,"MHSR",null,"Tvangsskinne","Pålægssvejsning og reprofilering af skinne","Ultralydsscanning med håndtrolje og håndholdt ultralydsscanner"]
[9,"Sporstopper","Sporstopper","Arbejde / eftersyn med sporstopper","Sporteknik 1\n\nFKI/SKI Spor_sikring (ved Elektrificeret strækninger)",null,"Praksis gennemgang med fag ansvarlig hvert 2 år\n\nNormkendskab (BN1-95)","Fagarbejdslederen","At arbejdet udføres i henhold til gældende normer og regler\n\nDet tekniske ansvar for arbejdet på arbejdsstedet\n\nSelvstændigt bedømme om jernbaneanlægget opfylder kravene i gældende normer og regler og kan idriftsættes efter indgreb","Kursus:\n- Certificering\n - Kursusbevis\n\nOpdatering / Erfaring:\n - CV",null,"Normdækning:\n - BN1-95 ",null,"MHSR",null,"Belægning","Skæring i forbindelse med aluminotermisk svejsning"]
[10,"Skinne","Skinne","Bygning af Sporramme","Sporteknik 1\n\nSporteknik 2\n\nFKI/SKI Spor_sikring (ved Elektrificeret strækninger)",null,"Har gennemført en lignende opgave tidligere (sidemandsoplæring)\n\nNormkendskab","Fagarbejdslederen","At arbejdet udføres i henhold til gældende normer og regler\n\nDet tekniske ansvar for arbejdet på arbejdsstedet\n\nSelvstændigt bedømme om jernbaneanlægget opfylder kravene i gældende normer og regler og kan idriftsættes efter indgreb","Kursus:\n- Certificering\n\nOpdatering / Erfaring:\n - CV",null,"Normdækning:\n - Se GAB Spor \n\nInkluderer uddannelse i følgende anlægselementer:\n - Skinne og Isolerklæbestød\n - Befæstelse\n - Sveller",null,"MHSR",null,"Ballast","Sporvideregluering"]
[11,"Sporskifte","Sporskifte","Bygning af Sporskifter","Sporteknik 1\n\nSporteknik 2\n\nFKI/SKI Spor_sikring (ved Elektrificeret strækninger)",null,"Har gennemført en lignende opgave tidligere (sidemandsoplæring)\n\nNormkendskab (BN2-15)","Fagarbejdslederen","At arbejdet udføres i henhold til gældende normer og regler\n\nDet tekniske ansvar for arbejdet på arbejdsstedet\n\nSelvstændigt bedømme om jernbaneanlægget opfylder kravene i gældende normer og regler og kan idriftsættes efter indgreb","Kursus:\n- Certificering\n\nOpdatering / Erfaring:\n - CV",null,"Normdækning:\n - GAB, BN2-15 ",null,"MHSR",null,"Overkørsel","Spændingsudligning/slutsvejsning"]
[12,"Tungeparti","Tungeparti","Udveksling af jerndele i sporskifter (Indkluderer ikke svejseopgaver)","Sporteknik 1\n\nSporteknik 2\n\nFKI/SKI Spor_sikring (ved Elektrificeret strækninger)",null,"Har gennemført en lignende opgave tidligere (sidemandsoplæring)\n\nNormkendskab (BN1-14 og BN2-15)","Fagarbejdslederen","At arbejdet udføres i henhold til gældende normer og regler\n\nDet tekniske ansvar for arbejdet på arbejdsstedet\n\nSelvstændigt bedømme om jernbaneanlægget opfylder kravene i gældende normer og regler og kan idriftsættes efter indgreb","Kursus:\n- Certificering\n\nOpdatering / Erfaring:\n - CV",null,"Normdækning:\n - BN1-14\n - BN2-15\n\nInkluderer uddannelse i følgende anlægselementer:\n - 1/2 Tungeparti\n - Krydsning\n - Krydsningsparti\n - Mellemskinne\n - Tunge og dobbeltkrydsning\n - Tvangsskinne\n - Tvangsskinneprofil",null,"MHSR","Minus svejs","Skinneudtræk","Udbedring af skinnebrud"]
[13,"Skinne","Skinne","Udveksling af Skinner (inkluderer ikke svejseopgaver)","Sporteknik 1\n\nSporteknik 2\n\nFKI/SKI Spor_sikring (ved Elektrificeret strækninger)",null,"Har gennemført en lignende opgave tidligere (sidemandsoplæring)\n\nNormkendskab (BN1-107 og BN2-201)","Fagarbejdslederen","At arbejdet udføres i henhold til gældende normer og regler\n\nDet tekniske ansvar for arbejdet på arbejdsstedet\n\nSelvstændigt bedømme om jernbaneanlægget opfylder kravene i gældende normer og regler og kan idriftsættes efter indgreb","Kursus:\n- Certificering\n\nOpdatering / Erfaring:\n - CV",null,"Normdækning:\nBN1-107 \nBN2-201 (skinnepolitik)\n\nInkluderer uddannelse i følgende anlægselementer:\n - Isolerklæbestød",null,"MHSR","Minus svejs","Sporstopper","Udbedring af solkurver"]
[14,"Sveller","Sveller","Udveksling af Sveller","Sporteknik 1\n\nSporteknik 2\n\nFKI/SKI Spor_sikring (ved Elektrificeret strækninger)",null,"Har gennemført en lignende opgave tidligere (sidemandsoplæring)\n\nNormkendskab (BN1-38 og Sporregler 1959 og 1987 )","Fagarbejdslederen","At arbejdet udføres i henhold til gældende normer og regler\n\nDet tekniske ansvar for arbejdet på arbejdsstedet\n\nSelvstændigt bedømme om jernbaneanlægget opfylder kravene i gældende normer og regler og kan idriftsættes efter indgreb","Kursus:\n- Certificering\n\nOpdatering / Erfaring:\n - CV",null,"Normdækning:\n - BN1-38\n - Sporregler 1959, 1987 ","TSI INF","MHSR, BNIE",null,"Sveller","Udveksling af Skinner (inkluderer ikke svejseopgaver)"]
[15,"Befæstelse","Befæstelse","Udveksling af befæstelse","Sporteknik 1\n\nSporteknik 2\n\nFKI/SKI Spor_sikring (ved Elektrificeret strækninger)",null,"Har gennemført en lignende opgave tidligere (sidemandsoplæring)\n\nNormkendskab (BN1-38 og BN2-15)","Fagarbejdslederen","At arbejdet udføres i henhold til gældende normer og regler\n\nDet tekniske ansvar for arbejdet på arbejdsstedet\n\nSelvstændigt bedømme om jernbaneanlægget opfylder kravene i gældende normer og regler og kan idriftsættes efter indgreb","Kursus:\n- Certificering\n\nOpdatering / Erfaring:\n - CV",null,"Normdækning:\n - BN2-15 \n - BN1-38","TSI INF","MHSR",null,null,"Varmesyn"]
[16,"Befæstelse","Befæstelse","Efterspænding af spor","Sporteknik 1\n\nSporteknik 2\n\nFKI/SKI Spor_sikring (ved Elektrificeret strækninger)",null,"Har gennemført en lignende opgave tidligere (sidemandsoplæring)\n\nNormkendskab (Langskinneregler)","Fagarbejdslederen","At arbejdet udføres i henhold til gældende normer og regler\n\nDet tekniske ansvar for arbejdet på arbejdsstedet\n\nSelvstændigt bedømme om jernbaneanlægget opfylder kravene i gældende normer og regler og kan idriftsættes efter indgreb","Kursus:\n- Certificering\n\nOpdatering / Erfaring:\n - CV",null,"Normdækning:\n - Lang skinneregler ",null,"MHSR",null,null,"Varmretning af svejsning"]
[17,"Befæstelse","Befæstelse","Efterspænding af sporskifter","Sporteknik 1\n\nSporteknik 2\n\nFKI/SKI Spor_sikring (ved Elektrificeret strækninger)",null,"Har gennemført en lignende opgave tidligere (sidemandsoplæring)\n\nNormkendskab (BN2-15)","Fagarbejdslederen","At arbejdet udføres i henhold til gældende normer og regler\n\nDet tekniske ansvar for arbejdet på arbejdsstedet\n\nSelvstændigt bedømme om jernbaneanlægget opfylder kravene i gældende normer og regler og kan idriftsættes efter indgreb","Kursus:\n- Certificering\n\nOpdatering / Erfaring:\n - CV",null,"Normdækning:\n - BN2-15\n\nInkluderer uddannelse i følgende anlægselementer:\n - Sporskifte",null,"MHSR"]
[18,"Skinne","Skinne","Sporvideregluering","Sporteknik 1\n\nSporteknik 2\n\nFKI/SKI Spor_sikring (ved Elektrificeret strækninger)",null,"Har gennemført en lignende opgave tidligere (sidemandsoplæring)\n\nNormkendskab (BN2-15, BN1-38 og sporregler af 1959)","Fagarbejdslederen","At arbejdet udføres i henhold til gældende normer og regler\n\nDet tekniske ansvar for arbejdet på arbejdsstedet\n\nSelvstændigt bedømme om jernbaneanlægget opfylder kravene i gældende normer og regler og kan idriftsættes efter indgreb","Kursus:\n- Certificering\n\nOpdatering / Erfaring:\n - CV",null,"Normdækning:\n - BN2-15 \n - BN1-38 \n - Sporregler 1959\n\nInkluderer uddannelse i følgende anlægselementer:\n - Sporskifte","TSI INF","BNIE"]
[19,"Isolerklæbestød","Isolerklæbestød","Justering og slibning af stød","Sporteknik 1\n\nSporteknik 2\n\nFKI/SKI Spor_sikring (ved Elektrificeret strækninger)",null,"Har gennemført en lignende opgave tidligere (sidemandsoplæring)\n\nNormkendskab (BN1-38 og sporregler af 1987)","Fagarbejdslederen","At arbejdet udføres i henhold til gældende normer og regler\n\nDet tekniske ansvar for arbejdet på arbejdsstedet\n\nSelvstændigt bedømme om jernbaneanlægget opfylder kravene i gældende normer og regler og kan idriftsættes efter indgreb","Kursus:\n- Certificering\n\nOpdatering / Erfaring:\n - CV",null,"Normgrundlag:\n - Sporregler 1987 \n - BN1-38 ",null,"BNIE (justering)\nCARA (slibning)","skilles op"]
[20,"Sporskifte","Sporskifte","Vedligeholdelse af rhombelåse","Sporteknik 1\n\nSporteknik 2\n\nFKI/SKI Spor_sikring (ved Elektrificeret strækninger)",null,"Har gennemført en lignende opgave tidligere (sidemandsoplæring)\n\nNormkendskab (VN100-110R7010, BN1-14 og EN100-03R3494)","Fagarbejdslederen","At arbejdet udføres i henhold til gældende normer og regler\n\nDet tekniske ansvar for arbejdet på arbejdsstedet\n\nSelvstændigt bedømme om jernbaneanlægget opfylder kravene i gældende normer og regler og kan idriftsættes efter indgreb","Kursus:\n- Certificering\n\nOpdatering / Erfaring:\n - CV",null,"Normgrundlag:\n - VN 100-110R7010 \n - BN1-14 \n - EN100-03R3494 ",null,"MHSR"]
[21,"Skinne","Skinne","Udbedring af skinnebrud","Sporteknik 1\n\nSporteknik 2\n\nFKI/SKI Spor_sikring (ved Elektrificeret strækninger)",null,"Har gennemført en lignende opgave tidligere (sidemandsoplæring)\n\nNormkendskab (BN1-107)","Fagarbejdslederen","At arbejdet udføres i henhold til gældende normer og regler\n\nDet tekniske ansvar for arbejdet på arbejdsstedet\n\nSelvstændigt bedømme om jernbaneanlægget opfylder kravene i gældende normer og regler og kan idriftsættes efter indgreb","Kursus:\n- Certificering\n\nOpdatering / Erfaring:\n - CV",null,"Normgrundlag:\n - BN1-107 \n\nInkluderer uddannelse i følgende anlægselementer:\n - Krydsning",null,"CARA"]
[22,"Skinne","Skinne","Udbedring af solkurver","Sporteknik 1\n\nSporteknik 2\n\nFKI/SKI Spor_sikring (ved Elektrificeret strækninger)",null,"Har gennemført en lignende opgave tidligere (sidemandsoplæring)\n\nNormkendskab (BN1-66, BN1-6 og Sporregler af 1987)","Fagarbejdslederen","At arbejdet udføres i henhold til gældende normer og regler\n\nDet tekniske ansvar for arbejdet på arbejdsstedet\n\nSelvstændigt bedømme om jernbaneanlægget opfylder kravene i gældende normer og regler og kan idriftsættes efter indgreb","Kursus:\n- Certificering\n\nOpdatering / Erfaring:\n - CV",null,"Normdækning:\n - Sporregler 1987 \n - BN1-66\n - BN1-6 \n\nInkluderer uddannelse i følgende anlægselementer:\n - Ballast\n - Befæstelse",null,"CARA"]
[23,"Ballast","Ballast","Ballastsupplering og profilering","Sporteknik 1\n\nSporteknik 2\n\nFKI/SKI Spor_sikring (ved Elektrificeret strækninger)",null,"Har gennemført en lignende opgave tidligere (sidemandsoplæring)\n\nNormkendskab (BN1-6)","Fagarbejdslederen","At arbejdet udføres i henhold til gældende normer og regler\n\nDet tekniske ansvar for arbejdet på arbejdsstedet\n\nSelvstændigt bedømme om jernbaneanlægget opfylder kravene i gældende normer og regler og kan idriftsættes efter indgreb","Kursus:\n- Certificering\n\nOpdatering / Erfaring:\n - CV",null,"Normdækning:\n - BN1-6 ",null,"BNIE"]
[24,"Spor",null,"Arbejde med uroligt spor","Sporteknik 1\n\nSporteknik 2\n\nFKI/SKI Spor_sikring (ved Elektrificeret strækning)",null,"Har gennemført en lignende opgave tidligere (sidemandsoplæring)\n\nNormkendskab (BN1-6, BN1-177 og BN1-6)","Fagarbejdslederen","At arbejdet udføres i henhold til gældende normer og regler\n\nDet tekniske ansvar for arbejdet på arbejdsstedet\n\nSelvstændigt bedømme om jernbaneanlægget opfylder kravene i gældende normer og regler og kan idriftsættes efter indgreb","Kursus:\n- Certificering\n\nOpdatering / Erfaring:\n - CV",null,"Normdækning:\n - BN1-38 \n - BN1-177 \n - BN1-6 ",null,"BNIE"]
[25,"Skinne","Skinne","Aluminotermisk svejsning","Sporteknik 1\n\nSporteknik 2\n\nSkæring, borring og slibning\n\nAluminotermisk svejsning\n\nFKI/SKI Spor_sikring (ved Elektrificerede strækning)","Aluminotermisk Svejsning","Aluminotermisk svejsning (nye skinner / brugelige ældre skinner)","Svejser / Fagarbejdsleder","At arbejdet udføres i henhold til gældende normer og regler\n\nDet tekniske ansvar for arbejdet på arbejdsstedet\n\nSelvstændigt bedømme om jernbaneanlægget opfylder kravene i gældende normer og regler og kan idriftsættes efter indgreb","Kurser:\nKursus bevis, certificering \n\nErarings godkendelse af BDK Svejseinstruktør el BDK Svejseansvarlig:\nBilag 4 i Banedanmarks instruktion i svejsearbejde: Tilladelse til aluminotermisk svejsearbejde","Banedanmark Svejseansvarlig eller svejseinstruktør gennemgår kurser, certificeringer og erfaring inden svejseren løser de enkelte opgaver.\n\nVed vedligehold opbevares dokumentationen af dette hos den svejseansvarlige i Teknisk Drift\n","Procedure for overholdelse af kompetencekravet gælder kun for svejsere og ikke andet personale, der kunne arbejde i sportet med samme opgave.\n\nIndkluderer udannelse i følgende anlægselementer: \n - Sporskifter",null,"CARA"]
[26,"Skinne","Skinne","Bred aluminotermisk svejsning","Sporteknik 1\n\nSporteknik 2\n\nSkæring, borring og slibning\n\nAluminotermisk svejsning\n\nFKI/SKI Spor_sikring (ved Elektrificeret strækning)","Aluminotermisk Svejsning","Aluminotermisk svejsning (nye skinner / brugelige ældre skinner)\n\nBred aluminoteknisk svejsnin","Svejser / Fagarbejdsleder","At arbejdet udføres i henhold til gældende normer og regler\n\nDet tekniske ansvar for arbejdet på arbejdsstedet\n\nSelvstændigt bedømme om jernbaneanlægget opfylder kravene i gældende normer og regler og kan idriftsættes efter indgreb","Kurser:\nKursus bevis, certificering \n\nErarings godkendelse af BDK Svejseinstruktør el BDK Svejseansvarlig:\nBilag 4 i Banedanmarks instruktion i svejsearbejde: Tilladelse til aluminotermisk svejsearbejde","Banedanmark Svejseansvarlig eller svejseinstruktør gennemgår kurser, certificeringer og erfaring inden svejseren løser de enkelte opgaver.\n\nVed vedligehold opbevares dokumentationen af dette hos den svejseansvarlige i Teknisk Drift\n","Procedure for overholdelse af kompetencekravet gælder kun for svejsere og ikke andet personale, der kunne arbejde i sportet med samme opgave.",null,"CARA"]
[27,"Isolerklæbestød","Isolerklæbestød","Svejsning i forbindelse med isolerklæbestød (bygge og vedligehold)","Sporteknik 1\n\nSporteknik 2\n\nSkæring, borring og slibning\n\nAluminotermisk svejsning\n\nIsolerklæbestød\n\nFKI/SKI Spor_sikring (ved Elektrificeret strækning)","Aluminotermisk Svejsning","Bygge og vedligeholde isolerklæbestød","Svejser / Fagarbejdsleder","At arbejdet udføres i henhold til gældende normer og regler\n\nDet tekniske ansvar for arbejdet på arbejdsstedet\n\nSelvstændigt bedømme om jernbaneanlægget opfylder kravene i gældende normer og regler og kan idriftsættes efter indgreb","Kurser:\nKursus bevis, certificering \n\nErarings godkendelse af BDK Svejseinstruktør el BDK Svejseansvarlig:\nBilag 4 i Banedanmarks instruktion i svejsearbejde: Tilladelse til aluminotermisk svejsearbejde","Banedanmark Svejseansvarlig eller svejseinstruktør gennemgår kurser, certificeringer og erfaring inden svejseren løser de enkelte opgaver.\n\nVed vedligehold opbevares dokumentationen af dette hos den svejseansvarlige i Teknisk Drift\n","Procedure for overholdelse af kompetencekravet gælder kun for svejsere og ikke andet personale, der kunne arbejde i sportet med samme opgave.",null,"CARA"]
[28,"Skinne","Skinne","Skæring i forbindelse med aluminotermisk svejsning","Sporteknik 1\n\nSporteknik 2\n\nSkæring, borring og slibning\n\nFKI/SKI Spor_sikring (ved EL strejkninger)",null,"Skæring i forbindelse med alutermisk svejsning og isolerklæbestød","Svejser / Fagarbejdsleder","At arbejdet udføres i henhold til gældende normer og regler\n\nDet tekniske ansvar for arbejdet på arbejdsstedet\n\nSelvstændigt bedømme om jernbaneanlægget opfylder kravene i gældende normer og regler og kan idriftsættes efter indgreb","Kurser:\nKursus bevis \n\nErarings godkendelse af BDK Svejseinstruktør el BDK Svejseansvarlig:\nBilag 4 i Banedanmarks instruktion i svejsearbejde: Tilladelse til aluminotermisk svejsearbejde","Banedanmark Svejseansvarlig eller svejseinstruktør gennemgår kurser, certificeringer og erfaring inden svejseren løser de enkelte opgaver.\n\nVed vedligehold opbevares dokumentationen af dette hos den svejseansvarlige i Teknisk Drift\n","Procedure for overholdelse af kompetencekravet gælder kun for svejsere og ikke andet personale, der kunne arbejde i sportet med samme opgave.\n\nIndkluderer udannelse i følgende anlægselementer: \n - Sporskifter\n - Isolerklæbestød",null,"CARA"]
[29,"Skinne","Skinne","Boring i skinne","Sporteknik 1\n\nSporteknik 2\n\nSkæring, borring og slibning\n\nFKI/SKI Spor_sikring (ved EL strejkninger)",null,"Boring i skinne","Svejser / Fagarbejdsleder","At arbejdet udføres i henhold til gældende normer og regler\n\nDet tekniske ansvar for arbejdet på arbejdsstedet\n\nSelvstændigt bedømme om jernbaneanlægget opfylder kravene i gældende normer og regler og kan idriftsættes efter indgreb","Kurser:\nKursus bevis \n\nErarings godkendelse af BDK Svejseinstruktør el BDK Svejseansvarlig:\nBilag 4 i Banedanmarks instruktion i svejsearbejde: Tilladelse til aluminotermisk svejsearbejde","Banedanmark Svejseansvarlig eller svejseinstruktør gennemgår kurser, certificeringer og erfaring inden svejseren løser de enkelte opgaver.\n\nVed vedligehold opbevares dokumentationen af dette hos den svejseansvarlige i Teknisk Drift\n","\n\nIndkluderer udannelse i følgende anlægselementer: \n - Sporskifter\n - Isolerklæbestød",null,"CARA"]
[30,"Tungeparti","1/2 tungeparti","½ tungeparti - Svejsning ved udveksling af større jerndele i sporskifter","Sporteknik 1\n\nSporteknik 2\n\nSkæring, borring og slibning\n\nAluminotermisk svejsning\n\nFKI/SKI Spor_sikring (ved Elektrificeret strækning)","Aluminotermisk Svejsning","Udveksling af større jerndele i sporskifter ","Svejser / Fagarbejdsleder","At arbejdet udføres i henhold til gældende normer og regler\n\nDet tekniske ansvar for arbejdet på arbejdsstedet\n\nSelvstændigt bedømme om jernbaneanlægget opfylder kravene i gældende normer og regler og kan idriftsættes efter indgreb","Kurser:\nKursus bevis, certificering \n\nErarings godkendelse af BDK Svejseinstruktør el BDK Svejseansvarlig:\nBilag 4 i Banedanmarks instruktion i svejsearbejde: Tilladelse til aluminotermisk svejsearbejde","Banedanmark Svejseansvarlig eller svejseinstruktør gennemgår kurser, certificeringer og erfaring inden svejseren løser de enkelte opgaver.\n\nVed vedligehold opbevares dokumentationen af dette hos den svejseansvarlige i Teknisk Drift","Procedure for overholdelse af kompetencekravet gælder kun for svejsere og ikke andet personale, der kunne arbejde i sportet med samme opgave.\n\nIndkluderer udannelse i følgende anlægselementer: \n - Krydsning\n - Tvangsskinne\n - Tungeparti",null,"CARA"]
[31,"Tungeparti","Tungeparti","Koldretning af tunger","Sporteknik 1\n\nSporteknik 2\n\nKold- og varmeretning\n\nFKI/SKI Spor_sikring (ved Elektrificeret strækning)",null,"Kolderetning af tunger","Svejser / Fagarbejdsleder","At arbejdet udføres i henhold til gældende normer og regler\n\nDet tekniske ansvar for arbejdet på arbejdsstedet\n\nSelvstændigt bedømme om jernbaneanlægget opfylder kravene i gældende normer og regler og kan idriftsættes efter indgreb","Kurser:\nKursus bevis \n\nErarings godkendelse af BDK Svejseinstruktør el BDK Svejseansvarlig:\nBilag 4 i Banedanmarks instruktion i svejsearbejde: Tilladelse til aluminotermisk svejsearbejde","Banedanmark Svejseansvarlig eller svejseinstruktør gennemgår kurser, certificeringer og erfaring inden svejseren løser de enkelte opgaver.\n\nVed vedligehold opbevares dokumentationen af dette hos den svejseansvarlige i Teknisk Drift","Procedure for overholdelse af kompetencekravet gælder kun for svejsere og ikke andet personale, der kunne arbejde i sportet med samme opgave.",null,"CARA"]
[32,"Skinne","Skinne","Varmretning af svejsning","Sporteknik 1\n\nSporteknik 2\n\nKold- og varmeretning\n\nFKI/SKI Spor_sikring (ved Elektrificeret strækning)",null,"Varmretning af svejsning","Svejser / Fagarbejdsleder","At arbejdet udføres i henhold til gældende normer og regler\n\nDet tekniske ansvar for arbejdet på arbejdsstedet\n\nSelvstændigt bedømme om jernbaneanlægget opfylder kravene i gældende normer og regler og kan idriftsættes efter indgreb","Kurser:\nKursus bevis \n\nErarings godkendelse af BDK Svejseinstruktør el BDK Svejseansvarlig:\nBilag 4 i Banedanmarks instruktion i svejsearbejde: Tilladelse til aluminotermisk svejsearbejde","Banedanmark Svejseansvarlig eller svejseinstruktør gennemgår kurser, certificeringer og erfaring inden svejseren løser de enkelte opgaver.\n\nVed vedligehold opbevares dokumentationen af dette hos den svejseansvarlige i Teknisk Drift","Procedure for overholdelse af kompetencekravet gælder kun for svejsere og ikke andet personale, der kunne arbejde i sportet med samme opgave.\n\nIndkluderer udannelse i følgende anlægselementer: \n - Sporskifter\n - Isolerklæbestød",null,"CARA"]
[33,"Skinne","Skinne","Indgreb i langskinne","Sporteknik 1\n\nSporteknik 2\n\nSkæring, borring og slibning\n\nAluminotermisk svejsning\n\nSpændingsudligning og indgreb \n\nFKI/SKI Spor_sikring (ved Elektrificeret strækning)\n","Aluminotermisk svejsning\n\nSpændingsudligning og indgreb","Indgreb i langskinner\n\nAluminotermisk svejsning (nye skinner / brugelige ældre skinner)","Svejser / Fagarbejdsleder","At arbejdet udføres i henhold til gældende normer og regler\n\nDet tekniske ansvar for arbejdet på arbejdsstedet\n\nSelvstændigt bedømme om jernbaneanlægget opfylder kravene i gældende normer og regler og kan idriftsættes efter indgreb","Kurser:\nKursus bevis, certificering \n\nErarings godkendelse af BDK Svejseinstruktør el BDK Svejseansvarlig:\nBilag 4 i Banedanmarks instruktion i svejsearbejde: Tilladelse til aluminotermisk svejsearbejde","Banedanmark Svejseansvarlig eller svejseinstruktør gennemgår kurser, certificeringer og erfaring inden svejseren løser de enkelte opgaver. \n\nKompetencekravet er stillet i BN1-66-2 (Juli 2013) Langskinnespor, spændingsudligning og indgreb i spændingsudlignet spor.","Procedure for overholdelse af kompetencekravet gælder kun for svejsere og ikke andet personale, der kunne arbejde i sportet med samme opgave.",null,"CARA"]
[34,"Skinne","Skinne","Spændingsudligning/slutsvejsning","Sporteknik 1\n\nSporteknik 2\n\nSkæring, borring og slibning\n\nAluminotermisk svejsning\n\nSpændingsudligning og indgreb \n\nFKI/SKI Spor_sikring (ved Elektrificeret strækning)\n","Aluminotermisk svejsning\n\nSpændingsudligning og indgreb","Spændingsudligning med og uden ruller\n\nSpændingsudligning op mod et fastpunkt\n\nAluminotermisk svejsning (nye skinner / brugelige ældre skinner)\n","Svejser / Fagarbejdsleder","At arbejdet udføres i henhold til gældende normer og regler\n\nDet tekniske ansvar for arbejdet på arbejdsstedet\n\nSelvstændigt bedømme om jernbaneanlægget opfylder kravene i gældende normer og regler og kan idriftsættes efter indgreb","Kurser:\nKursus bevis, certificering \n\nErarings godkendelse af BDK Svejseinstruktør el BDK Svejseansvarlig:\nBilag 4 i Banedanmarks instruktion i svejsearbejde: Tilladelse til aluminotermisk svejsearbejde","Banedanmark Svejseansvarlig eller svejseinstruktør gennemgår kurser, certificeringer og erfaring inden svejseren løser de enkelte opgaver. \n\nKompetencekravet er stillet i BN1-66-2 (Juli 2013) Langskinnespor, spændingsudligning og indgreb i spændingsudlignet spor.","Procedure for overholdelse af kompetencekravet gælder kun for svejsere og ikke andet personale, der kunne arbejde i sportet med samme opgave.",null,"CARA"]
[35,"Tungeparti","Halvt_tungeparti","½ tungeparti - Slibning af sporskiftekomponenter","Sporteknik 1\n\nSporteknik 2\n\nSkæring, borring og slibning\n\nAluminotermisk svejsning\n\nSpændingsudligning og indgreb \n\nFKI/SKI Spor_sikring (ved Elektrificeret strækning)\n","Aluminotermisk Svejsning","Slibning af sporskiftekomponenter","Svejser / Fagarbejdsleder","At arbejdet udføres i henhold til gældende normer og regler\n\nDet tekniske ansvar for arbejdet på arbejdsstedet\n\nSelvstændigt bedømme om jernbaneanlægget opfylder kravene i gældende normer og regler og kan idriftsættes efter indgreb","Kurser:\nKursus bevis, certificering \n\nErarings godkendelse af BDK Svejseinstruktør el BDK Svejseansvarlig:\nBilag 4 i Banedanmarks instruktion i svejsearbejde: Tilladelse til aluminotermisk svejsearbejde","Banedanmark Svejseansvarlig eller svejseinstruktør gennemgår kurser, certificeringer og erfaring inden svejseren løser de enkelte opgaver.\n\nVed vedligehold opbevares dokumentationen af dette hos den svejseansvarlige i Teknisk Drift","Procedure for overholdelse af kompetencekravet gælder kun for svejsere og ikke andet personale, der kunne arbejde i sportet med samme opgave.\n\nIndkluderer udannelse i følgende anlægselementer: \n - Krydsning\n - Krydsningsparti\n - Tvangsskinne\n - Tvangsskinneparti\n - Tungeparti\n - Mellemparti\n - Mellemskinne\n - Tunge og dobbeltkrydsning",null,"CARA"]
[36,"Tungeparti","Tungeparti","Pålægssvejsning og reprofilering af sideskinne","Sporteknik 1\n\nSporteknik 2\n\nSkæring, borring og slibning\n\nAluminotermisk svejsning\n\nPålægssvejsning\n\nFKI/SKI Spor_sikring (ved Elektrificeret strækning)","Pålægssvejsning\n\nAluminotermisk Svejsning","Pålægssvejsning og reprofilering af sideskinne\n\nDispensationssvejsning af tunger","Svejser / Fagarbejdsleder","At arbejdet udføres i henhold til gældende normer og regler\n\nDet tekniske ansvar for arbejdet på arbejdsstedet\n\nSelvstændigt bedømme om jernbaneanlægget opfylder kravene i gældende normer og regler og kan idriftsættes efter indgreb","Kurser:\nKursus bevis, certificering \n\nErarings godkendelse af BDK Svejseinstruktør el BDK Svejseansvarlig:\nBilag 4 i Banedanmarks instruktion i svejsearbejde: Tilladelse til aluminotermisk svejsearbejde","Banedanmark Svejseansvarlig eller svejseinstruktør gennemgår kurser, certificeringer og erfaring inden svejseren løser de enkelte opgaver.\n\nVed vedligehold opbevares dokumentationen af dette hos den svejseansvarlige i Teknisk Drift","Procedure for overholdelse af kompetencekravet gælder kun for svejsere og ikke andet personale, der kunne arbejde i sportet med samme opgave.",null,"CARA"]
[37,"Tungeparti","Tungeparti","Afslibning efter tungeslidmål","Sporteknik 1\n\nSporteknik 2\n\nSkæring, borring og slibning\n\nAluminotermisk svejsning\n\nPålægssvejsning\n\nFKI/SKI Spor_sikring (ved Elektrificeret strækning)","Pålægssvejsning\n\nAluminotermisk Svejsning","Afslibning efter tungeslidmål\n\nAfslibning af grater/næb o.l\n\nSlibning ved angstlask","Svejser / Fagarbejdsleder","At arbejdet udføres i henhold til gældende normer og regler\n\nDet tekniske ansvar for arbejdet på arbejdsstedet\n\nSelvstændigt bedømme om jernbaneanlægget opfylder kravene i gældende normer og regler og kan idriftsættes efter indgreb","Kurser:\nKursus bevis, certificering \n\nErarings godkendelse af BDK Svejseinstruktør el BDK Svejseansvarlig:\nBilag 4 i Banedanmarks instruktion i svejsearbejde: Tilladelse til aluminotermisk svejsearbejde","Banedanmark Svejseansvarlig eller svejseinstruktør gennemgår kurser, certificeringer og erfaring inden svejseren løser de enkelte opgaver.\n\nVed vedligehold opbevares dokumentationen af dette hos den svejseansvarlige i Teknisk Drift","Procedure for overholdelse af kompetencekravet gælder kun for svejsere og ikke andet personale, der kunne arbejde i sportet med samme opgave.",null,"CARA"]
[38,"Krydsning","Krydsning","Pålægssvejsning og reprofilering af krydsninger","Sporteknik 1\n\nSporteknik 2\n\nSkæring, borring og slibning\n\nAluminotermisk svejsning\n\nPålægssvejsning\n\nFKI/SKI Spor_sikring (ved Elektrificeret strækning)","Pålægssvejsning\n\nAluminotermisk Svejsning","Pålægssvejsning og reprofilering af krydsninger","Svejser / Fagarbejdsleder","At arbejdet udføres i henhold til gældende normer og regler\n\nDet tekniske ansvar for arbejdet på arbejdsstedet\n\nSelvstændigt bedømme om jernbaneanlægget opfylder kravene i gældende normer og regler og kan idriftsættes efter indgreb","Kurser:\nKursus bevis, certificering \n\nErarings godkendelse af BDK Svejseinstruktør el BDK Svejseansvarlig:\nBilag 4 i Banedanmarks instruktion i svejsearbejde: Tilladelse til aluminotermisk svejsearbejde","Banedanmark Svejseansvarlig eller svejseinstruktør gennemgår kurser, certificeringer og erfaring inden svejseren løser de enkelte opgaver.\n\nVed vedligehold opbevares dokumentationen af dette hos den svejseansvarlige i Teknisk Drift","Procedure for overholdelse af kompetencekravet gælder kun for svejsere og ikke andet personale, der kunne arbejde i sportet med samme opgave.",null,"CARA"]
[39,"Krydsning","Krydsning","Stødopretning","Sporteknik 1\n\nSporteknik 2\n\nSkæring, borring og slibning\n\nAluminotermisk svejsning\n\nPålægssvejsning\n\nFKI/SKI Spor_sikring (ved Elektrificeret strækning)","Pålægssvejsning\n\nAluminotermisk Svejsning","Stødopretning","Svejser / Fagarbejdsleder","At arbejdet udføres i henhold til gældende normer og regler\n\nDet tekniske ansvar for arbejdet på arbejdsstedet\n\nSelvstændigt bedømme om jernbaneanlægget opfylder kravene i gældende normer og regler og kan idriftsættes efter indgreb","Kurser:\nKursus bevis, certificering \n\nErarings godkendelse af BDK Svejseinstruktør el BDK Svejseansvarlig:\nBilag 4 i Banedanmarks instruktion i svejsearbejde: Tilladelse til aluminotermisk svejsearbejde","Banedanmark Svejseansvarlig eller svejseinstruktør gennemgår kurser, certificeringer og erfaring inden svejseren løser de enkelte opgaver.\n\nVed vedligehold opbevares dokumentationen af dette hos den svejseansvarlige i Teknisk Drift","Procedure for overholdelse af kompetencekravet gælder kun for svejsere og ikke andet personale, der kunne arbejde i sportet med samme opgave.",null,"CARA"]
[40,"krydsning","krydsning","Regulering iht. relevante sporskiftemål og sporriller","Sporteknik 1\n\nSporteknik 2\n\nSkæring, borring og slibning\n\nAluminotermisk svejsning\n\nPålægssvejsning\n\nFKI/SKI Spor_sikring (ved Elektrificeret strækning)","Pålægssvejsning\n\nAluminotermisk Svejsning","Regulering iht. relevante sporskiftemålog sporriller","Svejser / Fagarbejdsleder","At arbejdet udføres i henhold til gældende normer og regler\n\nDet tekniske ansvar for arbejdet på arbejdsstedet\n\nSelvstændigt bedømme om jernbaneanlægget opfylder kravene i gældende normer og regler og kan idriftsættes efter indgreb","Kurser:\nKursus bevis, certificering \n\nErarings godkendelse af BDK Svejseinstruktør el BDK Svejseansvarlig:\nBilag 4 i Banedanmarks instruktion i svejsearbejde: Tilladelse til aluminotermisk svejsearbejde","Banedanmark Svejseansvarlig eller svejseinstruktør gennemgår kurser, certificeringer og erfaring inden svejseren løser de enkelte opgaver.\n\nVed vedligehold opbevares dokumentationen af dette hos den svejseansvarlige i Teknisk Drift","Procedure for overholdelse af kompetencekravet gælder kun for svejsere og ikke andet personale, der kunne arbejde i sportet med samme opgave.",null,"CARA"]
[41,"Tvangsskinne","Tvangsskinne","Pålægssvejsning og reprofilering af tvangsskinner","Sporteknik 1\n\nSporteknik 2\n\nSkæring, borring og slibning\n\nAluminotermisk svejsning\n\nPålægssvejsning\n\nFKI/SKI Spor_sikring (ved Elektrificeret strækning)","Pålægssvejsning\n\nAluminotermisk Svejsning","Pålægssvejsning og reprofilering af tvangsskinner","Svejser / Fagarbejdsleder","At arbejdet udføres i henhold til gældende normer og regler\n\nDet tekniske ansvar for arbejdet på arbejdsstedet\n\nSelvstændigt bedømme om jernbaneanlægget opfylder kravene i gældende normer og regler og kan idriftsættes efter indgreb","Kurser:\nKursus bevis, certificering \n\nErarings godkendelse af BDK Svejseinstruktør el BDK Svejseansvarlig:\nBilag 4 i Banedanmarks instruktion i svejsearbejde: Tilladelse til aluminotermisk svejsearbejde","Banedanmark Svejseansvarlig eller svejseinstruktør gennemgår kurser, certificeringer og erfaring inden svejseren løser de enkelte opgaver.\n\nVed vedligehold opbevares dokumentationen af dette hos den svejseansvarlige i Teknisk Drift","Procedure for overholdelse af kompetencekravet gælder kun for svejsere og ikke andet personale, der kunne arbejde i sportet med samme opgave.",null,"CARA"]
[42,"Tvangsskinne","Tvangsskinne","Regulering iht. relevante sporskiftemål og sporriller, herunder montering af indskudsplade","Sporteknik 1\n\nSporteknik 2\n\nSkæring, borring og slibning\n\nAluminotermisk svejsning\n\nPålægssvejsning\n\nFKI/SKI Spor_sikring (ved Elektrificeret strækning)","Pålægssvejsning\n\nAluminotermisk Svejsning","Regulering iht. relevante sporskiftemål og sporriller, herunder montering af indskudsplade","Svejser / Fagarbejdsleder","At arbejdet udføres i henhold til gældende normer og regler\n\nDet tekniske ansvar for arbejdet på arbejdsstedet\n\nSelvstændigt bedømme om jernbaneanlægget opfylder kravene i gældende normer og regler og kan idriftsættes efter indgreb","Kurser:\nKursus bevis, certificering \n\nErarings godkendelse af BDK Svejseinstruktør el BDK Svejseansvarlig:\nBilag 4 i Banedanmarks instruktion i svejsearbejde: Tilladelse til aluminotermisk svejsearbejde","Banedanmark Svejseansvarlig eller svejseinstruktør gennemgår kurser, certificeringer og erfaring inden svejseren løser de enkelte opgaver.\n\nVed vedligehold opbevares dokumentationen af dette hos den svejseansvarlige i Teknisk Drift","Procedure for overholdelse af kompetencekravet gælder kun for svejsere og ikke andet personale, der kunne arbejde i sportet med samme opgave.",null,"CARA"]
[43,"Skinne","Skinne","Pålægssvejsning og reprofilering af skinne","Sporteknik 1\n\nSporteknik 2\n\nSkæring, borring og slibning\n\nAluminotermisk svejsning\n\nPålægssvejsning\n\nFKI/SKI Spor_sikring (ved Elektrificeret strækning)","Pålægssvejsning\n\nAluminotermisk Svejsning","Pålægssvejsning og reprofilering af skinne","Svejser / Fagarbejdsleder","At arbejdet udføres i henhold til gældende normer og regler\n\nDet tekniske ansvar for arbejdet på arbejdsstedet\n\nSelvstændigt bedømme om jernbaneanlægget opfylder kravene i gældende normer og regler og kan idriftsættes efter indgreb","Kurser:\nKursus bevis, certificering \n\nErarings godkendelse af BDK Svejseinstruktør el BDK Svejseansvarlig:\nBilag 4 i Banedanmarks instruktion i svejsearbejde: Tilladelse til aluminotermisk svejsearbejde","Banedanmark Svejseansvarlig eller svejseinstruktør gennemgår kurser, certificeringer og erfaring inden svejseren løser de enkelte opgaver.\n\nVed vedligehold opbevares dokumentationen af dette hos den svejseansvarlige i Teknisk Drift","Procedure for overholdelse af kompetencekravet gælder kun for svejsere og ikke andet personale, der kunne arbejde i sportet med samme opgave.",null,"CARA"]
[44,"Spor","Spor","Manuel justering af spor","Sporteknik 1\n\nSporteknik 2",null,"Normkendskab (BN1-38)","Fagarbejdslederen","At arbejdet udføres i henhold til gældende normer og regler\n\nDet tekniske ansvar for arbejdet på arbejdsstedet\n\nSelvstændigt bedømme om jernbaneanlægget opfylder kravene i gældende normer og regler og kan idriftsættes efter indgreb",null,null,"Norm\n - BN1-38 (kapitel","TSI INF","BNIE"]
[45,"Spor","Spor","Overvågning af sporets beliggenhed ved udførsel af arbejder omkring spor i drift, der kan påvirke sporets beliggenhed","Sporteknik 1\n\nSporteknik 2",null,"Normkendskab (BN1-38)","Fagarbejdslederen","At arbejdet udføres i henhold til gældende normer og regler\n\nDet tekniske ansvar for arbejdet på arbejdsstedet\n\nSelvstændigt bedømme om jernbaneanlægget opfylder kravene i gældende normer og regler og kan idriftsættes efter indgreb",null,null,"Norm\nBN1-38 (kapitel 11 + 13)",null,"BNIE"]
[46,"Spor","Spor","Maskinel udbedring af sporbeliggenhedsfejl","Sporteknik 1\n\nSporteknik 2\n\nFKI/SKI Spor_sikring (ved Elektrificeret strækninger)",null,"Har gennemført en lignende opgave tidligere (sidemandsoplæring)\n\nNormkendskab (BN1-6, BN1-38, BN1-49)","Fagarbejdslederen","At arbejdet udføres i henhold til gældende normer og regler\n\nDet tekniske ansvar for arbejdet på arbejdsstedet\n\nSelvstændigt bedømme om jernbaneanlægget opfylder kravene i gældende normer og regler og kan idriftsættes efter indgreb",null,null,"Normdækning\nBN1-38\nBN1-6\nBN1-49","TSI  INF","BNIE"]
[47,"Overkørsel","Overkørsel","Belægningsarbejde i overkørsler","Sporteknik 1\n\nSporteknik 2\n\nFKI/SKI Spor_sikring (ved Elektrificeret strækninger)",null,"Har gennemført en lignende opgave tidligere (sidemandsoplæring)\n\nNormkendskab (Fritrum)","Fagarbejdslederen","At arbejdet udføres i henhold til gældende normer og regler\n\nDet tekniske ansvar for arbejdet på arbejdsstedet\n\nSelvstændigt bedømme om jernbaneanlægget opfylder kravene i gældende normer og regler og kan idriftsættes efter indgreb",null,null,"Normdækning\nFritrum ",null,"MHSR"]
[48,"Spor","Spor","Efterbehandling af data i forbindelse med krabbemåling",null,null,"Normkendskab (BN1-38)\n\nViden om hastighedsprofil","Fagarbejdslederen","At arbejdet udføres i henhold til gældende normer og regler\n\nDet tekniske ansvar for arbejdet på arbejdsstedet\n\nSelvstændigt bedømme om jernbaneanlægget opfylder kravene i gældende normer og regler og kan idriftsættes efter indgreb",null,null,"Normdækning\n - BN1-38",null,"BNIE"]
[49,"Spor","Spor","Landmåling inkl. projektering af spor  geometri",null,null,"Normkendskab (BN2-94 og Sporregler 1987)","Fagarbejdslederen","At arbejdet udføres i henhold til gældende normer og regler\n\nDet tekniske ansvar for arbejdet på arbejdsstedet\n\nSelvstændigt bedømme om jernbaneanlægget opfylder kravene i gældende normer og regler og kan idriftsættes efter indgreb",null,null,"Normdækning:\n - BN2-94\n - Sporregler 1987",null,"BNIE"]
[50,"Spor","Spor","Ultralydsscanning med håndtrolje og håndholdt ultralydsscanner","Sportek1\n\nSportek2\n\nForce ultralydskursus",null,"Normkendskab (BN1-66)","Fagarbejdslederen","At arbejdet udføres i henhold til gældende normer og regler\n\nDet tekniske ansvar for arbejdet på arbejdsstedet\n\nSelvstændigt bedømme om jernbaneanlægget opfylder kravene i gældende normer og regler og kan idriftsættes efter indgreb",null,null,"Normdækning:\nBN1-66\n\nhttp://forcetechnology.com/da/kurser/ndt-kurser-overblik/kursus-i-ultralydproevning",null,"CARA"]
[51,"Spor","Spor","Eddy Current måling","Sportek1\n\nSportek2\n\nForce ultralydskursus",null,"Normkendskab (BN1-66)","Fagarbejdslederen","At arbejdet udføres i henhold til gældende normer og regler\n\nDet tekniske ansvar for arbejdet på arbejdsstedet\n\nSelvstændigt bedømme om jernbaneanlægget opfylder kravene i gældende normer og regler og kan idriftsættes efter indgreb",null,null,"http://forcetechnology.com/da/kurser/ndt-kurser-overblik/kurser-i-hvirvelstroemsproevning",null,"CARA"]

{"sheet":"Spor","index":8,"n_rows":13,"n_cols":6,"rows_kept":13,"cut":false,"hidden":true,"merged":[[5,2,5,3],[6,2,6,3]]}
["Spor",{"$f":"CONCATENATE(\"Fagkompetencer \",A1,\" - \",C7)","v":"Fagkompetencer Spor - (Vælg)"}]
["Krav til fagkompetencer - Spor"]
[]
[null,"Gemt/udskrevet af:",{"$f":"Fagkompetencekrav!F32","v":"Hasse Kruse; HPET"},{"$f":"NOW()","v":"2017-05-01T16:08:21.930"}]
[]
[null,"Anlægselement","(Vælg)"]
[null,"Opgavetype","(Vælg)"]
[]
[]
[]
[null,2,3,4,5,6]
[null,"Kompetencekrav\nKurser","Kompetencekrav\nCertificeringer","Kompetencekrav\nErfaringsgodkendelse fra BDK","Krav vedrører","Ansvar"]
[null,{"$f":"IFERROR(IF(VLOOKUP($C$7,'Spor DATA'!$D$4:$K$71,B11,FALSE)=0,\"\",VLOOKUP($C$7,'Spor DATA'!$D$4:$K$71,B11,FALSE)),\"\")","v":""},{"$f":"IFERROR(IF(VLOOKUP($C$7,'Spor DATA'!$D$4:$K$71,C11,FALSE)=0,\"\",VLOOKUP($C$7,'Spor DATA'!$D$4:$K$71,C11,FALSE)),\"\")","v":""},{"$f":"IFERROR(IF(VLOOKUP($C$7,'Spor DATA'!$D$4:$K$71,D11,FALSE)=0,\"\",VLOOKUP($C$7,'Spor DATA'!$D$4:$K$71,D11,FALSE)),\"\")","v":""},{"$f":"IFERROR(IF(VLOOKUP($C$7,'Spor DATA'!$D$4:$K$71,E11,FALSE)=0,\"\",VLOOKUP($C$7,'Spor DATA'!$D$4:$K$71,E11,FALSE)),\"\")","v":""},{"$f":"IFERROR(IF(VLOOKUP($C$7,'Spor DATA'!$D$4:$K$71,F11,FALSE)=0,\"\",VLOOKUP($C$7,'Spor DATA'!$D$4:$K$71,F11,FALSE)),\"\")","v":""}]

{"sheet":"Sikring DATA","index":9,"n_rows":47,"n_cols":33,"rows_kept":47,"cut":false,"hidden":true,"merged":[[0,0,0,8],[1,4,1,5]]}
["Fag: Sikring\nOverblik over kompetencekrav februar 2015\nSamtlige kompetencekrav for faget sikring står i kursusmaterialet for faget. Det er Banedanmark HR der udbyder kurserne,  hvor det enten er BDK TSA'er eller Atkins der forestår selve undervisningen. Atkins er blevet akrediteret til at forestå uddannelserne af BDK. Alle der gennemføre uddannelserne i BDK regi, bliver registreret i BDK's systemer\n\nGrunduddannelsen for sikringsteknikere består af følgende fag tekniske moduler: \n - Stationssikringsanlæg type 1953/54 \n - Sporskiftedrev 1957/1979 (inklusive fejlretning)\n - DC sporisolation\n - Måleteknik\n - Automatisk Linjeblok type 1954B",null,null,null,null,null,null,null,null,null,"Funktioner:\n - Sikringstekniker\n - Sikringsarbejder",null,null,"DONE"]
[null,null,null,null,"Kompetencekrav"]
["ID","Anlægselement","Anlægselementtype","Opgavetype","Grunduddannelse","Kurser","Kravet vedrører","Ansvar","Dokumentation","Administration","Bemærkninger (gruppenummer opdelt i farver",null,null,"(Vælg)","(Vælg)","(Vælg)","(Vælg)","(Vælg)","(Vælg)","(Vælg)","(Vælg)","(Vælg)","(Vælg)","(Vælg)","(Vælg)","(Vælg)","(Vælg)","(Vælg)","(Vælg)","(Vælg)","(Vælg)","(Vælg)","(Vælg)"]
[1,"ATC_anlæg","ATC-Anlæg",null,"Sikringstekniker","ATC grundkursus\n\nFKI_SKI Spor_sikring (ved elektrificerede strækning)","Fagarbejdslederen","At arbejdet udføres i henhold til gældende normer og regler\n\nDet tekniske ansvar for arbejdet på arbejdsstedet\n\nSelvstændigt bedømme om jernbaneanlægget opfylder kravene i gældende normer og regler og kan idriftsættes efter indgreb","Uddannelsesbevis, kursusbevis","Kontrakt\nÅrlig gennemgang af entreprenørens medarbejderliste og CV'er","Indkluderer udannelse i følgende anlægselementer: \n - ATC Linjeleder \n - Balise",null,null,"Linieblokanlæg","1951_linie","1926_spsk","1246_varsl","10-100 KHz. Sporisolation","Bues 2000","RCTC","Alcatel","Sicas S5","HKT-anlæg","Centraldel","FST","Fast mærke","SPSK omstillingsanlæg","DCTC","STL overvågning","ATC anlæg","Kabelanlæg","Hytter skabe","Jordfejlmelder"]
[2,"HKT_anlæg","HKT-anlæg",null,"Sikringstekniker","Stationssikringsanlæg og linjeblok 69\n\nStationssikringsanlæg type 1964\n\nFKI_SKI Spor_sikring (ved elektrificerede strækning)","Fagarbejdslederen","At arbejdet udføres i henhold til gældende normer og regler\n\nDet tekniske ansvar for arbejdet på arbejdsstedet\n\nSelvstændigt bedømme om jernbaneanlægget opfylder kravene i gældende normer og regler og kan idriftsættes efter indgreb","Uddannelsesbevis, kursusbevis","Samme som ovenfor","Inkluderer uddannelse i følgende anlægselementer: \n - HKT Afsnit \n - Sdaase",null,null,"Sporskiftedrev","1954b_linie","1957_spsk","1954_varsl","77 HZ sporisolationer","Relæ","TCTC","Honeywell","1990_stat"]
[3,"Sporskiftedrev","1926_spsk",null,"Sikringstekniker","Sporskiftedrev 1926 (udbydes ikke)\n\nFKI_SKI Spor_sikring (ved elektrificerede strækning)","Fagarbejdslederen","At arbejdet udføres i henhold til gældende normer og regler\n\nDet tekniske ansvar for arbejdet på arbejdsstedet\n\nSelvstændigt bedømme om jernbaneanlægget opfylder kravene i gældende normer og regler og kan idriftsættes efter indgreb",null,null,"Ingen uddannelse er opstillet inden for dette anlæg. Et anlæg der kun er meget få tilbage af i DK (herunder på strjkningen Jægerborg-Hillerød, hvor Signalprogrammet har Early deployment.",null,null,"Stationssikringsanlæg_varslingsanlæg","1957_linie","1979_spsk","1964_varsl","DC sporisolationer"]
[19,"Stationssikringsanlæg_varslingsanlæg","1977_varsl",null,"Sikringstekniker","Stationssikringsanlæg 1977\n\nFKI_SKI Spor_sikring (ved elektrificerede strækning)","Fagarbejdslederen","At arbejdet udføres i henhold til gældende normer og regler\n\nDet tekniske ansvar for arbejdet på arbejdsstedet\n\nSelvstændigt bedømme om jernbaneanlægget opfylder kravene i gældende normer og regler og kan idriftsættes efter indgreb","Uddannelsesbevis, kursusbevis","Samme som ovenfor","Inkluderer uddannelse i følgende anlægselementer:\n - Batteri/akkumulator\n - Betjeningsapparat\n - Kabelanlæg (skal også bruger slidsning - separat kursus\n - Komponent\n - Ladeensretter\n - Signal",null,null,"Togdetektering","1967_linie","1987_spsk","1969_varsl","FTGS"]
[5,"Sporskiftedrev","1979_spsk",null,"Sikringstekniker","FKI_SKI Spor_sikring (ved elektrificerede strækning)","Fagarbejdslederen","At arbejdet udføres i henhold til gældende normer og regler\n\nDet tekniske ansvar for arbejdet på arbejdsstedet\n\nSelvstændigt bedømme om jernbaneanlægget opfylder kravene i gældende normer og regler og kan idriftsættes efter indgreb","Uddannelsesbevis, kursusbevis","Samme som ovenfor","Indkluderer uddannelse i følgende anlægselement: \n - Sporskiftestang (afhængigt af anlæg)",null,null,"Overkørselsanlæg","1969_linie","1994_spsk","1972_varsl"]
[6,"Sporskiftedrev","1987_spsk",null,"Sikringstekniker","FKI_SKI Spor_sikring (ved elektrificerede strækning)","Fagarbejdslederen","At arbejdet udføres i henhold til gældende normer og regler\n\nDet tekniske ansvar for arbejdet på arbejdsstedet\n\nSelvstændigt bedømme om jernbaneanlægget opfylder kravene i gældende normer og regler og kan idriftsættes efter indgreb","Uddannelsesbevis, kursusbevis","Samme som ovenfor","Indkluderer uddannelse i følgende anlægselement: \n - Sporskiftestang (afhængigt af anlæg)",null,null,"Fjernstyringscentral","1977_linie","2005_spsk","1977_varsl"]
[7,"Sporskiftedrev","1994_spsk",null,"Sikringstekniker","Sporskifttype 1994\n\nFKI_SKI Spor_sikring (ved elektrificerede strækning)","Fagarbejdslederen","At arbejdet udføres i henhold til gældende normer og regler\n\nDet tekniske ansvar for arbejdet på arbejdsstedet\n\nSelvstændigt bedømme om jernbaneanlægget opfylder kravene i gældende normer og regler og kan idriftsættes efter indgreb","Uddannelsesbevis, kursusbevis","Samme som ovenfor","Indkluderer uddannelse i følgende anlægselement: \n - Sporskiftestang (afhængigt af anlæg)",null,null,"Akseltæller","1982_linie"]
[8,"Sporskiftedrev","2005_spsk",null,"Sikringstekniker","FKI_SKI Spor_sikring (ved elektrificerede strækning)","Fagarbejdslederen","At arbejdet udføres i henhold til gældende normer og regler\n\nDet tekniske ansvar for arbejdet på arbejdsstedet\n\nSelvstændigt bedømme om jernbaneanlægget opfylder kravene i gældende normer og regler og kan idriftsættes efter indgreb","Uddannelsesbevis, kursusbevis","Samme som ovenfor","Indkluderer uddannelse i følgende anlægselement: \n - Sporskiftestang (afhængigt af anlæg)",null,null,"Stationssikringsanlæg","1991_linie"]
[9,"Fjernstyringscentral","RCTC",null,"Sikringstekniker","Relæfjernstyring\n\nFKI_SKI Spor_sikring (ved elektrificerede strækning)","Fagarbejdslederen","At arbejdet udføres i henhold til gældende normer og regler\n\nDet tekniske ansvar for arbejdet på arbejdsstedet\n\nSelvstændigt bedømme om jernbaneanlægget opfylder kravene i gældende normer og regler og kan idriftsættes efter indgreb","Uddannelsesbevis, kursusbevis","Samme som ovenfor","Indkluderer uddannelse i følgende anlægselement: \n - Fjernstyringunderst (Type RCTC)\n - FC Klasse\n - FC Delsystem",null,null,"HKT_anlæg","FELB_linie"]
[10,"Fjernstyringscentral","TCTC",null,"Sikringstekniker","Tonefjernstyring\n\nFKI_SKI Spor_sikring (ved elektrificerede strækning)","Fagarbejdslederen","At arbejdet udføres i henhold til gældende normer og regler\n\nDet tekniske ansvar for arbejdet på arbejdsstedet\n\nSelvstændigt bedømme om jernbaneanlægget opfylder kravene i gældende normer og regler og kan idriftsættes efter indgreb","Uddannelsesbevis, kursusbevis","Samme som ovenfor","Indkluderer uddannelse i følgende anlægselement:\n - Fjernstyringunderst (Type TCTC)\n - FC Klasse\n - FC Delsystem",null,null,"Centraldel"]
[11,"Fjernstyringsunderst","DCTC",null,"Sikringstekniker","DC Fjernstyring\n\nFKI_SKI Spor_sikring (ved elektrificerede strækning)","Fagarbejdslederen","At arbejdet udføres i henhold til gældende normer og regler\n\nDet tekniske ansvar for arbejdet på arbejdsstedet\n\nSelvstændigt bedømme om jernbaneanlægget opfylder kravene i gældende normer og regler og kan idriftsættes efter indgreb","Uddannelsesbevis, kursusbevis","Samme som ovenfor","Indkluderer uddannelse i følgende anlægselement:\n - FC Klasse\n - FC Delsystem",null,null,"FST"]
[12,"Overkørselsanlæg","Bues 2000",null,"Sikringstekniker","Bues 2000\n\nAdvarselsanlæg type PLC\n\nFKI_SKI Spor_Sikring (ved elektrificeret strækning)","Fagarbejdslederen","At arbejdet udføres i henhold til gældende normer og regler\n\nDet tekniske ansvar for arbejdet på arbejdsstedet\n\nSelvstændigt bedømme om jernbaneanlægget opfylder kravene i gældende normer og regler og kan idriftsættes efter indgreb","Uddannelsesbevis, kursusbevis","Samme som ovenfor","Indkluderer uddannelse i følgende anlægselement: \n - Signal\n - Betjeningskasse\n - Kabelanlæg (skal også bruge splidsning - separat kursus)\n - Komponent\n - Ladeensretter",null,null,"Fast_mærke"]
[13,"Overkørselsanlæg","Relæ",null,"Sikringstekniker","Advarselsanlæg\n\nOverkørselsanlæg 1/2 og 1/1 bomme\n\nFejlretning overkørselsanlæg (kun krav ved fejlretning)\n\nFKI_SKI Spor_Sikring (ved elektrificeret strækning)","Fagarbejdslederen","At arbejdet udføres i henhold til gældende normer og regler\n\nDet tekniske ansvar for arbejdet på arbejdsstedet\n\nSelvstændigt bedømme om jernbaneanlægget opfylder kravene i gældende normer og regler og kan idriftsættes efter indgreb","Uddannelsesbevis, kursusbevis","Samme som ovenfor","Indkluderer uddannelse i følgende anlægselement: \n - Bom/Bomdrev\n - Signal\n - Betjeningskasse\n - Kabelanlæg (skal også bruge splidsning - separat kursus)\n - Komponent\n - Ladeensretter",null,null,"SPSK_omstillingsanlæg"]
[14,"Stationssikringsanlæg_varslingsanlæg","1246_varsl",null,"Sikringstekniker","Stationssikringsanlæg 1246 \n\nFKI_SKI Spor_sikring (ved elektrificerede strækning)","Fagarbejdslederen","At arbejdet udføres i henhold til gældende normer og regler\n\nDet tekniske ansvar for arbejdet på arbejdsstedet\n\nSelvstændigt bedømme om jernbaneanlægget opfylder kravene i gældende normer og regler og kan idriftsættes efter indgreb","Uddannelsesbevis, kursusbevis","Samme som ovenfor","Ingen uddannelse er opstillet inden for dette anlæg. Et anlæg der kun er meget få tilbage af i DK (herunder på strjkningen Jægerborg-Hillerød, hvor Signalprogrammet har Early deployment.",null,null,"Fjernstyringsunderst"]
[15,"Stationssikringsanlæg_varslingsanlæg","1954_varsl",null,"Sikringstekniker","FKI_SKI Spor_sikring (ved elektrificerede strækning)","Fagarbejdslederen","At arbejdet udføres i henhold til gældende normer og regler\n\nDet tekniske ansvar for arbejdet på arbejdsstedet\n\nSelvstændigt bedømme om jernbaneanlægget opfylder kravene i gældende normer og regler og kan idriftsættes efter indgreb","Uddannelsesbevis, kursusbevis","Samme som ovenfor","Inkluderer uddannelse i følgende anlægselementer:\n - Batteri/akkumulator\n - Betjeningsapparat\n - Kabelanlæg (skal også bruger slidsning - separat kursus\n - Komponent\n - Ladeensretter\n - Signal",null,null,"STL_Overvågning"]
[16,"Stationssikringsanlæg_varslingsanlæg","1964_varsl",null,"Sikringstekniker","Stationssikringsanlæg 1964\n\nFKI_SKI Spor_sikring (ved elektrificerede strækning)","Fagarbejdslederen","At arbejdet udføres i henhold til gældende normer og regler\n\nDet tekniske ansvar for arbejdet på arbejdsstedet\n\nSelvstændigt bedømme om jernbaneanlægget opfylder kravene i gældende normer og regler og kan idriftsættes efter indgreb","Uddannelsesbevis, kursusbevis","Samme som ovenfor","Inkluderer uddannelse i følgende anlægselementer:\n - Batteri/akkumulator\n - Betjeningsapparat\n - Kabelanlæg (skal også bruger slidsning - separat kursus\n - Komponent\n - Ladeensretter\n - Signal",null,null,"ATC_anlæg"]
[17,"Stationssikringsanlæg_varslingsanlæg","1969_varsl",null,"Sikringstekniker","Stationssikringsanlæg 1969\n\nFKI_SKI Spor_sikring (ved elektrificerede strækning)","Fagarbejdslederen","At arbejdet udføres i henhold til gældende normer og regler\n\nDet tekniske ansvar for arbejdet på arbejdsstedet\n\nSelvstændigt bedømme om jernbaneanlægget opfylder kravene i gældende normer og regler og kan idriftsættes efter indgreb","Uddannelsesbevis, kursusbevis","Samme som ovenfor","Inkluderer uddannelse i følgende anlægselementer:\n - Batteri/akkumulator\n - Betjeningsapparat\n - Kabelanlæg (skal også bruger slidsning - separat kursus\n - Komponent\n - Ladeensretter\n - Signal",null,null,"Kabelanlæg"]
[18,"Stationssikringsanlæg_varslingsanlæg","1972_varsl",null,"Sikringstekniker","Stationssikringsanlæg 1972\n\nFKI_SKI Spor_sikring (ved elektrificerede strækning)","Fagarbejdslederen","At arbejdet udføres i henhold til gældende normer og regler\n\nDet tekniske ansvar for arbejdet på arbejdsstedet\n\nSelvstændigt bedømme om jernbaneanlægget opfylder kravene i gældende normer og regler og kan idriftsættes efter indgreb","Uddannelsesbevis, kursusbevis","Samme som ovenfor","Inkluderer uddannelse i følgende anlægselementer:\n - Batteri/akkumulator\n - Betjeningsapparat\n - Kabelanlæg (skal også bruger slidsning - separat kursus\n - Komponent\n - Ladeensretter\n - Signal",null,null,"Hytter_skabe"]
[34,"Linieblokanlæg","1977_linie",null,"Sikringstekniker","Automatisk Liniblok 1954B\n\nFKI_SKI Spor_sikring (ved elektrificerede strækning)","Fagarbejdslederen","At arbejdet udføres i henhold til gældende normer og regler\n\nDet tekniske ansvar for arbejdet på arbejdsstedet\n\nSelvstændigt bedømme om jernbaneanlægget opfylder kravene i gældende normer og regler og kan idriftsættes efter indgreb","Uddannelsesbevis, kursusbevis","Samme som ovenfor","Inkluderer uddannelse i følgende anlægselementer:\n - Batteri/akkumulator\n - Betjeningsapparat\n - Kabelanlæg (skal også bruger slidsning - separat kursus\n - Komponent\n - Ladeensretter\n - Signal\n - Delepunkt",null,null,"Jordfejlmelder"]
[20,"Stationssikringsanlæg","1990_stat",null,"Sikringstekniker","Stationssikringsanlæg 1990\n\nFKI_SKI Spor_sikring (ved elektrificerede strækning)","Fagarbejdslederen","At arbejdet udføres i henhold til gældende normer og regler\n\nDet tekniske ansvar for arbejdet på arbejdsstedet\n\nSelvstændigt bedømme om jernbaneanlægget opfylder kravene i gældende normer og regler og kan idriftsættes efter indgreb","Uddannelsesbevis, kursusbevis","Samme som ovenfor","Inkluderer uddannelse i følgende anlægselementer:\n - Batteri/akkumulator\n - Betjeningsapparat\n - Kabelanlæg (skal også bruger slidsning - separat kursus\n - Komponent\n - Ladeensretter\n - Signal"]
[21,"Stationssikringsanlæg","Sicas S5",null,"Sikringstekniker","Stationssikringsanlæg Sicas S5\n\nFKI_SKI Spor_sikring (ved elektrificerede strækning)","Fagarbejdslederen","At arbejdet udføres i henhold til gældende normer og regler\n\nDet tekniske ansvar for arbejdet på arbejdsstedet\n\nSelvstændigt bedømme om jernbaneanlægget opfylder kravene i gældende normer og regler og kan idriftsættes efter indgreb","Uddannelsesbevis, kursusbevis","Samme som ovenfor","Inkluderer uddannelse i følgende anlægselementer:\n - Batteri/akkumulator\n - Betjeningsapparat\n - Kabelanlæg (skal også bruger slidsning - separat kursus\n - Komponent\n - Ladeensretter\n - Signal"]
[22,"Akseltæller","Alcatel",null,"Sikringstekniker","Akseltæller type Alcatel\n\nFKI_SKI Spor_sikring (ved elektrificerede strækning)","Fagarbejdslederen","At arbejdet udføres i henhold til gældende normer og regler\n\nDet tekniske ansvar for arbejdet på arbejdsstedet\n\nSelvstændigt bedømme om jernbaneanlægget opfylder kravene i gældende normer og regler og kan idriftsættes efter indgreb","Uddannelsesbevis, kursusbevis","Samme som ovenfor"]
[23,"Akseltæller","Honeywell",null,"Sikringstekniker","Akseltæller type Honeywell\n\nFKI_SKI Spor_sikring (ved elektrificerede strækning)","Fagarbejdslederen","At arbejdet udføres i henhold til gældende normer og regler\n\nDet tekniske ansvar for arbejdet på arbejdsstedet\n\nSelvstændigt bedømme om jernbaneanlægget opfylder kravene i gældende normer og regler og kan idriftsættes efter indgreb","Uddannelsesbevis, kursusbevis","Samme som ovenfor"]
[24,"Centraldel","Centraldel",null,"Sikringstekniker","FKI_SKI Spor_sikring (ved elektrificerede strækning)","Fagarbejdslederen","At arbejdet udføres i henhold til gældende normer og regler\n\nDet tekniske ansvar for arbejdet på arbejdsstedet\n\nSelvstændigt bedømme om jernbaneanlægget opfylder kravene i gældende normer og regler og kan idriftsættes efter indgreb","Uddannelsesbevis, kursusbevis","Samme som ovenfor"]
[25,"Fast_ mærke","Fast mærke",null,"Sikringstekniker","FKI_SKI Spor_sikring (ved elektrificerede strækning)","Fagarbejdslederen","At arbejdet udføres i henhold til gældende normer og regler\n\nDet tekniske ansvar for arbejdet på arbejdsstedet\n\nSelvstændigt bedømme om jernbaneanlægget opfylder kravene i gældende normer og regler og kan idriftsættes efter indgreb","Uddannelsesbevis, kursusbevis","Samme som ovenfor","Der findes hundredvis af mærker. Beskrivelsen findes i SR (jernbanesikkerhedskompetencen) Hvis de har SR, så kender de til alle mærker. SR-arbejdsleder 2"]
[26,"FST","FST",null,"Sikringstekniker","FST Grundkursus\n\nFST Fejlretning\n\nFKI_SKI Spor_sikring (ved elektrificerede strækning)","Fagarbejdslederen","At arbejdet udføres i henhold til gældende normer og regler\n\nDet tekniske ansvar for arbejdet på arbejdsstedet\n\nSelvstændigt bedømme om jernbaneanlægget opfylder kravene i gældende normer og regler og kan idriftsættes efter indgreb","Uddannelsesbevis, kursusbevis","Samme som ovenfor"]
[27,"Hytter_skabe","Hytter skabe",null,"Sikringstekniker","FKI_SKI Spor_sikring (ved elektrificerede strækning)","Fagarbejdslederen","At arbejdet udføres i henhold til gældende normer og regler\n\nDet tekniske ansvar for arbejdet på arbejdsstedet\n\nSelvstændigt bedømme om jernbaneanlægget opfylder kravene i gældende normer og regler og kan idriftsættes efter indgreb"]
[28,"Kabelanlæg","Kabelanlæg",null,"Sikringstekniker","Splidsning\n\nFKI_SKI Spor_sikring (ved elektrificerede strækning)","Fagarbejdslederen","At arbejdet udføres i henhold til gældende normer og regler\n\nDet tekniske ansvar for arbejdet på arbejdsstedet\n\nSelvstændigt bedømme om jernbaneanlægget opfylder kravene i gældende normer og regler og kan idriftsættes efter indgreb","Uddannelsesbevis, kursusbevis","Samme som ovenfor","Følger stationssikringsanlæg / Linjeblok / Overkørselsanlæg"]
[29,"Linieblokanlæg","1951_linie",null,"Sikringstekniker","Automatisk Liniblok 1951\n\nFKI_SKI Spor_sikring (ved elektrificerede strækning)","Fagarbejdslederen","At arbejdet udføres i henhold til gældende normer og regler\n\nDet tekniske ansvar for arbejdet på arbejdsstedet\n\nSelvstændigt bedømme om jernbaneanlægget opfylder kravene i gældende normer og regler og kan idriftsættes efter indgreb","Uddannelsesbevis, kursusbevis","Samme som ovenfor","Inkluderer uddannelse i følgende anlægselementer:\n - Batteri/akkumulator\n - Betjeningsapparat\n - Kabelanlæg (skal også bruger slidsning - separat kursus\n - Komponent\n - Ladeensretter\n - Signal\n - Delepunkt"]
[30,"Linieblokanlæg","1954b_linie",null,"Sikringstekniker","FKI_SKI Spor_sikring (ved elektrificerede strækning)","Fagarbejdslederen","At arbejdet udføres i henhold til gældende normer og regler\n\nDet tekniske ansvar for arbejdet på arbejdsstedet\n\nSelvstændigt bedømme om jernbaneanlægget opfylder kravene i gældende normer og regler og kan idriftsættes efter indgreb","Uddannelsesbevis, kursusbevis","Samme som ovenfor","Inkluderer uddannelse i følgende anlægselementer:\n - Batteri/akkumulator\n - Betjeningsapparat\n - Kabelanlæg (skal også bruger slidsning - separat kursus\n - Komponent\n - Ladeensretter\n - Signal\n - Delepunkt"]
[33,"Linieblokanlæg","1969_linie",null,"Sikringstekniker","Automatisk Liniblok 1969\n\nFKI_SKI Spor_sikring (ved elektrificerede strækning)","Fagarbejdslederen","At arbejdet udføres i henhold til gældende normer og regler\n\nDet tekniske ansvar for arbejdet på arbejdsstedet\n\nSelvstændigt bedømme om jernbaneanlægget opfylder kravene i gældende normer og regler og kan idriftsættes efter indgreb","Uddannelsesbevis, kursusbevis","Samme som ovenfor","Inkluderer uddannelse i følgende anlægselementer:\n - Batteri/akkumulator\n - Betjeningsapparat\n - Kabelanlæg (skal også bruger slidsning - separat kursus\n - Komponent\n - Ladeensretter\n - Signal\n - Delepunkt"]
[32,"Linieblokanlæg","1967_linie",null,"Sikringstekniker","Automatisk Liniblok 1967\n\nFKI_SKI Spor_sikring (ved elektrificerede strækning)","Fagarbejdslederen","At arbejdet udføres i henhold til gældende normer og regler\n\nDet tekniske ansvar for arbejdet på arbejdsstedet\n\nSelvstændigt bedømme om jernbaneanlægget opfylder kravene i gældende normer og regler og kan idriftsættes efter indgreb","Uddannelsesbevis, kursusbevis","Samme som ovenfor","Inkluderer uddannelse i følgende anlægselementer:\n - Batteri/akkumulator\n - Betjeningsapparat\n - Kabelanlæg (skal også bruger slidsning - separat kursus\n - Komponent\n - Ladeensretter\n - Signal\n - Delepunkt"]
[4,"Sporskiftedrev","1957_spsk",null,"Sikringstekniker","FKI_SKI Spor_sikring (ved elektrificerede strækning)","Fagarbejdslederen","At arbejdet udføres i henhold til gældende normer og regler\n\nDet tekniske ansvar for arbejdet på arbejdsstedet\n\nSelvstændigt bedømme om jernbaneanlægget opfylder kravene i gældende normer og regler og kan idriftsættes efter indgreb","Uddannelsesbevis, kursusbevis","Samme som ovenfor","Indkluderer uddannelse i følgende anlægselement: \n - Sporskiftestang (afhængigt af anlæg)"]
[31,"Linieblokanlæg","1957_linie",null,"Sikringstekniker","Automatisk Liniblok 1957\n\nFKI_SKI Spor_sikring (ved elektrificerede strækning)","Fagarbejdslederen","At arbejdet udføres i henhold til gældende normer og regler\n\nDet tekniske ansvar for arbejdet på arbejdsstedet\n\nSelvstændigt bedømme om jernbaneanlægget opfylder kravene i gældende normer og regler og kan idriftsættes efter indgreb","Uddannelsesbevis, kursusbevis","Samme som ovenfor","Inkluderer uddannelse i følgende anlægselementer:\n - Batteri/akkumulator\n - Betjeningsapparat\n - Kabelanlæg (skal også bruger slidsning - separat kursus\n - Komponent\n - Ladeensretter\n - Signal\n - Delepunkt"]
[35,"Linieblokanlæg","1982_linie",null,"Sikringstekniker","Automatisk Liniblok 1982\n\nFKI_SKI Spor_sikring (ved elektrificerede strækning)","Fagarbejdslederen","At arbejdet udføres i henhold til gældende normer og regler\n\nDet tekniske ansvar for arbejdet på arbejdsstedet\n\nSelvstændigt bedømme om jernbaneanlægget opfylder kravene i gældende normer og regler og kan idriftsættes efter indgreb","Uddannelsesbevis, kursusbevis","Samme som ovenfor","Inkluderer uddannelse i følgende anlægselementer:\n - Batteri/akkumulator\n - Betjeningsapparat\n - Kabelanlæg (skal også bruger slidsning - separat kursus\n - Komponent\n - Ladeensretter\n - Signal\n - Delepunkt"]
[36,"Linieblokanlæg","1991_linie",null,"Sikringstekniker","Automatisk Liniblok 1991\n\nFKI_SKI Spor_sikring (ved elektrificerede strækning)","Fagarbejdslederen","At arbejdet udføres i henhold til gældende normer og regler\n\nDet tekniske ansvar for arbejdet på arbejdsstedet\n\nSelvstændigt bedømme om jernbaneanlægget opfylder kravene i gældende normer og regler og kan idriftsættes efter indgreb","Uddannelsesbevis, kursusbevis","Samme som ovenfor","Inkluderer uddannelse i følgende anlægselementer:\n - Batteri/akkumulator\n - Betjeningsapparat\n - Kabelanlæg (skal også bruger slidsning - separat kursus\n - Komponent\n - Ladeensretter\n - Signal\n - Delepunkt"]
[37,"Linieblokanlæg","FELB_linie",null,"Sikringstekniker","Grundkursus FELB\n\nFELB Efteruddannelse\n\nFKI_SKI Spor_sikring (ved elektrificerede strækning)","Fagarbejdslederen","At arbejdet udføres i henhold til gældende normer og regler\n\nDet tekniske ansvar for arbejdet på arbejdsstedet\n\nSelvstændigt bedømme om jernbaneanlægget opfylder kravene i gældende normer og regler og kan idriftsættes efter indgreb","Uddannelsesbevis, kursusbevis","Samme som ovenfor","Inkluderer uddannelse i følgende anlægselementer:\n - Batteri/akkumulator\n - Betjeningsapparat\n - Kabelanlæg (skal også bruger slidsning - separat kursus\n - Komponent\n - Ladeensretter\n - Signal\n - Delepunkt"]
[38,"STL_Overvågning","STL overvågning",null,"Sikringstekniker","FKI_SKI Spor_sikring (ved elektrificerede strækning)","Fagarbejdslederen","At arbejdet udføres i henhold til gældende normer og regler\n\nDet tekniske ansvar for arbejdet på arbejdsstedet\n\nSelvstændigt bedømme om jernbaneanlægget opfylder kravene i gældende normer og regler og kan idriftsættes efter indgreb"]
[39,"Togdetektering","DC sporisolationer",null,"Sikringstekniker","FKI_SKI Spor_sikring (ved elektrificerede strækning)","Fagarbejdslederen","At arbejdet udføres i henhold til gældende normer og regler\n\nDet tekniske ansvar for arbejdet på arbejdsstedet\n\nSelvstændigt bedømme om jernbaneanlægget opfylder kravene i gældende normer og regler og kan idriftsættes efter indgreb","Uddannelsesbevis, kursusbevis","Samme som ovenfor"]
[40,"Togdetektering","FTGS",null,"Sikringstekniker","FTSG sporisolation\n\nFKI_SKI Spor_sikring (ved elektrificerede strækning)","Fagarbejdslederen","At arbejdet udføres i henhold til gældende normer og regler\n\nDet tekniske ansvar for arbejdet på arbejdsstedet\n\nSelvstændigt bedømme om jernbaneanlægget opfylder kravene i gældende normer og regler og kan idriftsættes efter indgreb","Uddannelsesbevis, kursusbevis","Samme som ovenfor"]
[41,"Togdetektering","77 HZ sporisolationer",null,"Sikringstekniker","77 Hz sporisolation\n\nFKI_SKI Spor_sikring (ved elektrificerede strækning)","Fagarbejdslederen","At arbejdet udføres i henhold til gældende normer og regler\n\nDet tekniske ansvar for arbejdet på arbejdsstedet\n\nSelvstændigt bedømme om jernbaneanlægget opfylder kravene i gældende normer og regler og kan idriftsættes efter indgreb","Uddannelsesbevis, kursusbevis","Samme som ovenfor"]
[42,"Togdetektering","10-100 KHz. Sporisolation",null,"Sikringstekniker","10/100 Hz sporisolation\n\nFKI_SKI Spor_sikring (ved elektrificerede strækning)","Fagarbejdslederen","At arbejdet udføres i henhold til gældende normer og regler\n\nDet tekniske ansvar for arbejdet på arbejdsstedet\n\nSelvstændigt bedømme om jernbaneanlægget opfylder kravene i gældende normer og regler og kan idriftsættes efter indgreb","Uddannelsesbevis, kursusbevis","Samme som ovenfor"]
[43,"Jordfejlmelder","Jordfejlmelder",null,"Sikringstekniker","Fejl og Jordmelder\n\nFKI_SKI Spor_sikring (ved elektrificerede strækning)","Fagarbejdslederen","At arbejdet udføres i henhold til gældende normer og regler\n\nDet tekniske ansvar for arbejdet på arbejdsstedet\n\nSelvstændigt bedømme om jernbaneanlægget opfylder kravene i gældende normer og regler og kan idriftsættes efter indgreb","Uddannelsesbevis, kursusbevis","Samme som ovenfor","Følger stationssikringsanlæg / Linjeblok / Overkørselsanlæg"]
[44,"SPSK_omstillingsanlæg","SPSK omstillingsanlæg",null,"Sikringstekniker","SPSK omstillingsanlæg\n\nFKI_SKI Spor_sikring (ved elektrificerede strækning)","Fagarbejdslederen","At arbejdet udføres i henhold til gældende normer og regler\n\nDet tekniske ansvar for arbejdet på arbejdsstedet\n\nSelvstændigt bedømme om jernbaneanlægget opfylder kravene i gældende normer og regler og kan idriftsættes efter indgreb","Uddannelsesbevis, kursusbevis","Samme som ovenfor"]

{"sheet":"Sikring","index":10,"n_rows":13,"n_cols":5,"rows_kept":13,"cut":false,"hidden":true,"merged":[]}
["Sikring",{"$f":"CONCATENATE(\"Fagkompetencer \",A1,\" - \",C7)","v":"Fagkompetencer Sikring - (Vælg)"}]
["Krav til fagkompetencer - Sikring"]
[]
[null,"Gemt/udskrevet af:",{"$f":"Fagkompetencekrav!F32","v":"Hasse Kruse; HPET"},{"$f":"NOW()","v":"2017-05-01T16:08:21.930"}]
[]
[null,"Anlægselement","(Vælg)"]
[null,"Anlægselementtype","(Vælg)"]
[]
[]
[]
[null,3,4,5,6]
[null,"Kompetencekrav\nGrunduddannelse","Kompetencekrav\nKurser","Krav vedrører","Ansvar"]
[null,{"$f":"IFERROR(IF(VLOOKUP($C$7,'Sikring DATA'!$C$4:$H$70,B11,FALSE)=0,\"\",VLOOKUP($C$7,'Sikring DATA'!$C$4:$H$70,B11,FALSE)),\"\")","v":""},{"$f":"IFERROR(IF(VLOOKUP($C$7,'Sikring DATA'!$C$4:$H$70,C11,FALSE)=0,\"\",VLOOKUP($C$7,'Sikring DATA'!$C$4:$H$70,C11,FALSE)),\"\")","v":""},{"$f":"IFERROR(IF(VLOOKUP($C$7,'Sikring DATA'!$C$4:$H$70,D11,FALSE)=0,\"\",VLOOKUP($C$7,'Sikring DATA'!$C$4:$H$70,D11,FALSE)),\"\")","v":""},{"$f":"IFERROR(IF(VLOOKUP($C$7,'Sikring DATA'!$C$4:$H$70,E11,FALSE)=0,\"\",VLOOKUP($C$7,'Sikring DATA'!$C$4:$H$70,E11,FALSE)),\"\")","v":""}]

{"sheet":"Kørestrøm DATA","index":11,"n_rows":7,"n_cols":13,"rows_kept":7,"cut":false,"hidden":true,"merged":[[0,0,0,8]]}
["Fag: Kørestrøm\nOverblik over kompetencekrav marts 2015\n\nKrav rettes mod:\nDe funktioner som beskrevet under hver enkelt opgaver. Samtlige funktioners roller og ansvar er beskrvet i stærkstrømbekendtgørelsen\n\nOpretholdelse af kompetencer Kørestrøm\nKØK 1 -4: Kompetencen opretholdes via praksis. Har en given funktion ikke beskæftiget sig med kørestrøms relaterede opgaver indenfor en 3 års periode frafalder kompetencen. \nFKI/SKI Kørestrøm Kompetence gælder i 12 måneder, herefter skal den fornyes.\n\n",null,null,null,null,null,null,null,null,null,null,null,"DONE"]
[null,null,null,null,"Kompetencekrav"]
["ID","Anlægselement","Anlægselementtype","Opgavetype","Grunduddannelse","Kurser","Krav Vedrører","Ansvar","Dokumentation ","Administration","Bemærkninger",null,"(Vælg)"]
[1,"Køreledningsanlæg",null,null,"Driftleder:\nElektroingeniør med stærkstrøm som speciale\nAlternativt ingeniør, elinstallatør eller maskinmester der kan dokumentere 1 års praktisk erfaring med elforsyningsanlæg.\n\nArbejdsleder:\nElektrikker eller anden el-faglig baggrund\n\nHoldleder:\nElektrikker eller anden el-faglig baggrund\n\nHoldleder arbejdsjording:\nElektrikker eller anden el-faglig baggrund\n\nKørestrømstekniker:\nElektrikker eller anden el-faglig baggrund\n\nØvrig arbejdshold:\nElektrikker eller anden el-faglig baggrund\n\n","Arbejdsleder:\nKØK, 1, KØK 2, KØK 3, KØK 4 \nFKI/SKI Kørestrøm\n\nHoldleder:\nKØK 1, KØK 2, KØK 3\nFKI/SKI Kørestrøm\n\nHoldleder arbejdsjording:\nFKI/SKI Kørestrøm\n\nKørestrømstekniker:\nKØK 1, KØK 2\nFKI/SKI Kørestrøm\n\nØvrig arbejdshold:\nKØK 1 (tilmeldt), KØK 2 (tilmeldt)\nFKI/SKI Kørestrøm\n","Den beskrevede funktion jf. stærkstrømsbekendtgørelsen.\n\nAlle roller skalvære tilstede i forhold til opgaveudføresel ligeledes jf. Stæstrømsbekendtgørelsen","Ansvar følger funktionen jf. stærkstrømsbekendtgørelsen","Driftleder:\nCV, referencer\n\nArbejdsleder:\nCV\nKursusbevis\n\nHoldleder:\nCV\nKursusbevis\n\nKørestrømstekniker:\nCV\nKursusbevis\n\nØvrig arbejdsholdsdeltager:\nCV\nKursusbevis","Overdragelsesaftale\n\nDelegeringsaftale\n\nLeverandørens SKS (sikkerheds og kvalitetssystem) kontrolleres af BDK Kvalitet og Sikkerhed ved stikprøve.\n - Driftlederen bemyndiger de forskellige funktioner, der deltager i arbejdet.\n\nTrace:\nIndkøb:\nA.2.2.1 Udbuds og indkøbsstrategi\nA.2.1.2 Udbud / Indkøb\n\nDelegering\nA.1.2.3 Delegering\nA.1.2.4 Delegering af dele af driftslederansvar til intern interessent\nA.1.2.5 Delegering af dele af driftslederansvar til ekstern interessent\n\nAudit\nK6 Audit","Funktionsbeskrivelser laves separat og beskriver hviken opgaver, beføjelser og ansvar den enkel funktion har. Funktionsbeskrivelsen er generisk, og ikke højde for det enkelte anlægselement / opgvaetype.\n\nMerit: Banedanmark driftleder kan give merit for en given kompetence. Ved merit bedømmes personen ud fra et skema som fag området på forhånd har defineret indholdet af.",null,"Køreledningsanlæg"]
[null,null,null,null,null,null,null,null,null,null,null,null,"Omformerstation"]
[3,"Omformerstation","n/a",null,"Driftleder:\nElektroingeniør med stærkstrøm som speciale\nAlternativt ingeniør, elinstallatør eller maskinmester der kan dokumentere 1 års praktisk erfaring med elforsyningsanlæg.\n\nArbejdsleder:\nElektrikker eller anden el-faglig baggrund\n\nHoldleder:\nElektrikker eller anden el-faglig baggrund\n\nKørestrømstekniker:\nElektrikker eller anden el-faglig baggrund\n\nØvrig arbejdshold:\nElektrikker eller anden el-faglig baggrund\n\n","Arbejdsleder:\nKØK, 1 \nFKI/SKI Kørestrøm\n\nHoldleder:\nKØK 1\nFKI/SKI Kørestrøm\n\nKørestrømstekniker:\nKØK 1\nFKI/SKI Kørestrøm\n\nØvrig arbejdshold:\nKØK 1 (tilmeldt)\nFKI/SKI Kørestrøm\n",null,null,"Driftleder:\nCV, referencer\n\nArbejdsleder:\nCV\nKursusbevis\n\nHoldleder:\nCV\nKursusbevis\n\nKørestrømstekniker:\nCV\nKursusbevis\n\nØvrig arbejdsholdsdeltager:\nCV\nKursusbevis","Overdragelsesaftale\n\nDelegeringsaftale\n\nLeverandørens SKS (sikkerheds og kvalitetssystem) kontrolleres af BDK Kvalitet og Sikkerhed ved stikprøve.\n - Driftlederen bemyndiger de forskellige funktioner, der deltager i arbejdet.\n\nTrace:\nIndkøb:\nA.2.2.1 Udbuds og indkøbsstrategi\nA.2.1.2 Udbud / Indkøb\n\nDelegering\nA.1.2.3 Delegering\nA.1.2.4 Delegering af dele af driftslederansvar til intern interessent\nA.1.2.5 Delegering af dele af driftslederansvar til ekstern interessent\n\nAudit\nK6 Audit","Funktionsbeskrivelser laves separat og beskriver hviken opgaver, beføjelser og ansvar den enkel funktion har. Funktionsbeskrivelsen er generisk, og ikke højde for det enkelte anlægselement / opgvaetype.\n\nMerit: Banedanmark driftleder kan give merit for en given kompetence. Ved merit bedømmes personen ud fra et skema som fag området på forhånd har defineret indholdet af.\n\nTPS kursus i støbeskeen.",null,"Fordelingsstation"]
[4,"Fordelingsstation","n/a",null,"Driftleder:\nElektroingeniør med stærkstrøm som speciale\nAlternativt ingeniør, elinstallatør eller maskinmester der kan dokumentere 1 års praktisk erfaring med elforsyningsanlæg.\n\nArbejdsleder:\nElektrikker eller anden el-faglig baggrund\n\nHoldleder:\nElektrikker eller anden el-faglig baggrund\n\nKørestrømstekniker:\nElektrikker eller anden el-faglig baggrund\n\nØvrig arbejdshold:\nElektrikker eller anden el-faglig baggrund\n\n","Arbejdsleder:\nKØK, 1 \nFKI/SKI Kørestrøm\n\nHoldleder:\nKØK 1\nFKI/SKI Kørestrøm\n\nKørestrømstekniker:\nKØK 1\nFKI/SKI Kørestrøm\n\nØvrig arbejdshold:\nKØK 1 (tilmeldt)\nFKI/SKI Kørestrøm\n",null,null,"Driftleder:\nCV, referencer\n\nArbejdsleder:\nCV\nKursusbevis\n\nHoldleder:\nCV\nKursusbevis\n\nKørestrømstekniker:\nCV\nKursusbevis\n\nØvrig arbejdsholdsdeltager:\nCV\nKursusbevis","Overdragelsesaftale\n\nDelegeringsaftale\n\nLeverandørens SKS (sikkerheds og kvalitetssystem) kontrolleres af BDK Kvalitet og Sikkerhed ved stikprøve.\n - Driftlederen bemyndiger de forskellige funktioner, der deltager i arbejdet.\n\nTrace:\nIndkøb:\nA.2.2.1 Udbuds og indkøbsstrategi\nA.2.1.2 Udbud / Indkøb\n\nDelegering\nA.1.2.3 Delegering\nA.1.2.4 Delegering af dele af driftslederansvar til intern interessent\nA.1.2.5 Delegering af dele af driftslederansvar til ekstern interessent\n\nAudit\nK6 Audit","Funktionsbeskrivelser laves separat og beskriver hviken opgaver, beføjelser og ansvar den enkel funktion har. Funktionsbeskrivelsen er generisk, og ikke højde for det enkelte anlægselement / opgvaetype.\n\nMerit: Banedanmark driftleder kan give merit for en given kompetence. Ved merit bedømmes personen ud fra et skema som fag området på forhånd har defineret indholdet af.\n\nTPS kursus i støbeskeen."]

{"sheet":"Kørestrøm","index":12,"n_rows":13,"n_cols":5,"rows_kept":13,"cut":false,"hidden":true,"merged":[]}
["Kørestrøm",{"$f":"CONCATENATE(\"Fagkompetencer \",A1,\" - \",C6)","v":"Fagkompetencer Kørestrøm - (Vælg)"}]
["Krav til fagkompetencer - Kørestrøm"]
[]
[null,"Gemt/udskrevet af:",{"$f":"Fagkompetencekrav!F32","v":"Hasse Kruse; HPET"},{"$f":"NOW()","v":"2017-05-01T16:08:21.930"}]
[]
[null,"Anlægselement","(Vælg)"]
[]
[]
[]
[]
[null,4,5,6,7]
[null,"Kompetencekrav\nGrunduddannelse","Kompetencekrav\nKurser","Krav vedrører","Ansvar"]
[null,{"$f":"IFERROR(IF(VLOOKUP($C$6,'Kørestrøm DATA'!$B$4:$H$7,B11,FALSE)=0,\"\",VLOOKUP($C$6,'Kørestrøm DATA'!$B$4:$H$7,B11,FALSE)),\"\")","v":""},{"$f":"IFERROR(IF(VLOOKUP($C$6,'Kørestrøm DATA'!$B$4:$H$7,C11,FALSE)=0,\"\",VLOOKUP($C$6,'Kørestrøm DATA'!$B$4:$H$7,C11,FALSE)),\"\")","v":""},{"$f":"IFERROR(IF(VLOOKUP($C$6,'Kørestrøm DATA'!$B$4:$H$7,D11,FALSE)=0,\"\",VLOOKUP($C$6,'Kørestrøm DATA'!$B$4:$H$7,D11,FALSE)),\"\")","v":""},{"$f":"IFERROR(IF(VLOOKUP($C$6,'Kørestrøm DATA'!$B$4:$H$7,E11,FALSE)=0,\"\",VLOOKUP($C$6,'Kørestrøm DATA'!$B$4:$H$7,E11,FALSE)),\"\")","v":""}]

{"sheet":"Stærkstrøm DATA","index":13,"n_rows":25,"n_cols":35,"rows_kept":25,"cut":false,"hidden":true,"merged":[[0,0,0,3]]}
["Fag: Stærkstøm\nOverblik over kompetencekrav marts 2015\n",null,null,null,null,null,null,null,null,null,null,null,"z"]
[null,null,null,null,"Kompetencekrav"]
["ID","Anlægselement","Anlægselement/ opgavetype","Opgavetype","Virksomheds krav","Grunduddannelse","Kurser","Certificering","Erfaring","Krav vedrører","Ansvar","Dokumentation","Administration","Bemærkninger",null,"(Vælg)","(Vælg)","(Vælg)","(Vælg)","(Vælg)","(Vælg)","(Vælg)","(Vælg)","(Vælg)","(Vælg)","(Vælg)","(Vælg)","(Vælg)","(Vælg)","(Vælg)","(Vælg)","(Vælg)","(Vælg)","(Vælg)","(Vælg)"]
[1,"Vital_strømforsyning","Vital strømforsyning",null,"El autorisation","El faglig baggrund",null,null,"5 års erfaring med lignende anlægselement","Fagarbejdslederen","At arbejdet udføres i henhold til gældende normer og regler\n\nDet tekniske ansvar for arbejdet på arbejdsstedet\n\nSelvstændigt bedømme om jernbaneanlægget opfylder kravenei gældende normer og regler og kan idriftsættes efter indgreb","Virksomhed:\nwww.sik.dk\n\nFunktion:\nCV",null,"Indkluderer udannelse i følgende anlægselementer:\n - Alternativt net\n - Hovedtavle\n - Undertavle",null,"Køle_Ventilationsanlæg_Vedligeholdelsestype_1_2","Anlæg med fyldning mindre end 50 kg (fyldning < 50 kg) Vedlg.1/2","Anlæg med fyldning mindre end 50 kg (fyldning < 50 kg) Vedlg. 3","Eftersyn og vedligeholdelse af bly-syrebatterier til sikrings- og fjernstyringsanlæg samt generatoranlæg","Elevator","Generel strømforsyning ","Installation","Installation, Kontrol, Seviceeftersyn, Inspektion","Installation ","Pumpe","Pumpeanlæg","Rulletrappe","Spskvarme EL","Spskvarme GAS","Togforvarme","Transformerstation","UPS","Varsling","Vedligeholdelse","Vital strømforsyning"]
[2,"Generel_strømforsyning ","Generel strømforsyning ",null,"El autorisation","El faglig baggrund",null,null,"2 års erfaring med lignende anlægselementer","Fagarbejdslederen","At arbejdet udføres i henhold til gældende normer og regler\n\nDet tekniske ansvar for arbejdet på arbejdsstedet\n\nSelvstændigt bedømme om jernbaneanlægget opfylder kravenei gældende normer og regler og kan idriftsættes efter indgreb","Virksomhed:\nwww.sik.dk\n\nFunktion:\nCV",null,"Indkluderer udannelse i følgende anlægselementer:\n - Hovedtavle\n - Undertavle\n - Fremmedstik",null,"Køle_Ventilationsanlæg_Vedligeholdelsestype_3","Anlæg med fyldning fra 50 kg (fyldning > 50 kg) Vedlg. 1/2","Anlæg med fyldning fra 50 kg (fyldning > 50 kg) Vedlg. 3","Generatoranlæg"]
[3,"Armaturgruppe","Intallation ",null,"El autorisation","El faglig baggrund",null,null,null,"Fagarbejdslederen","At arbejdet udføres i henhold til gældende normer og regler\n\nDet tekniske ansvar for arbejdet på arbejdsstedet\n\nSelvstændigt bedømme om jernbaneanlægget opfylder kravenei gældende normer og regler og kan idriftsættes efter indgreb","Virksomhed:\nwww.sik.dk\n\n",null,"Indkluderer udannelse i følgende anlægselementer:\n - Perronbelysning\n - Perronudstyr\n - Pladsbelysning\n - Tunnelbelysning\n - CTS anlæg\n\nDerudover kan det overvejes, om der fremover skal udvides med opgavebeskrivesler i VH ordren for at angive, hvornår en opgave kræver KØK komptencer.",null,"Generatoranlæg"]
[4,"Varsling\n","Varsling\n",null,"Godkendt i henhold til DBI Retningslinie 001, godkendelse af instalationsfirmaer fra Dansk Brand  og Sikringsteknisk Institut (DBI)\n\n",null,null,"DBI Retningslinie 002, Automatiske Brandslukningsanlæg - certificering af personer og DBI Retningslinie 024 fra Dansk Brand og Sikringsteknisk Institut (DBI) ",null,"Fagarbejdslederen","At arbejdet udføres i henhold til gældende normer og regler\n\nDet tekniske ansvar for arbejdet på arbejdsstedet\n\nSelvstændigt bedømme om jernbaneanlægget opfylder kravenei gældende normer og regler og kan idriftsættes efter indgreb",null,null,"Indkluderer udannelse i følgende anlægselementer:\n - Alarmering\n - Ventilation\n",null,"Elevator"]
[5,"Rumslukning","Installation, Kontrol, Seviceeftersyn, Inspektion",null,"Godkendt i henhold til DBI Retningslinie 001, godkendelse af instalationsfirmaer fra Dansk Brand  og Sikringsteknisk Institut (DBI)\n\nInspektionsvirksomheden skal være akkrediteret til at foretage inspektion i overensstemmelse med DS/EN ISO/IEC 17020, Generelle kriterier for forskellige typer af organer, der foretager inspektion.\n\n",null,null,"DBI Retningslinie 002, Automatiske Brandslukningsanlæg - certificering af personer og DBI foreskrift 253 fra Dansk Brand og Sikringsteknisk Institut (DBI) ",null,"Fagarbejdslederen","At arbejdet udføres i henhold til gældende normer og regler\n\nDet tekniske ansvar for arbejdet på arbejdsstedet\n\nSelvstændigt bedømme om jernbaneanlægget opfylder kravenei gældende normer og regler og kan idriftsættes efter indgreb",null,null,null,null,"Generel_strømforsyning"]
[8,"Håndildslukkere","Vedligeholdelse",null,"DS 2320-certificeret eller godkendt af Arbejdstilsynet\n\n",null,null,null,null,"Fagarbejdslederen","At arbejdet udføres i henhold til gældende normer og regler\n\nDet tekniske ansvar for arbejdet på arbejdsstedet\n\nSelvstændigt bedømme om jernbaneanlægget opfylder kravenei gældende normer og regler og kan idriftsættes efter indgreb",null,null,null,null,"Flugtvejsskilte"]
[10,"Elevator","Elevator",null,"ISO 9001 certificeret\nGodkendt af arbejdstilsynet ","El faglig baggrund","Elevator 1 (TEC)\n\nElevator 2 (TEC)","Kendskab til relæstyringer, anvendelse af elteknisk dokumentation samt fejlfinding på relæstyringer",null,"Fagarbejdslederen","At arbejdet udføres i henhold til gældende normer og regler\n\nDet tekniske ansvar for arbejdet på arbejdsstedet\n\nSelvstændigt bedømme om jernbaneanlægget opfylder kravenei gældende normer og regler og kan idriftsættes efter indgreb",null,null,null,null,"Rumslukning"]
[10,"Rulletrappe","Rulletrappe",null,"ISO 9001 certificeret\nGodkendt af arbejdstilsynet ","El faglig baggrund","Elevator 1 (TEC)\n\nElevator 2 (TEC)",null,"Kendskab til relæstyringer, anvendelse af elteknisk dokumentation samt fejlfinding på relæstyringer","Fagarbejdslederen","At arbejdet udføres i henhold til gældende normer og regler\n\nDet tekniske ansvar for arbejdet på arbejdsstedet\n\nSelvstændigt bedømme om jernbaneanlægget opfylder kravenei gældende normer og regler og kan idriftsættes efter indgreb",null,null,null,null,"Armaturgruppe"]
[11,"Flugtvejsskilte","Installation",null,"El autorisation","El faglig baggrund",null,null,"2 års erfaring med lignende anlægselementer","Fagarbejdslederen","At arbejdet udføres i henhold til gældende normer og regler\n\nDet tekniske ansvar for arbejdet på arbejdsstedet\n\nSelvstændigt bedømme om jernbaneanlægget opfylder kravenei gældende normer og regler og kan idriftsættes efter indgreb","Virksomhed:\nwww.sik.dk\n\nFunktion:\nCV",null,"Indkluderer udannelse i følgende anlægselementer:\n - Nødskilte\n - Panikbelysning",null,"Pumpe"]
[12,"Generatoranlæg","Generatoranlæg",null,"El autorisation\n \nFunktion:\nMånedligt eftersyn og afprøvning af generatoranlæg skal udføres af en sagkyndig person, der har den nødvendige faglige indsigt i forhold til opgaven. \n\nDen sagkyndige persons faglige indsigt i ovenstående, kan være opnået ved deltagelse i kurser med det relevante indhold eller sidemandsoplæring hos anden sagkyndig.\n",null,null,null,null,"Fagarbejdslederen","At arbejdet udføres i henhold til gældende normer og regler\n\nDet tekniske ansvar for arbejdet på arbejdsstedet\n\nSelvstændigt bedømme om jernbaneanlægget opfylder kravenei gældende normer og regler og kan idriftsættes efter indgreb",null,null,"Normdækning:\nBN1-176-1 ",null,"Pumpeanlæg"]
[12,"Generatoranlæg","Eftersyn og vedligeholdelse af bly-syrebatterier til sikrings- og fjernstyringsanlæg samt generatoranlæg",null,"El autorisation","El faglig baggrund",null,null,"Vedligeholdelsen skal udføres af en sagkyndig person, der har den nødvendige faglige kompetence i forhold til opgaven.","Fagarbejdslederen","At arbejdet udføres i henhold til gældende normer og regler\n\nDet tekniske ansvar for arbejdet på arbejdsstedet\n\nSelvstændigt bedømme om jernbaneanlægget opfylder kravenei gældende normer og regler og kan idriftsættes efter indgreb",null,null,"Normdækning:\nBN1-99-1 ",null,"Rulletrappe"]
[14,"Køle_Ventilationsanlæg_Vedligeholdelsestype_1_2","Anlæg med fyldning mindre end 50 kg (fyldning < 50 kg) Vedlg.1/2",null,"El autorisation","El faglig baggrund",null,"Certificeret montør jævnfør Arbejdstilsynets bekendtgørelse nr. 100 [2] bilag 7.\n\nA-certifikat (grundcertifikat). ",null,"Fagarbejdslederen","At arbejdet udføres i henhold til gældende normer og regler\n\nDet tekniske ansvar for arbejdet på arbejdsstedet\n\nSelvstændigt bedømme om jernbaneanlægget opfylder kravenei gældende normer og regler og kan idriftsættes efter indgreb",null,null,"Normdækning\nBN1-175-1 14",null,"Spskvarme_EL"]
[15,"Køle_Ventilationsanlæg_Vedligeholdelsestype_1_2","Anlæg med fyldning fra 50 kg (fyldning > 50 kg) Vedlg. 1/2",null,"El autorisation","El faglig baggrund",null,"Certificeret montør jævnfør Arbejdstilsynets bekendtgørelse nr. 100 [2] bilag 7.\n\nVed anlæg med fyldning fra 50 kg (fyldning ≥ 50 kg) og med kølemiddelgruppe 2 kræves B-certifikat (mellemcertifikat).",null,"Fagarbejdslederen","At arbejdet udføres i henhold til gældende normer og regler\n\nDet tekniske ansvar for arbejdet på arbejdsstedet\n\nSelvstændigt bedømme om jernbaneanlægget opfylder kravenei gældende normer og regler og kan idriftsættes efter indgreb",null,null,null,null,"Spskvarme_GAS"]
[16,"Køle_Ventilationsanlæg_Vedligeholdelsestype_3","Anlæg med fyldning mindre end 50 kg (fyldning < 50 kg) Vedlg. 3",null,"El autorisation","El faglig baggrund",null,null,"Vedligeholdelse type 3 af køleanlæg skal udføres af en sagkyndig person, der har den nødvendige faglige indsigt i forhold til opgaven.\n \nDen sagkyndige skal endvidere have kendskab til gældende love, bekendtgørelser og forskrifter, som er relevante for arbejdet. \n\nDen sagkyndige persons faglige indsigt i ovenstående kan være opnået ved deltagelse i kurser med det relevante indhold eller ved sidemandsoplæring hos anden sagkyndig. ","Fagarbejdslederen","At arbejdet udføres i henhold til gældende normer og regler\n\nDet tekniske ansvar for arbejdet på arbejdsstedet\n\nSelvstændigt bedømme om jernbaneanlægget opfylder kravenei gældende normer og regler og kan idriftsættes efter indgreb","Virksomhed:\nwww.sik.dk\n\n",null,null,null,"Togforvarme"]
[17,"Køle_Ventilationsanlæg_Vedligeholdelsestype_3","Anlæg med fyldning fra 50 kg (fyldning > 50 kg) Vedlg. 3",null,"El autorisation","El faglig baggrund",null,null,"Vedligeholdelse type 3 af køleanlæg skal udføres af en sagkyndig person, der har den nødvendige faglige indsigt i forhold til opgaven.\n \nDen sagkyndige skal endvidere have kendskab til gældende love, bekendtgørelser og forskrifter, som er relevante for arbejdet. \n\nDen sagkyndige persons faglige indsigt i ovenstående kan være opnået ved deltagelse i kurser med det relevante indhold eller ved sidemandsoplæring hos anden sagkyndig. ","Fagarbejdslederen","At arbejdet udføres i henhold til gældende normer og regler\n\nDet tekniske ansvar for arbejdet på arbejdsstedet\n\nSelvstændigt bedømme om jernbaneanlægget opfylder kravenei gældende normer og regler og kan idriftsættes efter indgreb",null,"\n","Kompetencekravet er stillet i BN1-175-1 14 Vedligeholdelse af køleanlæg i teknikrum",null,"Transformerstation"]
[19,"Pumpeanlæg","Pumpeanlæg",null,"VVS autorisation","Installatør",null,null,null,"Fagarbejdslederen","At arbejdet udføres i henhold til gældende normer og regler\n\nDet tekniske ansvar for arbejdet på arbejdsstedet\n\nSelvstændigt bedømme om jernbaneanlægget opfylder kravenei gældende normer og regler og kan idriftsættes efter indgreb","Virksomhed:\nwww.sik.dk\n\n",null,null,null,"UPS"]
[20,"Pumpe","Pumpe",null,"El autorisation",null,null,null,null,"Fagarbejdslederen","At arbejdet udføres i henhold til gældende normer og regler\n\nDet tekniske ansvar for arbejdet på arbejdsstedet\n\nSelvstændigt bedømme om jernbaneanlægget opfylder kravenei gældende normer og regler og kan idriftsættes efter indgreb","Virksomhed:\nwww.sik.dk\n\n",null,null,null,"Varsling"]
[21,"Spskvarme_EL","Spskvarme EL",null,"El autorisation",null,null,null,null,"Fagarbejdslederen","At arbejdet udføres i henhold til gældende normer og regler\n\nDet tekniske ansvar for arbejdet på arbejdsstedet\n\nSelvstændigt bedømme om jernbaneanlægget opfylder kravenei gældende normer og regler og kan idriftsættes efter indgreb","Virksomhed:\nwww.sik.dk\n\n",null,null,null,"Håndildslukkere"]
[22,"Spskvarme_GAS","Spskvarme GAS",null,"Gas autorisation","Installatør",null,null,null,"Fagarbejdslederen","At arbejdet udføres i henhold til gældende normer og regler\n\nDet tekniske ansvar for arbejdet på arbejdsstedet\n\nSelvstændigt bedømme om jernbaneanlægget opfylder kravenei gældende normer og regler og kan idriftsættes efter indgreb","Virksomhed:\nwww.sik.dk\n\n",null,"Indkluderer udannelse i følgende anlægselementer:\n - Tankanlæg",null,"Vital_strømforsyning"]
[23,"Togforvarme","Togforvarme",null,"Funktion: Driftleder\nElektroingeniør med stærkstrøm som speciale\nAlternativt ingeniør, elinstallatør eller maskinmester der kan dokumentere 1 års praktisk erfaring med elforsyningsanlæg.\n\nFunktion: Arbejdsleder\nElektrikker eller anden el-faglig baggrund\n \nFunktion: Holdleder\nElektrikker eller anden el-faglig baggrund\n\nFunktion: Koblingsleder\n\nFunktion: Højspændingstekniker\nElektrikker eller anden el-faglig baggrund\n\nFunktion: Øvrige arbejdsholdsdeltagere\nElektrikker eller anden el-faglig baggrund\n",null,null,null,null,"Fagarbejdslederen","At arbejdet udføres i henhold til gældende normer og regler\n\nDet tekniske ansvar for arbejdet på arbejdsstedet\n\nSelvstændigt bedømme om jernbaneanlægget opfylder kravenei gældende normer og regler og kan idriftsættes efter indgreb",null,"Overdragelsesaftale\n\nDelegeringsaftale\n\nLeverandørens SKS (sikkerheds og kvalitetssystem) kontrolleres af BDK Kvalitet og Sikkerhed ved stikprøve.\n - Driftlederen bemyndiger de forskellige funktioner, der deltager i arbejdet."]
[24,"Transformerstation","Transformerstation",null,"Funktion: Driftleder\nElektroingeniør med stærkstrøm som speciale\nAlternativt ingeniør, elinstallatør eller maskinmester der kan dokumentere 1 års praktisk erfaring med elforsyningsanlæg.\n\nFunktion: Arbejdsleder\nElektrikker eller anden el-faglig baggrund\n\nFunktion: Holdleder\nElektrikker eller anden el-faglig baggrund\n\nFunktion: Kørestrømstekniker\nElektrikker eller anden el-faglig baggrund\n\nFunktion: Øvrige arbejdsholdsdeltagere\nElektrikker eller anden el-faglig baggrund\n\n",null,null,null,null,"Fagarbejdslederen","At arbejdet udføres i henhold til gældende normer og regler\n\nDet tekniske ansvar for arbejdet på arbejdsstedet\n\nSelvstændigt bedømme om jernbaneanlægget opfylder kravenei gældende normer og regler og kan idriftsættes efter indgreb",null,"Overdragelsesaftale\n\nDelegeringsaftale\n\nLeverandørens SKS (sikkerheds og kvalitetssystem) kontrolleres af BDK Kvalitet og Sikkerhed ved stikprøve.\n - Driftlederen bemyndiger de forskellige funktioner, der deltager i arbejdet."]
[25,"UPS","UPS",null,"Gas autorisation",null,null,null,"2 års erfaring med lignende anlægselement","Fagarbejdslederen","At arbejdet udføres i henhold til gældende normer og regler\n\nDet tekniske ansvar for arbejdet på arbejdsstedet\n\nSelvstændigt bedømme om jernbaneanlægget opfylder kravenei gældende normer og regler og kan idriftsættes efter indgreb","Virksomhed:\nwww.sik.dk\n\nFunktion:\nCV","GFS er ansvarlig","Der er normer på vej for Installation af UPS anlæg"]

{"sheet":"Stærkstrøm","index":14,"n_rows":13,"n_cols":8,"rows_kept":13,"cut":false,"hidden":true,"merged":[[5,2,5,4],[6,2,6,4]]}
["Stærkstrøm",{"$f":"CONCATENATE(\"Fagkompetencer \",A1,\" - \",C7)","v":"Fagkompetencer Stærkstrøm - (Vælg)"}]
["Krav til fagkompetencer - Stærkstrøm"]
[]
[null,"Gemt/udskrevet af:",{"$f":"Fagkompetencekrav!F32","v":"Hasse Kruse; HPET"},{"$f":"NOW()","v":"2017-05-01T16:08:21.930"}]
[]
[null,"Anlægselement","(Vælg)"]
[null,"Anlægselementtype/opgave","(Vælg)"]
[]
[]
[]
[null,3,4,5,6,7,8,9]
[null,"Kompetencekrav\nVirksomheds krav","Kompetencekrav\nGrunduddannelse","Kompetencekrav\nKurser","Kompetencekrav\nCertificering","Kompetencekrav\nErfaring","Krav vedrører","Ansvar"]
[null,{"$f":"IFERROR(IF(VLOOKUP($C$7,'Stærkstrøm DATA'!$C$4:$K$71,B11,FALSE)=0,\"\",VLOOKUP($C$7,'Stærkstrøm DATA'!$C$4:$K$71,B11,FALSE)),\"\")","v":""},{"$f":"IFERROR(IF(VLOOKUP($C$7,'Stærkstrøm DATA'!$C$4:$K$71,C11,FALSE)=0,\"\",VLOOKUP($C$7,'Stærkstrøm DATA'!$C$4:$K$71,C11,FALSE)),\"\")","v":""},{"$f":"IFERROR(IF(VLOOKUP($C$7,'Stærkstrøm DATA'!$C$4:$K$71,D11,FALSE)=0,\"\",VLOOKUP($C$7,'Stærkstrøm DATA'!$C$4:$K$71,D11,FALSE)),\"\")","v":""},{"$f":"IFERROR(IF(VLOOKUP($C$7,'Stærkstrøm DATA'!$C$4:$K$71,E11,FALSE)=0,\"\",VLOOKUP($C$7,'Stærkstrøm DATA'!$C$4:$K$71,E11,FALSE)),\"\")","v":""},{"$f":"IFERROR(IF(VLOOKUP($C$7,'Stærkstrøm DATA'!$C$4:$K$71,F11,FALSE)=0,\"\",VLOOKUP($C$7,'Stærkstrøm DATA'!$C$4:$K$71,F11,FALSE)),\"\")","v":""},{"$f":"IFERROR(IF(VLOOKUP($C$7,'Stærkstrøm DATA'!$C$4:$K$71,G11,FALSE)=0,\"\",VLOOKUP($C$7,'Stærkstrøm DATA'!$C$4:$K$71,G11,FALSE)),\"\")","v":""},{"$f":"IFERROR(IF(VLOOKUP($C$7,'Stærkstrøm DATA'!$C$4:$K$71,H11,FALSE)=0,\"\",VLOOKUP($C$7,'Stærkstrøm DATA'!$C$4:$K$71,H11,FALSE)),\"\")","v":""}]

{"sheet":"Bro & Byg DATA","index":15,"n_rows":30,"n_cols":21,"rows_kept":30,"cut":false,"hidden":true,"merged":[[0,0,0,11],[1,4,1,6]]}
["Fag: Broer & Bygninger (Bro, Geo, Perron)\nOverblik over kompetencekrav juni 2015  (Revideret 26-6-2015/JSTN)\n"]
[null,null,null,null,"Kompetencekrav"]
["ID","Anlægselement","Anlægselementtype","Opgavetype","Grunduddannelse","Kurser","Erfaring","Krav vedrører","Ansvar","Dokumentation ","Administration","Bemærkninger",null,"(Vælg)","(Vælg)","(Vælg)","(Vælg)","(Vælg)","(Vælg)","(Vælg)","(Vælg)"]
[22,"Sporets_underbygning",null,"Dæmningsgennemgang","Bygge og anlægsteknisk uddannelse\n\n",null,"Teoretisk og praktisk indsigt i de arbejdsgange,der er knyttet til opgaven",null,null,"Grunduddannelse:\nUddannelsesbevis\n\nKursus: Kursusbevis\n\nErfaring:\nCV","\nHåndteres af GFS"," Intet krav om specifikke kompetancer. Udføres af GFS Forst i forbindelse med eftersyn af grøfter",null,"Broer_og_støttekonstruktioner","Projektopfølgning og fagtilsyn (bro)","Periodisk eftersyn - Elektrisk (drej)","Periodisk eftersyn - Elektrisk (klap)","Generaleftersyn (perron)","Dæmningsinspektion","Rutineeftersyn (stor bro)","Periodisk eftersyn - Elektrisk (vognvægt)"]
[23,"Sporets_underbygning",null,"Dæmningsinspektion","Bygge og anlægsteknisk uddannelse\n\n",null,"Teoretisk og praktisk indsigt i de arbejdsgange,der er knyttet til opgaven",null,null,"Grunduddannelse:\nUddannelsesbevis\n\nKursus: Kursusbevis\n\nErfaring:\nCV","Mindre opgave, sjældent udbud","Udføres i dag oftest af GFS Geoteknik\n\nFremtid: Bygningsingeniør med geoteknisk erfaring",null,"Drejeskive","Rutineeftersyn (bro)","Periodisk eftersyn - Mekanisk (drej)","Periodisk eftersyn - Mekanisk (klap)","Rutineeftersyn (perron)","Geoteknisk risikovurdering","Særeftersyn (stor bro)","Periodisk eftersyn - Mekanisk (vognvægt)"]
[3,"Broer_og_støttekonstruktioner",null,"Generaleftersyn (bro)","Ingeniør med speciale i bærende konstruktioner og / eller broer samt evt. geoteknik.\n","VEJ-EU: Eftersyn af bygværker","Godt kendskab til brovedligehold og reperationsmetoder som kræves for at kunne deltage på kurset \"Eftersyn af bygværker\n\nSpecifikke krav om supplerende erfaring kan forekomme fx. erfaring med nittede stålbroer.",null,null,"Grunduddannelse:\nUddannelsesbevis\n\nKursus:\nKursusbevis\n\nErfaring:\nCV","Ved udbud af opgaven/indgåelse af af aftale om arbejdets udførelse.\nHåndteres af GFS",null,null,"Klap_Bro","Særeftersyn (bro)",null,"Periodisk eftersyn - Sikringsteknisk (klap)","Særeftersyn (perron)","Planlæg vedligehold","Vedligehold (stor bro)"]
[20,"Perron",null,"Generaleftersyn (perron)","Ingeniør med speciale i bærende konstruktioner og / eller broer samt evt. geoteknik.\n\n\n","VEJ-EU: Eftersyn af bygværker","Godt kendskab til brovedligehold som kræves for at kunne deltage på kurset \"Eftersyn af bygværker\".",null,null,"Grunduddannelse:\nUddannelsesbevis\n\nKursus:\nKursusbevis\n\nErfaring:\nCV","Ved udbud af opgaven/indgåelse af af aftale om arbejdets udførelse.\nHåndteres af GFS",null,null,"Perron","Vedligehold (bro)",null,null,"Vedligehold (perron)","Projektopfølgning og fageftersyn","Projektopfølgning og fagtilsyn (stor bro)"]
[24,"Sporets_underbygning",null,"Geoteknisk risikovurdering","Bygge og anlægsteknisk uddannelse\n\n",null,"Teoretisk og praktisk indsigt i de arbejdsgange,der er knyttet til opgaven",null,null,"CV, hvis rådgiver tilbyder medarbejder hvor TD mangler kendskab til kompetancer.","Mindre opgave, sjældent udbud","Fremtid: Bygningsingeniør med geoteknisk erfaring",null,"Sporets_underbygning","Generaleftersyn (bro)",null,null,"Projektopfølgning og fagtilsyn (perron)","Udfør vedligehold"]
[8,"Klap_Bro",null,"Periodisk eftersyn - Elektrisk (klap)","Faglært elektriker / autoriseret installatør","Nødstrømsanlæg: Specialkursus","Erfaring med lignende og helst aktuelt anlæg. Er det sidste ikke tilfældet skal BDK brofoged overvåge arbejdet.",null,null,null,null,null,null,"Store_broer",null,null,null,null,"Dæmningsgennemgang"]
[11,"Drejeskive",null,"Periodisk eftersyn - Elektrisk (drej)","Faglært elektriker",null,"Erfaring fra arbejde med lignende anlæg",null,null,null,null,null,null,"Vognvægte"]
[13,"Vognvægte",null,"Periodisk eftersyn - Elektrisk (vognvægt)","Faglært elektriker","Specialkurser i eftersyn og vedligehold af vognvægte","Erfaring fra arbejde med lignende anlæg"]
[10,"Drejeskive",null,"Periodisk eftersyn - Mekanisk (drej)","Faglært smed",null,"Erfaring fra arbejde med lignende anlæg",null,null,"Grunduddannelse:\nUddannelsesbevis\n\nKursus:\nKursusbevis\n\nErfaring:\nCV","Ved indgåelse af aftale.\nHåndteres af GFS."]
[12,"Vognvægte",null,"Periodisk eftersyn - Mekanisk (vognvægt)","Faglært smed","Specialkurser i eftersyn og vedligehold af vognvægte","Erfaring fra arbejde med lignende anlæg"]
[7,"Klap_Bro",null,"Periodisk eftersyn - Mekanisk (klap)","Faglært smed",null,"Erfaring med lignende og helst aktuelt anlæg. Er det sidste ikke tilfældet skal BDK brofoged overvåge arbejdet.",null,null,"Grunduddannelse:\nUddannelsesbevis\n\nKursus:\nKursusbevis\n\nErfaring:\nCV","Ved indgåelse af aftale.\nHåndteres af GFS og Broinspektør.","Kan vi være specifik i forhold til kurser?"]
[9,"Klap_Bro",null,"Periodisk eftersyn - Sikringsteknisk (klap)","Sikringstekniker","Advarselsanlæg\nOverkørselsanlæg 1/2 og 1/1 bomme\nFejlretning overkørselsanlæg","Erfaring med lignende og helst aktuelt anlæg. Er det sidste ikke tilfældet skal BDK brofoged overvåge arbejdet."]
[25,"Sporets_underbygning",null,"Planlæg vedligehold","Bygge og anlægsteknisk uddannelse\n\n",null,"Teoretisk og praktisk indsigt i de arbejdsgange,der er knyttet til opgaven",null,null,"Dokumentation af entreprenørens fagkompetencer håndteres ved fagtilsyn. Ved nye medarbejdere som BDK ikke kender eller udskiftning af ledende personale hos entreprenøren udbedes oftest CV.","Mindre opgave, sjældent udbud","Fremtid: Bygningsingeniør med geoteknisk erfaring"]
[27,"Sporets_underbygning",null,"Projektopfølgning og fageftersyn","Bygge og anlægsteknisk uddannelse\n\n",null,"Teoretisk og praktisk indsigt i de arbejdsgange,der er knyttet til opgaven",null,null,"Grunduddannelse:\nUddannelsesbevis\n\nKursus: Kursusbevis\n\nErfaring:\nCV","Mindre opgave, sjældent udbud","Fremtid: Bygningsingeniør med geoteknisk erfaring"]
[16,"Broer_og_støttekonstruktioner",null,"Projektopfølgning og fagtilsyn (bro)","Ingeniør med speciale i bærende konstruktioner og / eller broer samt evt. geoteknik.",null,"Erfaring med fagtilsyn ved brovedligehold. Erfaring med arbejdsmiljø og jernbanesikkerhedsarbejde",null,null,"Grunduddannelse:\nUddannelsesbevis\n\nKursus:\nKursusbevis\n\nErfaring:\nCV, hvis rådgiver tilbyder medarbejder hvor TD mangler kendskab til kompetancer.","Kontrakt ved indgåelse af aftale.\nHåndteres af GFS"]
[17,"Store_broer",null,"Projektopfølgning og fagtilsyn (stor bro)","Ingeniør med speciale i bærende konstruktioner og / eller broer samt evt. geoteknik.",null,"Erfaring med fagtilsyn ved brovedligehold. Erfaring med arbejdsmiljø og jernbanesikkerhedsarbejde"]
[18,"Perron",null,"Projektopfølgning og fagtilsyn (perron)","Ingeniør med speciale i bærende konstruktioner og / eller broer samt evt. geoteknik.",null,"Erfaring med fagtilsyn ved brovedligehold. Erfaring med arbejdsmiljø og jernbanesikkerhedsarbejde"]
[1,"Broer_og_støttekonstruktioner",null,"Rutineeftersyn (bro)",null,null,"Godt kendskab til brovedligehold jf. pkt. 4.3 og bilag L1 i vejregel \"Eftersyn af bygningværker\".",null,null,"Kursus: Kursusbevis\n\nErfaring\nCV","Ved indgåelse af aftale om arbejdets udførelse. \nHåndteres af GFS","Det skal vurderes hvorvidt Produktion Forst kan leve op til dette krav."]
[2,"Store_broer",null,"Rutineeftersyn (stor bro)","Bygge og anlægsteknisk uddannelse\n",null,"Godt kendskab til brovedligehold jf. pkt. 4.3 og bilag L1 i vejregel \"Eftersyn af bygningværker\". \n\nErfaring med stålarbejde, elarbejde, betonarbejde og overfladebehandling",null,null,"Grunduddannelse:\nUddannelsesbevis\n\nKursus: Kursusbevis\n\nErfaring:\nCV","Ved indgåelse af aftale om arbejdets udførelse. \nHåndteres af GFS","Opgaven løses af BDK Bro inspektør. Se funktionsbeskrivelse for Bro inspektør i trace.\nUddannelseskravet er kun gældende såfremt andre skal udføre opgaven."]
[19,"Perron",null,"Rutineeftersyn (perron)",null,null,"Godt kendskab til vedligehold af perroner. \n\nErfaring med stålarbejde, elarbejde, betonarbejde og overfladebehandling",null,null,"Erfaring\nCV\n\nKursus:\nKursusbevis\n","Ved indgåelse af aftale om arbejdets udførelse. \nHåndteres af GFS"]
[4,"Broer_og_støttekonstruktioner",null,"Særeftersyn (bro)","Ingeniør med speciale i bærende konstruktioner og / eller broer samt evt. geoteknik.\n\n","VEJ-EU: Eftersyn af bygværker\nDykkerundersøgelser kræves certifikat som erhvervsdykker.","Alt efter opgaven skal det bevises at de \"rigtige\" kompetencer er til stede hos teamet der skal løse opgaven.",null,null,"Grunduddannelse:\nUddannelsesbevis\n\nKursus:\nKursusbevis\n\nErfaring:\nSkema til udfyldelse af tilbudsgiver, der beskriver funktioner og erfaringer\n\nCV","Ved udbud af opgaven/indgåelse af af aftale om arbejdets udførelse.\nHåndteres af GFS","I forbindelse med det enkelte særeftersyn fastlægges hvilke kompetancer, der skal indgå i det team, der skal udføre arbejdet f.eks.\n\nEftersynsingeniør\nSpecialist i statiske beregninger/materialeteknologi mv.\n"]
[5,"Store_broer",null,"Særeftersyn (stor bro)","Ingeniør med speciale i bærende konstruktioner og / eller broer samt evt. geoteknik.\n\n","VEJ-EU: Eftersyn af bygværker\nDykkerundersøgelser kræves certifikat som erhvervsdykker.","Alt efter opgaven skal det bevises at de \"rigtige\" kompetencer er til stede hos teamet der skal løse opgaven."]
[6,"Perron",null,"Særeftersyn (perron)","Ingeniør med speciale i bærende konstruktioner og / eller broer samt evt. geoteknik.\n\n","VEJ-EU: Eftersyn af bygværker\nDykkerundersøgelser kræves certifikat som erhvervsdykker.","Alt efter opgaven skal det bevises at de \"rigtige\" kompetencer er til stede hos teamet der skal løse opgaven."]
[26,"Sporets_underbygning",null,"Udfør vedligehold","Bygge og anlægsteknisk uddannelse\n\n",null,"Teoretisk og praktisk indsigt i de arbejdsgange,der er knyttet til opgaven",null,null,null,"Mindre opgave, sjældent udbud","Fremtid: Special arbejder eller håndværksmæssig baggrund. Maskinføre"]
[14,"Broer_og_støttekonstruktioner",null,"Vedligehold (bro)","Entreprenørens byggeleder: Ingeniør med speciale i bærende konstruktioner og / eller broer.\n\nEntreprenørens mandskab.\n- Betonarbejder: Specialarbejder eller struktør\n- Smedearbejder: Faguddannet smed\n- Malerarbejder: Faguddannet bygning-/skibsmaler eller specialarbejder afhæningt af arbejdets karakter.","Alle medarbejdere: VEJ-EU: \"Vejen som arbejdsplads\" såfremt der arbejdes ved eller på offentlig vej.","Entreprenørens byggeleder: Erfaring med arbejder på jernbanebroer.\n\nEntreprenørens mandskab: Specialarbejdere skal have erfaring med de typer arbejde som de udfører.",null,null,null,"Kontrakt\nUdbudsmateriale\nHåndteres af GFS","Kravene fastsættes ud fra det arbejde som skal udføres.\nVed arbejder på bærende brokonstruktioner i stål stilles detaljerede krav til uddannelse, kurser og erfaring.\nVed arbejder på sekundære konstruktioner som f.eks. Rækværker stilles krav om grundlæggende uddannelse."]
[15,"Store_broer",null,"Vedligehold (stor bro)","Entreprenørens byggeleder: Ingeniør med speciale i bærende konstruktioner og / eller broer.\n\nEntreprenørens mandskab.\n- Betonarbejder: Specialarbejder eller struktør\n- Smedearbejder: Faguddannet smed\n- Malerarbejder: Faguddannet bygning-/skibsmaler eller specialarbejder afhæningt af arbejdets karakter.","Alle medarbejdere: VEJ-EU: \"Vejen som arbejdsplads\" såfremt der arbejdes ved eller på offentlig vej.","Entreprenørens byggeleder: Erfaring med arbejder på jernbanebroer.\n\nEntreprenørens mandskab: Specialarbejdere skal have erfaring med de typer arbejde som de udfører.",null,null,null,"Kontrakt\nUdbudsmateriale\nHåndteres af GFS","Kravene fastsættes ud fra det arbejde som skal udføres.\nVed arbejder på bærende brokonstruktioner i stål stilles detaljerede krav til uddannelse, kurser og erfaring.\nVed arbejder på sekundære konstruktioner som f.eks. Rækværker stilles krav om grundlæggende uddannelse."]
[21,"Perron",null,"Vedligehold (perron)","Entreprenørens byggeleder: Ingeniør med speciale i bygge- eller anlægsarbejder.\n\nEntreprenørens mandskab:\n- Belægningsarbejder: Faguuddannet brolægger eller specialarbejder.\n- Perronforkanter: Struktør eller specialarbejder\n\n\n",null,"Entreprenørens byggeleder: Erfaring med arbejder på hvor der indgår krav til jernbanesikkerhed.\n\nEntreprenørens mandskab: Specialarbejdere skal have erfaring med de typer arbejde, som de udfører.",null,null,"Grunduddannelse:\nUddannelsesbevis\n\nKursus:\nKursusbevis\n\nErfaring:\nCV","Kontrakt\nUdbudsmateriale\nHåndteres af GFS"]

{"sheet":"Broer & bygninger","index":16,"n_rows":13,"n_cols":6,"rows_kept":13,"cut":false,"hidden":true,"merged":[[5,2,5,3],[6,2,6,3]]}
["Broer & Bygninger",{"$f":"CONCATENATE(\"Fagkompetencer \",A1,\" - \",C7)","v":"Fagkompetencer Broer & Bygninger - (Vælg)"}]
["Krav til fagkompetencer - Broer & bygninger"]
[]
[null,"Gemt/udskrevet af:",{"$f":"Fagkompetencekrav!F32","v":"Hasse Kruse; HPET"},{"$f":"NOW()","v":"2017-05-01T16:08:21.930"}]
[]
[null,"Anlægselement","(Vælg)"]
[null,"Opgavetype","(Vælg)"]
[]
[]
[]
[null,2,3,4,5,6]
[null,"Kompetencekrav\nGrunduddannelse","Kompetencekrav\nKurser","Kompetencekrav\nErfaring","Krav vedrører","Ansvar"]
[null,{"$f":"IFERROR(IF(VLOOKUP($C$7,'Bro & Byg DATA'!$D$4:$K$71,B11,FALSE)=0,\"\",VLOOKUP($C$7,'Bro & Byg DATA'!$D$4:$K$71,B11,FALSE)),\"\")","v":""},{"$f":"IFERROR(IF(VLOOKUP($C$7,'Bro & Byg DATA'!$D$4:$K$71,C11,FALSE)=0,\"\",VLOOKUP($C$7,'Bro & Byg DATA'!$D$4:$K$71,C11,FALSE)),\"\")","v":""},{"$f":"IFERROR(IF(VLOOKUP($C$7,'Bro & Byg DATA'!$D$4:$K$71,D11,FALSE)=0,\"\",VLOOKUP($C$7,'Bro & Byg DATA'!$D$4:$K$71,D11,FALSE)),\"\")","v":""},{"$f":"IFERROR(IF(VLOOKUP($C$7,'Bro & Byg DATA'!$D$4:$K$71,E11,FALSE)=0,\"\",VLOOKUP($C$7,'Bro & Byg DATA'!$D$4:$K$71,E11,FALSE)),\"\")","v":""},{"$f":"IFERROR(IF(VLOOKUP($C$7,'Bro & Byg DATA'!$D$4:$K$71,F11,FALSE)=0,\"\",VLOOKUP($C$7,'Bro & Byg DATA'!$D$4:$K$71,F11,FALSE)),\"\")","v":""}]

{"sheet":"Pivot","index":17,"n_rows":228,"n_cols":23,"rows_kept":228,"cut":false,"hidden":true,"merged":[]}
[]
[null,"Rækkenavne","Antal af Opgavetype",null,"Skinne","Spor","Tungeparti","Sporskifte","Krydsning","Isolerklæbestød","Befæstelse","Tvangsskinne","Belægning","Ballast","Overkørsel","Skinneudtræk","Sporstopper","Sveller"]
[null,"Regulering iht. relevante sporskiftemålog sporriller",1,null,"Aluminotermisk svejsning","Arbejde med uroligt spor","Afslibning efter tungeslidmål","Bygning af Sporskifter","Pålægssvejsning og reprofilering af krydsninger","Eftersyn af isoleret stød","Efterspænding af spor","Pålægssvejsning og reporfilering af tvangsskinner","Eftersyn af overkørsel og overgang","Ballastsupplering og profilering","Belægningsarbejde i overkørsler","Eftersyn af skinneudtræk på broer","Arbejde / eftersyn med sporstopper","Udveksling af Sveller"]
[null,"½ tungeparti - Svejsning ved udveksling af større jerndele i sporskifter",1,null,"Boring i skinne","Eddy Current måling","Koldretning af tunger","Eftersyn af Sporskifter","Regulering iht. relevante sporskiftemål og sporriller","Justering og slibning af stød","Efterspænding af sporskifter","Regulering iht. relevante sporskiftemål og sporriller, herunder montering af indskudsplade"]
[null,"Udveksling af befæstelse",1,null,"Bred aluminotermisk svejsning","Efterbehandling af data i forbindelse med krabbemåling","Pålægssvejsning og reprofilering af sideskinne","Vedligeholdelse af rhombelåse","Stødopretning","Svejsning i forbindelse med isolerklæbestød (bygge og vedligehold)","Udveksling af befæstelse"]
[null,"Aluminotermisk svejsning",1,null,"Bygning af Sporramme","Landmåling inkl. projektering af spor  geometri","Udveksling af jerndele i sporskifter (Indkluderer ikke svejseopgaver)","Kontrolmåling af sporskifter"]
[null,"Pålægssvejsning og reprofilering af krydsninger",1,null,"Indgreb i langskinne","Manuel justering af spor","½ tungeparti - Svejsning ved udveksling af større jerndele i sporskifter"]
[null,"Arbejde / eftersyn med sporstopper",1,null,"Linjesyn","Maskinel udbedring af sporbeliggenhedsfejl","½ tungeparti - Slibning af sporskiftekomponenter"]
[null,"Stødopretning",1,null,"Måling af skinneslid","Overvågning af sporets beliggenhed ved udførsel af arbejder omkring spor i drift, der kan påvirke sporets beliggenhed"]
[null,"Arbejde med uroligt spor",1,null,"Pålægssvejsning og reprofilering af skinne","Ultralydsscanning med håndtrolje og håndholdt ultralydsscanner"]
[null,"Ultralydsscanning med håndtrolje og håndholdt ultralydsscanner",1,null,"Skæring i forbindelse med aluminotermisk svejsning"]
[null,"Ballastsupplering og profilering",1,null,"Sporvideregluering"]
[null,"Afslibning efter tungeslidmål",1,null,"Spændingsudligning/slutsvejsning"]
[null,"Belægningsarbejde i overkørsler",1,null,"Udbedring af skinnebrud"]
[null,"Pålægssvejsning og reprofilering af skinne",1,null,"Udbedring af solkurver"]
[null,"Boring i skinne",1,null,"Udveksling af Skinner (inkluderer ikke svejseopgaver)"]
[null,"Sporvideregluering",1,null,"Varmesyn"]
[null,"Bred aluminotermisk svejsning",1,null,"Varmretning af svejsning"]
[null,"Udbedring af skinnebrud",1]
[null,"Bygning af Sporramme",1]
[null,"Udveksling af Skinner (inkluderer ikke svejseopgaver)",1]
[null,"Bygning af Sporskifter",1]
[null,"Varmretning af svejsning",1]
[null,"Eddy Current måling",1]
[null,"Kontrolmåling af sporskifter",1]
[null,"Efterbehandling af data i forbindelse med krabbemåling",1]
[null,"Pålægssvejsning og reporfilering af tvangsskinner",1]
[null,"Efterspænding af spor",1]
[null,"Pålægssvejsning og reprofilering af sideskinne",1]
[null,"Efterspænding af sporskifter",1]
[null,"Regulering iht. relevante sporskiftemål og sporriller, herunder montering af indskudsplade",1]
[null,"Eftersyn af isoleret stød",1]
[null,"Skæring i forbindelse med aluminotermisk svejsning",1]
[null,"Eftersyn af overkørsel og overgang",1]
[null,"Spændingsudligning/slutsvejsning",1]
[null,"Eftersyn af Sporskifter",1]
[null,"Svejsning i forbindelse med isolerklæbestød (bygge og vedligehold)",1]
[null,"Indgreb i langskinne",1]
[null,"Udbedring af solkurver",1]
[null,"Justering og slibning af stød",1]
[null,"Udveksling af jerndele i sporskifter (Indkluderer ikke svejseopgaver)",1]
[null,"Koldretning af tunger",1]
[null,"Udveksling af Sveller",1]
[null,"Landmåling inkl. projektering af spor  geometri",1]
[null,"Varmesyn",1]
[null,"Linjesyn",1]
[null,"Vedligeholdelse af rhombelåse",1]
[null,"Manuel justering af spor",1]
[null,"½ tungeparti - Slibning af sporskiftekomponenter",1]
[null,"Maskinel udbedring af sporbeliggenhedsfejl",1]
[null,"Eftersyn af skinneudtræk på broer",1]
[null,"Måling af skinneslid",1]
[null,"Overvågning af sporets beliggenhed ved udførsel af arbejder omkring spor i drift, der kan påvirke sporets beliggenhed",1]
[null,"Hovedtotal",51]
[]
[]
[]
[]
[]
[null,"Rækkenavne","Antal af Opgavetype"]
[null,"Afvanding - \n \nÅben og lukket afvandingssystem, dræn, rør,brønde ",1]
[null,"Befæstede - \n\nInterne stier, perroner, veje, pladser.",1]
[null,"Bevoksede intensivt -\n\nGrønne urbane anlæg og bede",1]
[null,"Bevoksede ekstensiv\n\nBevoksninger, skove, overdrev",1]
[null,"Hegn\n\nTekniske hegn",1]
[null,"Skråninger\n\nBevoksninger på skråninger",1]
[null,"Fremføringsprofil\n\nFritrumsprofil. Bevoksningsfri zone omkring jernbanenettet",1]
[null,"Teknikprofil\n\nBevoksningsfri zone omkring banens tekniske anlæg",1]
[null,"Usikrede overkørsler\n\nBevoksningsfri zone omkring usikrede overkørselsanlæg",1]
[null,"Bekæmpelse af planten Kæmpe Bjørneklo iht. Lovkrav.",1]
[null,"Sporsprøjtning",1]
[null,"Hovedtotal",11]
[]
[]
[]
[]
[]
[null,"Rækkenavne","Antal af Anlægselement",null,"Linieblokanlæg","Sporskiftedrev","Stationssikringsanlæg_Varslingsanlæg","Togdetektering","Stationssikringsanlæg","Overkørselsanlæg","Fjernstyringscentral","Akseltæller","HKT_anlæg","Centraldel","FST","Fast_ mærke","SPSK_omstillingsanlæg","Fjernstyringsunderst","STL_Overvågning","ATC_anlæg","Kabelanlæg","Hytter_skabe","Jordfejlmelder"]
[null,"Linieblokanlæg",9,null,"(vælg)","(vælg)","(vælg)","(vælg)","(vælg)","(vælg)","(vælg)","(vælg)","(vælg)","(vælg)","(vælg)","(vælg)","(vælg)","(vælg)","(vælg)","(vælg)","(vælg)","(vælg)","(vælg)"]
[null,"1991_linie",1,null,"1951_linie","1926_spsk","1246_varsl","10_100 KHz. Sporisolation","Sicas S5","Bues_2000","RCTC","Alcatel","HKT-anlæg","Centraldel","FST","Fast_ mærke","SPSK_omstillingsanlæg","DCTC","STL_Overvågning","ATC_anlæg","Kabelanlæg","Hytter_skabe","Jordfejlmelder"]
[null,"1977_linie",1,null,"1954b_linie","1957_spsk","1954_varsl","77_HZ_Sporisolationer","1990_stat","Relæ","TCTC","Honeywell"]
[null,"1951_linie",1,null,"1957_linie","1979_spsk","1964_varsl","DC_Sporisolationer"]
[null,"1954b_linie",1,null,"1967_linie","1987_spsk","1969_varsl","FTGS"]
[null,"1982_linie",1,null,"1969_linie","1994_spsk","1972_varsl"]
[null,"1957_linie",1,null,"1977_linie","2005_spsk","1977_varsl"]
[null,"FELB_linie",1,null,"1982_linie"]
[null,"1967_linie",1,null,"1991_linie"]
[null,"1969_linie",1,null,"FELB_linie"]
[null,"Sporskiftedrev",6]
[null,"1987_spsk",1]
[null,"2005_spsk",1]
[null,"1994_spsk",1]
[null,"1957_spsk",1]
[null,"1926_spsk",1]
[null,"1979_spsk",1]
[null,"Stationssikringsanlæg_varslingsanlæg",6]
[null,"1969_varsl",1]
[null,"1977_varsl",1]
[null,"1972_varsl",1]
[null,"1954_varsl",1]
[null,"1246_varsl",1]
[null,"1964_varsl",1]
[null,"Togdetektering",4]
[null,"10-100 KHz. Sporisolation",1]
[null,"77 HZ sporisolationer",1]
[null,"FTGS",1]
[null,"DC sporisolationer",1]
[null,"Overkørselsanlæg",2]
[null,"Bues 2000",1]
[null,"Relæ",1]
[null,"Stationssikringsanlæg",2]
[null,"Sicas S5",1]
[null,"1990_stat",1]
[null,"Fjernstyringscentral",2]
[null,"TCTC",1]
[null,"RCTC",1]
[null,"Akseltæller",2]
[null,"Honeywell",1]
[null,"Alcatel",1]
[null,"HKT_anlæg",1]
[null,"HKT-anlæg",1]
[null,"Centraldel",1]
[null,"Centraldel",1]
[null,"Fjernstyringsunderst",1]
[null,"DCTC",1]
[null,"Fast_ mærke",1]
[null,"Fast mærke",1]
[null,"SPSK_omstillingsanlæg",1]
[null,"SPSK omstillingsanlæg",1]
[null,"Kabelanlæg",1]
[null,"Kabelanlæg",1]
[null,"STL_Overvågning",1]
[null,"STL overvågning",1]
[null,"ATC_anlæg",1]
[null,"ATC-Anlæg",1]
[null,"FST",1]
[null,"FST",1]
[null,"Hytter_skabe",1]
[null,"Hytter skabe",1]
[null,"Jordfejlmelder",1]
[null,"Jordfejlmelder",1]
[null,"Hovedtotal",44]
[]
[]
[]
[]
[null,"Rækkenavne","Antal af Anlægselement/ opgavetype"]
[null,"Generatoranlæg",2]
[null,"Eftersyn og vedligeholdelse af bly-syrebatterier til sikrings- og fjernstyringsanlæg samt generatoranlæg \n\n\n",1]
[null,"Generatoranlæg",1]
[null,"Køle_Ventilationsanlæg_Vedligeholdelsestype_3",2]
[null,"Anlæg med fyldning mindre end 50 kg (fyldning < 50 kg) Vedlg. 3",1]
[null,"Anlæg med fyldning fra 50 kg (fyldning ≥ 50 kg) Vedlg. 3",1]
[null,"Køle_Ventilationsanlæg_Vedligeholdelsestype_1_2",2]
[null,"Anlæg med fyldning mindre end 50 kg (fyldning < 50 kg) Vedlg.1/2",1]
[null,"Anlæg med fyldning fra 50 kg (fyldning ≥ 50 kg) Vedlg. 1/2",1]
[null,"Spskvarme _GAS",1]
[null,"Spskvarme _GAS",1]
[null,"Varsling\n",1]
[null,"Varsling\n",1]
[null,"Transformerstation",1]
[null,"Transformerstation",1]
[null,"Håndildslukkere",1]
[null,"Vedligeholdelse",1]
[null,"Armaturgruppe",1]
[null,"Intallation ",1]
[null,"Pumpe",1]
[null,"Pumpe",1]
[null,"Togforvarme",1]
[null,"Togforvarme",1]
[null,"Pumpeanlæg",1]
[null,"Pumpeanlæg",1]
[null,"UPS",1]
[null,"UPS",1]
[null,"Vital_strømforsyning",1]
[null,"Vital_strømforsyning",1]
[null,"Elevator",1]
[null,"Elevator",1]
[null,"Flugtvejsskilte",1]
[null,"Installation",1]
[null,"Rulletrappe",1]
[null,"Rulletrappe",1]
[null,"Generel_strømforsyning ",1]
[null,"Generel_strømforsyning ",1]
[null,"Rumslukning",1]
[null,"Installation, Kontrol, Seviceeftersyn, Inspektion",1]
[null,"Spskvarme _EL",1]
[null,"Spskvarme _EL",1]
[null,"Hovedtotal",22]
[]
[]
[]
[null,"Rækkenavne","Antal af Opgavetype"]
[null,"Broer_og_støttekonstruktioner",5]
[null,"Projektopfølgning og fagtilsyn (bro)",1]
[null,"Rutineeftersyn (bro)",1]
[null,"Særeftersyn (bro)",1]
[null,"Vedligehold (bro)",1]
[null,"Generaleftersyn (bro)",1]
[null,"Drejeskive",2]
[null,"Periodisk eftersyn - Elektrisk (drej)",1]
[null,"Periodisk eftersyn - Mekanisk (drej)",1]
[null,"Klap_Bro",3]
[null,"Periodisk eftersyn - Elektrisk (klap)",1]
[null,"Periodisk eftersyn - Mekanisk (klap)\n",1]
[null,"Periodisk eftersyn - Sikringsteknisk (klap)",1]
[null,"Perron",5]
[null,"Generaleftersyn (perron)",1]
[null,"Rutineeftersyn (perron)",1]
[null,"Særeftersyn (perron)",1]
[null,"Vedligehold (perron)",1]
[null,"Projektopfølgning og fagtilsyn (perron)",1]
[null,"Sporets_underbygning",6]
[null,"Dæmningsinspektion",1]
[null,"Geoteknisk risikovurdering",1]
[null,"Planlæg vedligehold",1]
[null,"Projektopfølgning og fageftersyn",1]
[null,"Udfør vedligehold",1]
[null,"Dæmningsgennemgang",1]
[null,"Store_broer",4]
[null,"Rutineeftersyn (stor bro)",1]
[null,"Særeftersyn (stor bro)",1]
[null,"Vedligehold (stor bro)",1]
[null,"Projektopfølgning og fagtilsyn (stor bro)",1]
[null,"Vognvægte",2]
[null,"Periodisk eftersyn - Elektrisk (vognvægt)",1]
[null,"Periodisk eftersyn - Mekanisk (vognvægt)",1]
[null,"Hovedtotal",27]